TRANSACTION DATE,SUPPLIER NAME,DIRECTORATE,COST CENTRE DESCRIPTION,LINE AMOUNT,SUBJECTIVE DESCRIPTION,MERCHANT CATEGORY CODE DESCRIPTION
01 Jan 2015,OFFICE DEPOT,CHILDRENS SERVICES,ADOPTION TEAM,12.43,STATIONERY & GENERAL SUPPLIES-OFFICE EXP,"STATIONERY, OFFICE SUPPLIES AND WRITING PAPER"
01 Jan 2015,OFFICE DEPOT,CHILDRENS SERVICES,ADOPTION TEAM,143.46,STATIONERY & GENERAL SUPPLIES-OFFICE EXP,"STATIONERY, OFFICE SUPPLIES AND WRITING PAPER"
02 Jan 2015,ASDA SUPERSTORE,CHILDRENS SERVICES,"CLUSTER 3 BLOXWICH,BLAKENALL,HATHERTON,E STAMMERS",14.83,FOOD AND BEVERAGES-PROVISIONS,GROCERY STORES AND SUPERMARKETS
02 Jan 2015,OFSTED INTERNET,CHILDRENS SERVICES,CLUSTER 5 DARLASTON,220.00,PROFESSIONAL FEES AND SERVICES,GOVERNMENT SERVICES
02 Jan 2015,AMAZON *MKTPLCE EU-UK,RESOURCES,RECHARGEABLE EQUIPMENT,41.97,COMPUTER EQUIPMENT AND SUPPLIES,MISCELLANEOUS AND SPECIALTY RETAIL STORES
02 Jan 2015,WM MORRISON 063,CHILDRENS SERVICES,REDRUTH ROAD,1.88,GENERAL PROVISIONS-PROVISIONS,GROCERY STORES AND SUPERMARKETS
02 Jan 2015,WM MORRISON 063,CHILDRENS SERVICES,REDRUTH ROAD,44.13,GENERAL PROVISIONS-PROVISIONS,GROCERY STORES AND SUPERMARKETS
02 Jan 2015,WM MORRISONS,CHILDRENS SERVICES,57 LICHFIELD ROAD,6.75,EQUIP NEW-CLEANING,GROCERY STORES AND SUPERMARKETS
02 Jan 2015,MNA LTD CARDCHARGE,REGENERATION,DEVELOPMENT MANAGEMENT,352.08,PERIODICALS/MAGAZINES/NEWSPAPERS-SUBSCRIPTIONS,NEWS DEALERS AND NEWSSTANDS
02 Jan 2015,ASDA HOME SHOPPING,CHILDRENS SERVICES,57 LICHFIELD ROAD,35.10,GENERAL PROVISIONS-PROVISIONS,GROCERY STORES AND SUPERMARKETS
02 Jan 2015,ASDA HOME SHOPPING,CHILDRENS SERVICES,57 LICHFIELD ROAD,130.07,GENERAL PROVISIONS-PROVISIONS,GROCERY STORES AND SUPERMARKETS
02 Jan 2015,TRAVEL WEST MIDLAN,CHILDRENS SERVICES,57 LICHFIELD ROAD,29.25,RESIDENTS PERSONAL EXPENSES-ALLOWANCES TO S/S CLIENTS,BUS LINES
02 Jan 2015,LIVERPOOL DIR SIA,SOCIAL CARE & INCLUSION,RESPONSE SERVICES,220.00,LEGAL FEES-PRIV CONTRACTOR FEES,"DETECTIVE AGENCIES, PROTECTIVE AGENCIES, SECURITY "
02 Jan 2015,TRAVEL WEST MIDLAN,RESOURCES,HOMELESS PREVENTION GRANT,100.00,OFFICER/STAFF-PUBLIC TRANSPORT,BUS LINES
02 Jan 2015,TRAVEL WEST MIDLAN,RESOURCES,WALSALL CRISIS SUPPORT SCHEME,100.00,OFFICER/STAFF-PUBLIC TRANSPORT,BUS LINES
02 Jan 2015,ASDA HOME SHOPPING,CHILDRENS SERVICES,SPINDLETREE,12.76,GENERAL PROVISIONS-PROVISIONS,GROCERY STORES AND SUPERMARKETS
02 Jan 2015,ASDA HOME SHOPPING,CHILDRENS SERVICES,SPINDLETREE,128.96,GENERAL PROVISIONS-PROVISIONS,GROCERY STORES AND SUPERMARKETS
02 Jan 2015,SCREWFIX,NEIGHBOURHOOD SERVICES,INFRASTRUCTURE MAINTENANCE,12.99,"REPAIRS,ALTERATIONS & MAINTENANCE-PREM",LUMBER & BUILDING MATERIALS STORES
02 Jan 2015,TRAINLINE.COM,CHILDRENS SERVICES,SAFEGUARDING & FAMILY SUPPORT,175.03,OFFICER/STAFF-PUBLIC TRANSPORT,PASSENGER RAILWAYS
02 Jan 2015,SS + JR JOHAL 31968,RESOURCES,ACCOMMODATION SERVICES MANAGEMENT,20.80,FOOD AND BEVERAGES-PROVISIONS,GROCERY STORES AND SUPERMARKETS
02 Jan 2015,ASDA SUPERSTORE,RESOURCES,ACCOMMODATION SERVICES MANAGEMENT,36.00,FOOD AND BEVERAGES-PROVISIONS,GROCERY STORES AND SUPERMARKETS
02 Jan 2015,LONDON MIDLAND TIC,CHILDRENS SERVICES,LOOKED AFTER CHILDRENS SOCIAL WORK TEAM,42.70,OFFICER/STAFF-PUBLIC TRANSPORT,PASSENGER RAILWAYS
02 Jan 2015,ARTHUR BRETT CATER,NEIGHBOURHOOD SERVICES,CA TOWN HALL RESTAURANT - CATERING,65.35,FRUIT & VEGETABLES OTHER-PROVISIONS,MISCELLANEOUS FOOD STORES & CONVENIENCE STORES
02 Jan 2015,OFFICE DEPOT,RESOURCES,PRINT STORES,127.30,STATIONERY & GENERAL SUPPLIES-OFFICE EXP,"STATIONERY, OFFICE SUPPLIES AND WRITING PAPER"
02 Jan 2015,OFFICE DEPOT,SOCIAL CARE & INCLUSION,INTEGRATED BUSINESS PROCESSES & SERVICES,33.91,STATIONERY & GENERAL SUPPLIES-OFFICE EXP,"STATIONERY, OFFICE SUPPLIES AND WRITING PAPER"
03 Jan 2015,PRIMARK STORES LTD,CHILDRENS SERVICES,57 LICHFIELD ROAD,14.00,RESIDENTS PERSONAL EXPENSES-ALLOWANCES TO S/S CLIENTS,CLOTHING STORES
03 Jan 2015,HOMELIVING,CHILDRENS SERVICES,57 LICHFIELD ROAD,12.99,RESIDENTS PERSONAL EXPENSES-ALLOWANCES TO S/S CLIENTS,HOME SUPPLY WAREHOUSE STORES
03 Jan 2015,AMAZON EU,CHILDRENS SERVICES,ADMINISTRATIVE SUPPLIES,22.32,STATIONERY & GENERAL SUPPLIES-OFFICE EXP,OTHER DIRECT MARKETING-OTHER DIRECT MARKETERS
03 Jan 2015,W M MORRISON PLC,CHILDRENS SERVICES,"43A HILTON ROAD, WILLENHALL",18.66,GENERAL PROVISIONS-PROVISIONS,GROCERY STORES AND SUPERMARKETS
03 Jan 2015,W M MORRISON PLC,CHILDRENS SERVICES,"43A HILTON ROAD, WILLENHALL",68.24,GENERAL PROVISIONS-PROVISIONS,GROCERY STORES AND SUPERMARKETS
03 Jan 2015,AMAZON EU,NEIGHBOURHOOD SERVICES,LIBRARY STOCK AND PERFORMANCE,8.74,LIBRARY BOOKS,OTHER DIRECT MARKETING-OTHER DIRECT MARKETERS
03 Jan 2015,WM MORRISON FOOD.COM,CHILDRENS SERVICES,BLUEBELLS,28.74,GENERAL PROVISIONS-PROVISIONS,GROCERY STORES AND SUPERMARKETS
03 Jan 2015,WM MORRISON FOOD.COM,CHILDRENS SERVICES,BLUEBELLS,83.78,GENERAL PROVISIONS-PROVISIONS,GROCERY STORES AND SUPERMARKETS
04 Jan 2015,FARMFOODS- BLOXWIC,CHILDRENS SERVICES,ENRICHMENT,15.45,NEW-FURNITURE & EQUIPMENT,GROCERY STORES AND SUPERMARKETS
04 Jan 2015,MATALAN,CHILDRENS SERVICES,ADMINISTRATIVE SUPPLIES,49.00,STATIONERY & GENERAL SUPPLIES-OFFICE EXP,MENS AND WOMENS CLOTHING STORES
04 Jan 2015,BURSHA CONVENIENCE,CHILDRENS SERVICES,FOOD TECHNOLOGY,5.76,GENERAL MATERIALS,DAIRY PRODUCTS STORES
05 Jan 2015,ASDA HOME SHOPPING,CHILDRENS SERVICES,"CLUSTER 1 BROWNHILLS,GREENFIELDS,PELSALL",7.50,FOOD AND BEVERAGES-PROVISIONS,GROCERY STORES AND SUPERMARKETS
05 Jan 2015,ASDA HOME SHOPPING,CHILDRENS SERVICES,"CLUSTER 1 BROWNHILLS,GREENFIELDS,PELSALL",34.88,FOOD AND BEVERAGES-PROVISIONS,GROCERY STORES AND SUPERMARKETS
05 Jan 2015,ASDA HOME SHOPPING,CHILDRENS SERVICES,"CLUSTER 3 BLOXWICH,BLAKENALL,HATHERTON,E STAMMERS",27.15,FOOD AND BEVERAGES-PROVISIONS,GROCERY STORES AND SUPERMARKETS
05 Jan 2015,ASDA HOME SHOPPING,CHILDRENS SERVICES,"CLUSTER 3 BLOXWICH,BLAKENALL,HATHERTON,E STAMMERS",9.00,FOOD AND BEVERAGES-PROVISIONS,GROCERY STORES AND SUPERMARKETS
05 Jan 2015,TRAINLINE.COM,RESOURCES,E-LEARNING,12.09,OFFICER/STAFF-PUBLIC TRANSPORT,PASSENGER RAILWAYS
05 Jan 2015,PARTRIDGE & PRINT,CHILDRENS SERVICES,RECRUITMENT TEAM,78.60,REFERENCE BOOKS,OTHER SCHOOLS AND EDUCATIONAL SERVICES
05 Jan 2015,OFSTED INTERNET,CHILDRENS SERVICES,"CLUSTER 1 BROWNHILLS,GREENFIELDS,PELSALL",220.00,PUBLICATIONS/ORGANISATIONS-SUBSCRIPTIONS,GOVERNMENT SERVICES
05 Jan 2015,W M MORRISONS.COM,CHILDRENS SERVICES,"CLUSTER 6 BENTLEY,LIGHTHOUSE,FIBBERSLEY",9.42,FOOD AND BEVERAGES-PROVISIONS,GROCERY STORES AND SUPERMARKETS
05 Jan 2015,W M MORRISONS.COM,CHILDRENS SERVICES,"CLUSTER 6 BENTLEY,LIGHTHOUSE,FIBBERSLEY",31.60,FOOD AND BEVERAGES-PROVISIONS,GROCERY STORES AND SUPERMARKETS
05 Jan 2015,ARGOS RETAIL GROUP,CHILDRENS SERVICES,EAL,199.95,GENERAL MATERIALS,DISCOUNT STORES
05 Jan 2015,CO-OPERATIVE FOOD,CHILDRENS SERVICES,"CLUSTER 1 BROWNHILLS,GREENFIELDS,PELSALL",1.45,FOOD AND BEVERAGES-PROVISIONS,GROCERY STORES AND SUPERMARKETS
05 Jan 2015,AMAZON *MKTPLCE EU-UK,CHILDRENS SERVICES,GENERAL RESOURCES & MISC,24.60,GENERAL MATERIALS,BOOK STORES
05 Jan 2015,AMAZON *MKTPLCE EU-UK,CHILDRENS SERVICES,ADMINISTRATIVE SUPPLIES,6.98,GENERAL MATERIALS,BOOK STORES
05 Jan 2015,ASDA HOME SHOPPING,CHILDRENS SERVICES,ALUMWELL NURSERY,1.78,GENERAL MATERIALS,GROCERY STORES AND SUPERMARKETS
05 Jan 2015,ASDA HOME SHOPPING,CHILDRENS SERVICES,ALUMWELL NURSERY,39.42,FOOD AND BEVERAGES-PROVISIONS,GROCERY STORES AND SUPERMARKETS
05 Jan 2015,ASDA HOME SHOPPING,CHILDRENS SERVICES,CLUSTER 4 ALUMWELL & BIRCHILLS,9.45,FOOD AND BEVERAGES-PROVISIONS,GROCERY STORES AND SUPERMARKETS
05 Jan 2015,ASDA HOME SHOPPING,CHILDRENS SERVICES,ALUMWELL NURSERY,21.11,CLEANING MATERIALS,GROCERY STORES AND SUPERMARKETS
05 Jan 2015,99P STORES LTD,CHILDRENS SERVICES,GENERAL RESOURCES,16.83,GENERAL MATERIALS,GROCERY STORES AND SUPERMARKETS
05 Jan 2015,GL-ASSESMENT.CO.UK,CHILDRENS SERVICES,SEN,28.80,MISCELLANEOUS SUPPLIES,BOOK STORES
05 Jan 2015,AMAZON EU,CHILDRENS SERVICES,VIRTUAL SCHOOL,19.20,STATIONERY & GENERAL SUPPLIES-OFFICE EXP,OTHER DIRECT MARKETING-OTHER DIRECT MARKETERS
05 Jan 2015,AMAZON *MKTPLCE EU-UK,CHILDRENS SERVICES,PUPIL REFERAL UNIT EXCLUSIONS,29.20,MISCELLANEOUS SUPPLIES,MISCELLANEOUS AND SPECIALTY RETAIL STORES
05 Jan 2015,PAYPAL,CHILDRENS SERVICES,SAFEGUARDING & FAMILY SUPPORT,128.00,BEDDING & LINEN-MATERIALS,OTHER CHEMICALS AND ALLIED PRODUCTS
05 Jan 2015,ASDA 4387,CHILDRENS SERVICES,SAFEGUARDING & FAMILY SUPPORT,36.95,BEDDING & LINEN-MATERIALS,GROCERY STORES AND SUPERMARKETS
05 Jan 2015,CO-OP GROUP 070342,CHILDRENS SERVICES,"43A HILTON ROAD, WILLENHALL",15.07,GENERAL PROVISIONS-PROVISIONS,GROCERY STORES AND SUPERMARKETS
05 Jan 2015,ASDA HOME SHOPPING,NEIGHBOURHOOD SERVICES,VP SCL VOCATIONAL & SUPPORTED LEARNING,367.67,CATERING,GROCERY STORES AND SUPERMARKETS
05 Jan 2015,ASDA HOME SHOPPING,NEIGHBOURHOOD SERVICES,VP SCL VOCATIONAL & SUPPORTED LEARNING,26.65,CATERING,GROCERY STORES AND SUPERMARKETS
05 Jan 2015,ASDA HOME SHOPPING,NEIGHBOURHOOD SERVICES,AP FINANCE & RESOURCES IT,4.00,CATERING,GROCERY STORES AND SUPERMARKETS
05 Jan 2015,ASDA HOME SHOPPING,NEIGHBOURHOOD SERVICES,VP SCL VOCATIONAL & SUPPORTED LEARNING,-1.00,CATERING,GROCERY STORES AND SUPERMARKETS
05 Jan 2015,TESCO STORES 6161,CHILDRENS SERVICES,57 LICHFIELD ROAD,3.29,GENERAL PROVISIONS-PROVISIONS,GROCERY STORES AND SUPERMARKETS
05 Jan 2015,MNA LTD CARDCHARGE,REGENERATION,DEVELOPMENT MANAGEMENT,72.00,PERIODICALS/MAGAZINES/NEWSPAPERS-SUBSCRIPTIONS,NEWS DEALERS AND NEWSSTANDS
05 Jan 2015,TRAINLINE.COM,NEIGHBOURHOOD SERVICES,LEISURE - MANAGEMENT AND ADMIN,367.40,OFFICER/STAFF-PUBLIC TRANSPORT,PASSENGER RAILWAYS
05 Jan 2015,PARENTPAY.COM,CHILDRENS SERVICES,57 LICHFIELD ROAD,7.94,GENERAL PROVISIONS-PROVISIONS,"COLLEGES, UNIVERSITIES, PROFESSIONAL SCHOOLS"
05 Jan 2015,123 REG R/T,RESOURCES,COMMUNICATIONS,14.26,COMPUTER EQUIPMENT AND SUPPLIES,DIRECT MARKETING CONTINUITY SUBSCRIPTION MERCHANTS
05 Jan 2015,WM MORRISON 063,CHILDRENS SERVICES,REDRUTH ROAD,10.65,GENERAL PROVISIONS-PROVISIONS,GROCERY STORES AND SUPERMARKETS
05 Jan 2015,WM MORRISON 063,CHILDRENS SERVICES,REDRUTH ROAD,39.42,GENERAL PROVISIONS-PROVISIONS,GROCERY STORES AND SUPERMARKETS
05 Jan 2015,CURRYS,NEIGHBOURHOOD SERVICES,DARLASTON LEISURE CENTRE,99.98,FURNITURE & EQUIPMENT,ELECTRONIC SALES
05 Jan 2015,DECATHLON,NEIGHBOURHOOD SERVICES,DARLASTON LEISURE CENTRE,23.98,FURNITURE & EQUIPMENT,SPORTING GOODS STORES
05 Jan 2015,THE TRAINLINE.COM,CHILDRENS SERVICES,GENERAL MANAGEMENT SUPPORT (INC LEGAL),6.10,OFFICER/STAFF-PUBLIC TRANSPORT,PASSENGER RAILWAYS
05 Jan 2015,THE TRAINLINE.COM,CHILDRENS SERVICES,GENERAL MANAGEMENT SUPPORT (INC LEGAL),6.10,OFFICER/STAFF-PUBLIC TRANSPORT,PASSENGER RAILWAYS
05 Jan 2015,THE TRAINLINE.COM,CHILDRENS SERVICES,UNIVERSAL EDUCATION CLIENT UNIT,6.11,OFFICER/STAFF-PUBLIC TRANSPORT,PASSENGER RAILWAYS
05 Jan 2015,THE TRAINLINE.COM,CHILDRENS SERVICES,GENERAL MANAGEMENT SUPPORT (INC LEGAL),143.65,OFFICER/STAFF-PUBLIC TRANSPORT,PASSENGER RAILWAYS
05 Jan 2015,THE TRAINLINE.COM,CHILDRENS SERVICES,GENERAL MANAGEMENT SUPPORT (INC LEGAL),143.65,OFFICER/STAFF-PUBLIC TRANSPORT,PASSENGER RAILWAYS
05 Jan 2015,THE TRAINLINE.COM,CHILDRENS SERVICES,UNIVERSAL EDUCATION CLIENT UNIT,143.65,OFFICER/STAFF-PUBLIC TRANSPORT,PASSENGER RAILWAYS
05 Jan 2015,LONDON MIDLAND TIC,CHILDRENS SERVICES,LOOKED AFTER CHILDRENS SOCIAL WORK TEAM,24.50,OFFICER/STAFF-PUBLIC TRANSPORT,PASSENGER RAILWAYS
05 Jan 2015,LONDON MIDLAND TIC,CHILDRENS SERVICES,TRANSITION AND LEAVING CARE,168.00,OFFICER/STAFF-PUBLIC TRANSPORT,PASSENGER RAILWAYS
05 Jan 2015,JESSOPS,NEIGHBOURHOOD SERVICES,NAG - ARTISTS RESIDENCIES,37.49,NEW-FURNITURE & EQUIPMENT,CAMERA AND PHOTOGRAPHIC SUPPLY STORES
05 Jan 2015,JESSOPS,NEIGHBOURHOOD SERVICES,NAG - ARTISTS RESIDENCIES,333.98,FURNITURE & EQUIPMENT,CAMERA AND PHOTOGRAPHIC SUPPLY STORES
05 Jan 2015,IKEA SACAT,NEIGHBOURHOOD SERVICES,NAG - TEMPORARY EXHIBITIONS,40.00,NEW-FURNITURE & EQUIPMENT,MISCELLANEOUS HOUSE FURNISHING SPECIALTY SHOPS
05 Jan 2015,WM MORRISON FOOD.COM,CHILDRENS SERVICES,CLUSTER 5 DARLASTON,32.64,GENERAL PROVISIONS-PROVISIONS,GROCERY STORES AND SUPERMARKETS
05 Jan 2015,WM MORRISON FOOD.COM,CHILDRENS SERVICES,CLUSTER 5 DARLASTON,215.28,FOOD AND BEVERAGES-PROVISIONS,GROCERY STORES AND SUPERMARKETS
05 Jan 2015,ASDA SUPERSTORE,CHILDRENS SERVICES,"CLUSTER 3 BLOXWICH,BLAKENALL,HATHERTON,E STAMMERS",14.12,FOOD AND BEVERAGES-PROVISIONS,GROCERY STORES AND SUPERMARKETS
05 Jan 2015,AMAZON *MKTPLCE EU-UK,CHILDRENS SERVICES,PROJECT BASED LEARNING,8.22,LIBRARY BOOKS,BOOK STORES
05 Jan 2015,AMAZON *MKTPLCE EU-UK,CHILDRENS SERVICES,PROJECT BASED LEARNING,31.68,LIBRARY BOOKS,BOOK STORES
05 Jan 2015,A F BLAKEMORE & SON LTD,CHILDRENS SERVICES,INFORMATION SERVICES,-2.00,FOOD AND BEVERAGES-PROVISIONS,GROCERY STORES AND SUPERMARKETS
05 Jan 2015,BORSHCH LIMITED,RESOURCES,WALSALL CRISIS SUPPORT SCHEME,200.00,CRISIS SUPPORT PAYMENTS,ELECTRONIC SALES
05 Jan 2015,TESCO STORES 6161,RESOURCES,WALSALL CRISIS SUPPORT SCHEME,3.63,CRISIS SUPPORT PAYMENTS,GROCERY STORES AND SUPERMARKETS
05 Jan 2015,BORSHCH LIMITED,RESOURCES,WALSALL CRISIS SUPPORT SCHEME,190.00,CRISIS SUPPORT PAYMENTS,ELECTRONIC SALES
05 Jan 2015,BORSHCH LIMITED,RESOURCES,WALSALL CRISIS SUPPORT SCHEME,195.00,CRISIS SUPPORT PAYMENTS,ELECTRONIC SALES
05 Jan 2015,BORSHCH LIMITED,RESOURCES,WALSALL CRISIS SUPPORT SCHEME,580.00,CRISIS SUPPORT PAYMENTS,ELECTRONIC SALES
05 Jan 2015,BORSHCH LIMITED,RESOURCES,WALSALL CRISIS SUPPORT SCHEME,320.00,CRISIS SUPPORT PAYMENTS,ELECTRONIC SALES
05 Jan 2015,DOMESTIC HEROES LTD,RESOURCES,WALSALL CRISIS SUPPORT SCHEME,46.13,CRISIS SUPPORT PAYMENTS,HOUSEHOLD APPLIANCE STORES
05 Jan 2015,BORSHCH LIMITED,RESOURCES,WALSALL CRISIS SUPPORT SCHEME,270.00,CRISIS SUPPORT PAYMENTS,ELECTRONIC SALES
05 Jan 2015,WWW.GIROFOOD.COM,NEIGHBOURHOOD SERVICES,TOWN HALL RESTAURANT BISTRO,847.85,DISPOSABLES-PROVISIONS,WHOLESALE CLUBS
05 Jan 2015,WWW.GIROFOOD.COM,NEIGHBOURHOOD SERVICES,CA JOSEPH LECKIE COMMUNITY TECHNOLOGY COLLEGE,319.66,DISPOSABLES-PROVISIONS,WHOLESALE CLUBS
05 Jan 2015,WWW.GIROFOOD.COM,NEIGHBOURHOOD SERVICES,CA ELMORE GREEN PRIMARY SCHOOL,171.94,DISPOSABLES-PROVISIONS,WHOLESALE CLUBS
05 Jan 2015,WELSH BROS FOODS LTD,NEIGHBOURHOOD SERVICES,CA OLD HALL SPECIAL SCHOOL,76.12,MEAT-PROVISIONS,FREEZER AND LOCKER MEAT PROVISIONERS
05 Jan 2015,ARTHUR BRETT CATER,NEIGHBOURHOOD SERVICES,CA OAKWOOD SPECIAL SCHOOL,38.34,FRUIT & VEGETABLES OTHER-PROVISIONS,MISCELLANEOUS FOOD STORES & CONVENIENCE STORES
05 Jan 2015,WELSH BROS FOODS LTD,NEIGHBOURHOOD SERVICES,CA COOPER JORDAN CE PRIMARY SCHOOL,124.00,MEAT-PROVISIONS,FREEZER AND LOCKER MEAT PROVISIONERS
05 Jan 2015,WELSH BROS FOODS LTD,NEIGHBOURHOOD SERVICES,CA RUSHALL JMI SCHOOL,62.17,MEAT-PROVISIONS,FREEZER AND LOCKER MEAT PROVISIONERS
05 Jan 2015,WELSH BROS FOODS LTD,NEIGHBOURHOOD SERVICES,CA ST JOHNS C.E. PRIMARY SCHOOL,182.65,MEAT-PROVISIONS,FREEZER AND LOCKER MEAT PROVISIONERS
05 Jan 2015,BLAKEMORE FOODSERVICE,NEIGHBOURHOOD SERVICES,CA WATLING STREET PRIMARY SCHOOL,20.05,FROZEN FOODS-PROVISIONS,CATERERS
05 Jan 2015,BLAKEMORE FOODSERVICE,NEIGHBOURHOOD SERVICES,CA WATLING STREET PRIMARY SCHOOL,8.07,FROZEN FOODS-PROVISIONS,CATERERS
05 Jan 2015,ARTHUR BRETT CATER,NEIGHBOURHOOD SERVICES,CA WATLING STREET PRIMARY SCHOOL,143.35,FRUIT & VEGETABLES OTHER-PROVISIONS,MISCELLANEOUS FOOD STORES & CONVENIENCE STORES
05 Jan 2015,WELSH BROS FOODS LTD,NEIGHBOURHOOD SERVICES,CA WATLING STREET PRIMARY SCHOOL,154.89,MEAT-PROVISIONS,FREEZER AND LOCKER MEAT PROVISIONERS
05 Jan 2015,WELSH BROS FOODS LTD,NEIGHBOURHOOD SERVICES,CA LEIGHSWOOD PRIMARY SCHOOL,122.21,MEAT-PROVISIONS,FREEZER AND LOCKER MEAT PROVISIONERS
05 Jan 2015,ARTHUR BRETT CATER,NEIGHBOURHOOD SERVICES,CA LEIGHSWOOD PRIMARY SCHOOL,140.13,FRUIT & VEGETABLES OTHER-PROVISIONS,MISCELLANEOUS FOOD STORES & CONVENIENCE STORES
05 Jan 2015,WELSH BROS FOODS LTD,NEIGHBOURHOOD SERVICES,CA FIBBERSLEY PARK PRIMARY SCHOOL,114.89,MEAT-PROVISIONS,FREEZER AND LOCKER MEAT PROVISIONERS
05 Jan 2015,OFFICE DEPOT,CHILDRENS SERVICES,CHILD PROTECTION & REVIEW SERVICES,274.18,STATIONERY & GENERAL SUPPLIES-OFFICE EXP,"STATIONERY, OFFICE SUPPLIES AND WRITING PAPER"
05 Jan 2015,OFFICE DEPOT,CHILDRENS SERVICES,CHILD PROTECTION & REVIEW SERVICES,138.28,STATIONERY & GENERAL SUPPLIES-OFFICE EXP,"STATIONERY, OFFICE SUPPLIES AND WRITING PAPER"
05 Jan 2015,WELSH BROS FOODS LTD,NEIGHBOURHOOD SERVICES,CA BUSILL JONES PRIMARY SCHOOL,376.49,MEAT-PROVISIONS,FREEZER AND LOCKER MEAT PROVISIONERS
05 Jan 2015,WELSH BROS FOODS LTD,NEIGHBOURHOOD SERVICES,CA TOWN HALL RESTAURANT - CATERING,133.13,MEAT-PROVISIONS,FREEZER AND LOCKER MEAT PROVISIONERS
05 Jan 2015,WELSH BROS FOODS LTD,NEIGHBOURHOOD SERVICES,TOWN HALL RESTAURANT BISTRO,38.99,MEAT-PROVISIONS,FREEZER AND LOCKER MEAT PROVISIONERS
05 Jan 2015,ARTHUR BRETT CATER,NEIGHBOURHOOD SERVICES,CA ST ANNES CATHOLIC PRIMARY SCHOOL,73.09,FRUIT & VEGETABLES OTHER-PROVISIONS,MISCELLANEOUS FOOD STORES & CONVENIENCE STORES
05 Jan 2015,WELSH BROS FOODS LTD,NEIGHBOURHOOD SERVICES,CA ST ANNES CATHOLIC PRIMARY SCHOOL,117.21,MEAT-PROVISIONS,FREEZER AND LOCKER MEAT PROVISIONERS
05 Jan 2015,WELSH BROS FOODS LTD,NEIGHBOURHOOD SERVICES,CA RADLEYS PRIMARY SCHOOL,283.83,MEAT-PROVISIONS,FREEZER AND LOCKER MEAT PROVISIONERS
05 Jan 2015,ARTHUR BRETT CATER,NEIGHBOURHOOD SERVICES,CA BLUE COAT C OF E PERFORMING ARTS COLLEGE,60.08,FRUIT & VEGETABLES OTHER-PROVISIONS,MISCELLANEOUS FOOD STORES & CONVENIENCE STORES
05 Jan 2015,ARTHUR BRETT CATER,NEIGHBOURHOOD SERVICES,CA COOPER JORDAN CE PRIMARY SCHOOL,125.30,FRUIT & VEGETABLES OTHER-PROVISIONS,MISCELLANEOUS FOOD STORES & CONVENIENCE STORES
05 Jan 2015,WELSH BROS FOODS LTD,NEIGHBOURHOOD SERVICES,CA ST MICHAELS C.E. PRIMARY SCHOOL,121.30,MEAT-PROVISIONS,FREEZER AND LOCKER MEAT PROVISIONERS
05 Jan 2015,ARTHUR BRETT CATER,NEIGHBOURHOOD SERVICES,CA ST MICHAELS C.E. PRIMARY SCHOOL,62.43,FRUIT & VEGETABLES OTHER-PROVISIONS,MISCELLANEOUS FOOD STORES & CONVENIENCE STORES
05 Jan 2015,ARTHUR BRETT CATER,NEIGHBOURHOOD SERVICES,CA MEADOW VIEW JMI PRIMARY SCHOOL,92.74,FRUIT & VEGETABLES OTHER-PROVISIONS,MISCELLANEOUS FOOD STORES & CONVENIENCE STORES
05 Jan 2015,WELSH BROS FOODS LTD,NEIGHBOURHOOD SERVICES,CA ELMORE GREEN PRIMARY SCHOOL,265.42,MEAT-PROVISIONS,FREEZER AND LOCKER MEAT PROVISIONERS
05 Jan 2015,ARTHUR BRETT CATER,NEIGHBOURHOOD SERVICES,CA LINDENS PRIMARY SCHOOL,117.56,FRUIT & VEGETABLES OTHER-PROVISIONS,MISCELLANEOUS FOOD STORES & CONVENIENCE STORES
05 Jan 2015,WELSH BROS FOODS LTD,NEIGHBOURHOOD SERVICES,CA BEACON PRIMARY SCHOOL,305.46,MEAT-PROVISIONS,FREEZER AND LOCKER MEAT PROVISIONERS
06 Jan 2015,EBUYER (UK) LTD,CHILDRENS SERVICES,INFORMATION SERVICES,307.25,FURNITURE & EQUIPMENT,HOUSEHOLD APPLIANCE STORES
06 Jan 2015,AMAZON *MKTPLCE EU-UK,CHILDRENS SERVICES,PROJECT BASED LEARNING,2.81,LIBRARY BOOKS,BOOK STORES
06 Jan 2015,AMAZON *MKTPLCE EU-UK,CHILDRENS SERVICES,PROJECT BASED LEARNING,9.05,LIBRARY BOOKS,BOOK STORES
06 Jan 2015,AMAZON *MKTPLCE EU-UK,CHILDRENS SERVICES,PROJECT BASED LEARNING,8.98,LIBRARY BOOKS,BOOK STORES
06 Jan 2015,AMAZON *MKTPLCE EU-UK,CHILDRENS SERVICES,PROJECT BASED LEARNING,9.01,LIBRARY BOOKS,BOOK STORES
06 Jan 2015,AMAZON *MKTPLCE EU-UK,CHILDRENS SERVICES,PROJECT BASED LEARNING,14.59,LIBRARY BOOKS,BOOK STORES
06 Jan 2015,AMAZON *MKTPLCE EU-UK,CHILDRENS SERVICES,ADMINISTRATIVE SUPPLIES,24.94,FURNITURE & EQUIPMENT,BOOK STORES
06 Jan 2015,WILKO RETAIL LIMIT,NEIGHBOURHOOD SERVICES,ARBORETUM,10.00,FURNITURE & EQUIPMENT,HOUSEHOLD APPLIANCE STORES
06 Jan 2015,RYMAN,NEIGHBOURHOOD SERVICES,ARBORETUM,4.99,STATIONERY & GENERAL SUPPLIES-OFFICE EXP,"OFFICE, SCHOOL SUPPLY, AND STATIONERY STORES"
06 Jan 2015,EXPEDIA 17769499147,CHILDRENS SERVICES,CHILDRENS RESIDENTIAL SVCS,442.00,EXTERNAL TRAINING,TRAVEL AGENCIES AND TOUR OPERATORS
06 Jan 2015,ASDA,RESOURCES,LINK SERVICE,6.63,FOOD AND BEVERAGES-PROVISIONS,GROCERY STORES AND SUPERMARKETS
06 Jan 2015,CREATION CLIMBING,CHILDRENS SERVICES,REWARDS,60.00,GENERAL MATERIALS,OTHER RECREATION SERVICES
06 Jan 2015,PAYPAL,RESOURCES,COMMUNICATIONS,26.40,SOFTWARE ACQ-COMPUTER,COMPUTER SOFTWARE STORES
06 Jan 2015,MAUDESPORT LIMITED,NEIGHBOURHOOD SERVICES,OAK PARK,127.20,FURNITURE & EQUIPMENT,SPORTING GOODS STORES
06 Jan 2015,POUNDLAND LTD 1055,CHILDRENS SERVICES,57 LICHFIELD ROAD,15.00,RESIDENTS PERSONAL EXPENSES-ALLOWANCES TO S/S CLIENTS,DISCOUNT STORES
06 Jan 2015,LINENS DIRECT LTD,CHILDRENS SERVICES,57 LICHFIELD ROAD,22.97,FURNITURE & EQUIPMENT,"DRAPERY, UPHOLSTERY, AND WINDOW COVERINGS STORES"
06 Jan 2015,WWW.SOLACE.ORG.UK,REGENERATION,REGENERATION MANAGEMENT,203.00,PUBLICATIONS/ORGANISATIONS-SUBSCRIPTIONS,"ORGANIZATIONS, MEMBERSHIP"
06 Jan 2015,TESCO STORES 6161,CHILDRENS SERVICES,PARENTING TEAM,12.60,FOOD AND BEVERAGES-PROVISIONS,GROCERY STORES AND SUPERMARKETS
06 Jan 2015,TESCO STORES 6161,CHILDRENS SERVICES,PARENTING TEAM,12.73,FOOD AND BEVERAGES-PROVISIONS,GROCERY STORES AND SUPERMARKETS
06 Jan 2015,SMBC REVENUES - C,CHILDRENS SERVICES,LOOKED AFTER CHILDRENS SOCIAL WORK TEAM,15.25,CONSULTANTS FEES,"CONSULTING, MANAGEMENT, AND PR SERVICES"
06 Jan 2015,TIMPSON LTD,NEIGHBOURHOOD SERVICES,WALSALL GALA CENTRE,20.00,GENERAL MATERIALS,"HAT CLEANING SHOPS, SHOE REPAIR SHOPS, SHOE SHINE "
06 Jan 2015,PAYPAL,CHILDRENS SERVICES,SAFEGUARDING & FAMILY SUPPORT,128.00,BEDDING & LINEN-MATERIALS,OTHER CHEMICALS AND ALLIED PRODUCTS
06 Jan 2015,ASDA 4387,CHILDRENS SERVICES,SAFEGUARDING & FAMILY SUPPORT,36.70,BEDDING & LINEN-MATERIALS,GROCERY STORES AND SUPERMARKETS
06 Jan 2015,WILKO.COM,CHILDRENS SERVICES,SAFEGUARDING & FAMILY SUPPORT,8.25,BEDDING & LINEN-MATERIALS,HOUSEHOLD APPLIANCE STORES
06 Jan 2015,COLOUR DATA UK,CHILDRENS SERVICES,ICT LEARNING RESOURCES,88.74,GENERAL MATERIALS,MISCELLANEOUS PUBLISHING AND PRINTING
06 Jan 2015,WWW.SAFETYFIRSTAID.CO.,CHILDRENS SERVICES,ADMINISTRATIVE SUPPLIES,55.20,STATIONERY & GENERAL SUPPLIES-OFFICE EXP,OTHER INDUSTRIAL SUPPLIES
06 Jan 2015,AMAZON EU,CHILDRENS SERVICES,SHEPWELL GREEN PUPIL REFERAL UNIT,164.55,LIBRARY BOOKS,OTHER DIRECT MARKETING-OTHER DIRECT MARKETERS
06 Jan 2015,AMAZON EU,RESOURCES,SIT-INFRASTRUCTURE,11.14,COMPUTER EQUIPMENT AND SUPPLIES,OTHER DIRECT MARKETING-OTHER DIRECT MARKETERS
06 Jan 2015,TRAVEL WEST MIDLAN,CHILDRENS SERVICES,BURSARY,274.50,TRANSPORT OTHER-ASSISTANCE TO STUDENTS,BUS LINES
06 Jan 2015,PAYPAL,CHILDRENS SERVICES,CITIZENSHIP,39.00,PUBLICATIONS/ORGANISATIONS-SUBSCRIPTIONS,"SCHOOLS, ELEMENTARY AND SECONDARY"
06 Jan 2015,ASDA HOME SHOPPING,CHILDRENS SERVICES,STANLEYS NURSERY,8.02,FOOD AND BEVERAGES-PROVISIONS,GROCERY STORES AND SUPERMARKETS
06 Jan 2015,ASDA HOME SHOPPING,CHILDRENS SERVICES,STANLEYS NURSERY,47.52,FOOD AND BEVERAGES-PROVISIONS,GROCERY STORES AND SUPERMARKETS
06 Jan 2015,INVESTINTECH.COM INC,CHILDRENS SERVICES,ADMINISTRATIVE SUPPLIES,33.61,GENERAL MATERIALS,COMPUTER SOFTWARE STORES
06 Jan 2015,AMAZON *MKTPLCE EU-UK,CHILDRENS SERVICES,GENERAL RESOURCES & MISC,32.85,GENERAL MATERIALS,BOOK STORES
06 Jan 2015,BRUIL & VAN DE STAAIJ,NEIGHBOURHOOD SERVICES,NAG - TEMPORARY EXHIBITIONS,22.27,LIBRARY BOOKS,"BOOKS, PERIODICALS AND NEWSPAPERS"
06 Jan 2015,ASDA HOME SHOPPING,CHILDRENS SERVICES,"CLUSTER 1 BROWNHILLS,GREENFIELDS,PELSALL",45.44,FOOD AND BEVERAGES-PROVISIONS,GROCERY STORES AND SUPERMARKETS
06 Jan 2015,ASDA HOME SHOPPING,CHILDRENS SERVICES,"CLUSTER 1 BROWNHILLS,GREENFIELDS,PELSALL",19.78,FOOD AND BEVERAGES-PROVISIONS,GROCERY STORES AND SUPERMARKETS
06 Jan 2015,WWW.BAAF.ORG.UK,CHILDRENS SERVICES,ADOPTION TEAM,24.00,STATIONERY & GENERAL SUPPLIES-OFFICE EXP,DIRECT MARKETING COMBINATION CATALOG
06 Jan 2015,WWW.CARTRIDGESAVE.CO.U,CHILDRENS SERVICES,ADOPTION TEAM,619.89,STATIONERY & GENERAL SUPPLIES-OFFICE EXP,"OFFICE, SCHOOL SUPPLY, AND STATIONERY STORES"
06 Jan 2015,TESCO STORES 6161,CHILDRENS SERVICES,FOOD TECHNOLOGY/HOSPITALITY,5.70,GENERAL MATERIALS,GROCERY STORES AND SUPERMARKETS
06 Jan 2015,TESCO STORES 6161,CHILDRENS SERVICES,FOOD TECHNOLOGY/HOSPITALITY,19.33,GENERAL MATERIALS,GROCERY STORES AND SUPERMARKETS
06 Jan 2015,TESCO STORES 6161,CHILDRENS SERVICES,ELMWOOD SECONDARY SPECIAL SCHOOL,12.20,BREAD-GENERAL-PROVISIONS,GROCERY STORES AND SUPERMARKETS
06 Jan 2015,TRAINLINE.COM,NEIGHBOURHOOD SERVICES,VP SCL ESSENTIAL SKILLS S4L IT ESOL,25.96,OFFICER/STAFF-PUBLIC TRANSPORT,PASSENGER RAILWAYS
06 Jan 2015,W M MORRISON PLC,CHILDRENS SERVICES,"43A HILTON ROAD, WILLENHALL",21.31,GENERAL PROVISIONS-PROVISIONS,GROCERY STORES AND SUPERMARKETS
06 Jan 2015,ASDA SUPERSTORE,CHILDRENS SERVICES,MARY ELLIOTT SPECIAL SCHOOL,7.97,BREAD-GENERAL-PROVISIONS,GROCERY STORES AND SUPERMARKETS
06 Jan 2015,CRAZY HOUSE (BROWNHILL,RESOURCES,WALSALL CRISIS SUPPORT SCHEME,105.00,CRISIS SUPPORT PAYMENTS,"EQUIPMENT, FURNITURE, AND HOME FURNISHINGS STORES "
06 Jan 2015,CRAZY HOUSE (BROWNHILL,RESOURCES,WALSALL CRISIS SUPPORT SCHEME,55.00,CRISIS SUPPORT PAYMENTS,"EQUIPMENT, FURNITURE, AND HOME FURNISHINGS STORES "
06 Jan 2015,TESCO STORES 6161,RESOURCES,WALSALL CRISIS SUPPORT SCHEME,26.08,CRISIS SUPPORT PAYMENTS,GROCERY STORES AND SUPERMARKETS
06 Jan 2015,CRAZY HOUSE (BROWNHILL,RESOURCES,WALSALL CRISIS SUPPORT SCHEME,155.00,CRISIS SUPPORT PAYMENTS,"EQUIPMENT, FURNITURE, AND HOME FURNISHINGS STORES "
06 Jan 2015,WWW.GIROFOOD.COM,NEIGHBOURHOOD SERVICES,TOWN HALL RESTAURANT BISTRO,124.77,DISPOSABLES-PROVISIONS,WHOLESALE CLUBS
06 Jan 2015,WWW.GIROFOOD.COM,NEIGHBOURHOOD SERVICES,CA ST ANNES CATHOLIC PRIMARY SCHOOL,37.82,DISPOSABLES-PROVISIONS,WHOLESALE CLUBS
06 Jan 2015,ARTHUR BRETT CATER,NEIGHBOURHOOD SERVICES,CA ST GILES C.E. PRIMARY SCHOOL,38.57,FRUIT & VEGETABLES OTHER-PROVISIONS,MISCELLANEOUS FOOD STORES & CONVENIENCE STORES
06 Jan 2015,ARTHUR BRETT CATER,NEIGHBOURHOOD SERVICES,CA BEACON PRIMARY SCHOOL,307.60,FRUIT & VEGETABLES OTHER-PROVISIONS,MISCELLANEOUS FOOD STORES & CONVENIENCE STORES
06 Jan 2015,THE TRAINLINE.COM,RESOURCES,SERVICE DELIVERY TEAM,94.35,OFFICER/STAFF-PUBLIC TRANSPORT,PASSENGER RAILWAYS
06 Jan 2015,ARTHUR BRETT CATER,NEIGHBOURHOOD SERVICES,CA GREEN ROCK PRIMARY,78.21,FRUIT & VEGETABLES OTHER-PROVISIONS,MISCELLANEOUS FOOD STORES & CONVENIENCE STORES
06 Jan 2015,ARTHUR BRETT CATER,NEIGHBOURHOOD SERVICES,CA LITTLE BLOXWICH CE PRIMARY SCHOOL,41.30,FRUIT & VEGETABLES OTHER-PROVISIONS,MISCELLANEOUS FOOD STORES & CONVENIENCE STORES
06 Jan 2015,OFFICE DEPOT,REGENERATION,CENTRALISED STATIONERY,1.98,STATIONERY & GENERAL SUPPLIES-OFFICE EXP,"STATIONERY, OFFICE SUPPLIES AND WRITING PAPER"
06 Jan 2015,ARTHUR BRETT CATER,NEIGHBOURHOOD SERVICES,CA POOL HAYES PRIMARY SCHOOL,51.22,FRUIT & VEGETABLES OTHER-PROVISIONS,MISCELLANEOUS FOOD STORES & CONVENIENCE STORES
06 Jan 2015,SMART FOOD UK LIMITED,NEIGHBOURHOOD SERVICES,CA ELMORE GREEN PRIMARY SCHOOL,382.00,FROZEN FOODS-PROVISIONS,CATERERS
06 Jan 2015,ARTHUR BRETT CATER,NEIGHBOURHOOD SERVICES,CA OLD HALL SPECIAL SCHOOL,35.17,FRUIT & VEGETABLES OTHER-PROVISIONS,MISCELLANEOUS FOOD STORES & CONVENIENCE STORES
06 Jan 2015,ARTHUR BRETT CATER,NEIGHBOURHOOD SERVICES,CA TOWN HALL RESTAURANT - CATERING,21.45,FRUIT & VEGETABLES OTHER-PROVISIONS,MISCELLANEOUS FOOD STORES & CONVENIENCE STORES
06 Jan 2015,ARTHUR BRETT CATER,NEIGHBOURHOOD SERVICES,TOWN HALL RESTAURANT BISTRO,34.61,FRUIT & VEGETABLES OTHER-PROVISIONS,MISCELLANEOUS FOOD STORES & CONVENIENCE STORES
06 Jan 2015,ARTHUR BRETT CATER,NEIGHBOURHOOD SERVICES,CA JANE LANE SPECIAL SCHOOL,59.74,FRUIT & VEGETABLES OTHER-PROVISIONS,MISCELLANEOUS FOOD STORES & CONVENIENCE STORES
06 Jan 2015,ARTHUR BRETT CATER,NEIGHBOURHOOD SERVICES,CA LEAMORE PRIMARY SCHOOL,49.66,FRUIT & VEGETABLES OTHER-PROVISIONS,MISCELLANEOUS FOOD STORES & CONVENIENCE STORES
06 Jan 2015,ARTHUR BRETT CATER,NEIGHBOURHOOD SERVICES,CA RADLEYS PRIMARY SCHOOL,71.40,FRUIT & VEGETABLES OTHER-PROVISIONS,MISCELLANEOUS FOOD STORES & CONVENIENCE STORES
06 Jan 2015,ARTHUR BRETT CATER,NEIGHBOURHOOD SERVICES,CA JOSEPH LECKIE COMMUNITY TECHNOLOGY COLLEGE,182.45,FRUIT & VEGETABLES OTHER-PROVISIONS,MISCELLANEOUS FOOD STORES & CONVENIENCE STORES
06 Jan 2015,ARTHUR BRETT CATER,NEIGHBOURHOOD SERVICES,CA ELMORE GREEN PRIMARY SCHOOL,120.13,FRUIT & VEGETABLES OTHER-PROVISIONS,MISCELLANEOUS FOOD STORES & CONVENIENCE STORES
06 Jan 2015,ARTHUR BRETT CATER,NEIGHBOURHOOD SERVICES,CA ABBEY PRIMARY SCHOOL,57.72,FRUIT & VEGETABLES OTHER-PROVISIONS,MISCELLANEOUS FOOD STORES & CONVENIENCE STORES
06 Jan 2015,ARTHUR BRETT CATER,NEIGHBOURHOOD SERVICES,CA BUSILL JONES PRIMARY SCHOOL,121.83,FRUIT & VEGETABLES OTHER-PROVISIONS,MISCELLANEOUS FOOD STORES & CONVENIENCE STORES
06 Jan 2015,SMART FOOD UK LIMITED,NEIGHBOURHOOD SERVICES,CA BUSILL JONES PRIMARY SCHOOL,191.00,FROZEN FOODS-PROVISIONS,CATERERS
06 Jan 2015,ARTHUR BRETT CATER,NEIGHBOURHOOD SERVICES,CA BLAKENALL HEATH JUNIOR SCHOOL,53.47,FRUIT & VEGETABLES OTHER-PROVISIONS,MISCELLANEOUS FOOD STORES & CONVENIENCE STORES
06 Jan 2015,ARTHUR BRETT CATER,NEIGHBOURHOOD SERVICES,CA BUSILL JONES PRIMARY SCHOOL,13.65,FRUIT & VEGETABLES OTHER-PROVISIONS,MISCELLANEOUS FOOD STORES & CONVENIENCE STORES
06 Jan 2015,ARTHUR BRETT CATER,NEIGHBOURHOOD SERVICES,CA BROWNHILLS WEST PRIMARY SCHOOL,81.03,FRUIT & VEGETABLES OTHER-PROVISIONS,MISCELLANEOUS FOOD STORES & CONVENIENCE STORES
06 Jan 2015,OFFICE DEPOT,REGENERATION,CENTRALISED STATIONERY,7.92,STATIONERY & GENERAL SUPPLIES-OFFICE EXP,"STATIONERY, OFFICE SUPPLIES AND WRITING PAPER"
06 Jan 2015,ARTHUR BRETT CATER,NEIGHBOURHOOD SERVICES,CA BIRCHILLS CE PRIMARY COMMUNITY SCHOOL,63.11,FRUIT & VEGETABLES OTHER-PROVISIONS,MISCELLANEOUS FOOD STORES & CONVENIENCE STORES
06 Jan 2015,ARTHUR BRETT CATER,NEIGHBOURHOOD SERVICES,CA BIRCHILLS CE PRIMARY COMMUNITY SCHOOL,24.32,FRUIT & VEGETABLES OTHER-PROVISIONS,MISCELLANEOUS FOOD STORES & CONVENIENCE STORES
06 Jan 2015,ARTHUR BRETT CATER,NEIGHBOURHOOD SERVICES,CA FIBBERSLEY PARK PRIMARY SCHOOL,123.53,FRUIT & VEGETABLES OTHER-PROVISIONS,MISCELLANEOUS FOOD STORES & CONVENIENCE STORES
06 Jan 2015,ARTHUR BRETT CATER,NEIGHBOURHOOD SERVICES,CA ST BERNADETTES CATHOLIC PRIMARY SCHOOL,34.04,FRUIT & VEGETABLES OTHER-PROVISIONS,MISCELLANEOUS FOOD STORES & CONVENIENCE STORES
06 Jan 2015,OFFICE DEPOT,SOCIAL CARE & INCLUSION,INTEGRATED BUSINESS PROCESSES & SERVICES,36.10,STATIONERY & GENERAL SUPPLIES-OFFICE EXP,"STATIONERY, OFFICE SUPPLIES AND WRITING PAPER"
06 Jan 2015,ARTHUR BRETT CATER,NEIGHBOURHOOD SERVICES,CA BLOXWICH C.E. JMI PRIMARY SCHOOL,78.37,FRUIT & VEGETABLES OTHER-PROVISIONS,MISCELLANEOUS FOOD STORES & CONVENIENCE STORES
06 Jan 2015,ARTHUR BRETT CATER,NEIGHBOURHOOD SERVICES,CA CALDMORE COMMUNITY PRIMARY SCHOOL,130.24,FRUIT & VEGETABLES OTHER-PROVISIONS,MISCELLANEOUS FOOD STORES & CONVENIENCE STORES
06 Jan 2015,ARTHUR BRETT CATER,NEIGHBOURHOOD SERVICES,CA CROFT COMMUNITY PRIMARY SCHOOL,69.73,FRUIT & VEGETABLES OTHER-PROVISIONS,MISCELLANEOUS FOOD STORES & CONVENIENCE STORES
06 Jan 2015,OFFICE DEPOT,CHILDRENS SERVICES,CHILDRENS RESIDENTIAL SVCS,100.38,STATIONERY & GENERAL SUPPLIES-OFFICE EXP,"STATIONERY, OFFICE SUPPLIES AND WRITING PAPER"
06 Jan 2015,ARTHUR BRETT CATER,NEIGHBOURHOOD SERVICES,CA WALSALL WOOD PRIMARY SCHOOL,36.05,FRUIT & VEGETABLES OTHER-PROVISIONS,MISCELLANEOUS FOOD STORES & CONVENIENCE STORES
06 Jan 2015,ARTHUR BRETT CATER,NEIGHBOURHOOD SERVICES,CA ST JOHNS C.E. PRIMARY SCHOOL,173.41,FRUIT & VEGETABLES OTHER-PROVISIONS,MISCELLANEOUS FOOD STORES & CONVENIENCE STORES
06 Jan 2015,ARTHUR BRETT CATER,NEIGHBOURHOOD SERVICES,CA ST FRANCIS CATHOLIC PRIMARY SCHOOL,58.24,FRUIT & VEGETABLES OTHER-PROVISIONS,MISCELLANEOUS FOOD STORES & CONVENIENCE STORES
06 Jan 2015,ARTHUR BRETT CATER,NEIGHBOURHOOD SERVICES,CA RUSHALL JMI SCHOOL,32.59,FRUIT & VEGETABLES OTHER-PROVISIONS,MISCELLANEOUS FOOD STORES & CONVENIENCE STORES
06 Jan 2015,ARTHUR BRETT CATER,NEIGHBOURHOOD SERVICES,CA ELMWOOD SPECIAL SCHOOL,42.92,FRUIT & VEGETABLES OTHER-PROVISIONS,MISCELLANEOUS FOOD STORES & CONVENIENCE STORES
06 Jan 2015,OFFICE DEPOT,NEIGHBOURHOOD SERVICES,LIBRARY OPERATIONS CENTRAL,697.88,STATIONERY & GENERAL SUPPLIES-OFFICE EXP,"STATIONERY, OFFICE SUPPLIES AND WRITING PAPER"
06 Jan 2015,ARTHUR BRETT CATER,NEIGHBOURHOOD SERVICES,CA CASTLEFORT JMI SCHOOL,72.12,FRUIT & VEGETABLES OTHER-PROVISIONS,MISCELLANEOUS FOOD STORES & CONVENIENCE STORES
06 Jan 2015,OFFICE DEPOT,NEIGHBOURHOOD SERVICES,VP SCL VOCATIONAL & SUPPORTED LEARNING,21.48,STATIONERY & GENERAL SUPPLIES-OFFICE EXP,"STATIONERY, OFFICE SUPPLIES AND WRITING PAPER"
06 Jan 2015,OFFICE DEPOT,CHILDRENS SERVICES,ADOPTION TEAM,1.92,STATIONERY & GENERAL SUPPLIES-OFFICE EXP,"STATIONERY, OFFICE SUPPLIES AND WRITING PAPER"
06 Jan 2015,OFFICE DEPOT,CHILDRENS SERVICES,"CLUSTER 6 BENTLEY,LIGHTHOUSE,FIBBERSLEY",58.98,STATIONERY & GENERAL SUPPLIES-OFFICE EXP,"STATIONERY, OFFICE SUPPLIES AND WRITING PAPER"
06 Jan 2015,OFFICE DEPOT,CHILDRENS SERVICES,VIRTUAL SCHOOL,279.31,STATIONERY & GENERAL SUPPLIES-OFFICE EXP,"STATIONERY, OFFICE SUPPLIES AND WRITING PAPER"
06 Jan 2015,OFFICE DEPOT,CHILDRENS SERVICES,SEN,89.34,STATIONERY & GENERAL SUPPLIES-OFFICE EXP,"STATIONERY, OFFICE SUPPLIES AND WRITING PAPER"
06 Jan 2015,OFFICE DEPOT,CHILDRENS SERVICES,UNIVERSAL EDUCATION CLIENT UNIT,140.98,STATIONERY & GENERAL SUPPLIES-OFFICE EXP,"STATIONERY, OFFICE SUPPLIES AND WRITING PAPER"
06 Jan 2015,OFFICE DEPOT,CHILDRENS SERVICES,EDUCATIONAL PSYCHOLOGISTS,16.08,STATIONERY & GENERAL SUPPLIES-OFFICE EXP,"STATIONERY, OFFICE SUPPLIES AND WRITING PAPER"
06 Jan 2015,OFFICE DEPOT,CHILDRENS SERVICES,SEN ASSESSMENT,37.34,STATIONERY & GENERAL SUPPLIES-OFFICE EXP,"STATIONERY, OFFICE SUPPLIES AND WRITING PAPER"
06 Jan 2015,OFFICE DEPOT,REGENERATION,PELSALL EDUCATION DEVELOPMENT CENTRE,185.16,STATIONERY & GENERAL SUPPLIES-OFFICE EXP,"STATIONERY, OFFICE SUPPLIES AND WRITING PAPER"
06 Jan 2015,OFFICE DEPOT,CHILDRENS SERVICES,"CLUSTER 3 BLOXWICH,BLAKENALL,HATHERTON,E STAMMERS",7.34,STATIONERY & GENERAL SUPPLIES-OFFICE EXP,"STATIONERY, OFFICE SUPPLIES AND WRITING PAPER"
06 Jan 2015,OFFICE DEPOT,CHILDRENS SERVICES,"CLUSTER 3 BLOXWICH,BLAKENALL,HATHERTON,E STAMMERS",100.79,STATIONERY & GENERAL SUPPLIES-OFFICE EXP,"STATIONERY, OFFICE SUPPLIES AND WRITING PAPER"
06 Jan 2015,WELSH BROS FOODS LTD,NEIGHBOURHOOD SERVICES,CA ELMWOOD SPECIAL SCHOOL,86.59,MEAT-PROVISIONS,FREEZER AND LOCKER MEAT PROVISIONERS
07 Jan 2015,JACKDAW TOOLS,SOCIAL CARE & INCLUSION,EMPLOYMENT LINKS TO WORK,8.35,GENERAL MATERIALS,HARDWARE STORES
07 Jan 2015,WWW.NOTONTHEHIGHSTREET.C,CHILDRENS SERVICES,ROSEDALE C.E. PRIMARY SCHOOL,95.97,GENERAL MATERIALS,MISCELLANEOUS GENERAL MERCHANDISE
07 Jan 2015,REGISTRATION SERVICES,RESOURCES,ADVICE & GUIDANCE SERVICE,10.00,GENERAL MATERIALS,OTHER RECREATION SERVICES
07 Jan 2015,B&M RETAIL LTD,CHILDRENS SERVICES,57 LICHFIELD ROAD,82.89,RESIDENTS PERSONAL EXPENSES-ALLOWANCES TO S/S CLIENTS,DISCOUNT STORES
07 Jan 2015,DUNELM (SOFT FURNISHIN,CHILDRENS SERVICES,57 LICHFIELD ROAD,22.98,FURNITURE & EQUIPMENT,"DRAPERY, UPHOLSTERY, AND WINDOW COVERINGS STORES"
07 Jan 2015,B&M RETAIL LTD,CHILDRENS SERVICES,57 LICHFIELD ROAD,-16.99,RESIDENTS PERSONAL EXPENSES-ALLOWANCES TO S/S CLIENTS,DISCOUNT STORES
07 Jan 2015,AMAZON *MKTPLCE EU-UK,CHILDRENS SERVICES,ROSEDALE C.E. PRIMARY SCHOOL,2.21,GENERAL MATERIALS,BOOK STORES
07 Jan 2015,ASDA HOME SHOPPING,CHILDRENS SERVICES,"43A HILTON ROAD, WILLENHALL",36.72,GENERAL PROVISIONS-PROVISIONS,GROCERY STORES AND SUPERMARKETS
07 Jan 2015,ASDA HOME SHOPPING,CHILDRENS SERVICES,"43A HILTON ROAD, WILLENHALL",24.23,GENERAL PROVISIONS-PROVISIONS,GROCERY STORES AND SUPERMARKETS
07 Jan 2015,WM MORRISON FOOD.COM,CHILDRENS SERVICES,BLUEBELLS,24.00,GENERAL PROVISIONS-PROVISIONS,GROCERY STORES AND SUPERMARKETS
07 Jan 2015,WM MORRISON FOOD.COM,CHILDRENS SERVICES,BLUEBELLS,91.25,GENERAL PROVISIONS-PROVISIONS,GROCERY STORES AND SUPERMARKETS
07 Jan 2015,AMAZON *MKTPLCE EU-UK,NEIGHBOURHOOD SERVICES,ACTIVE ENGLAND,4.15,LIBRARY BOOKS,BOOK STORES
07 Jan 2015,EB *GET READY FOR FOST,CHILDRENS SERVICES,INTERNAL FOSTER CARE PROVISION,151.20,PROFESSIONAL FEES AND SERVICES,OTHER BUSINESS SERVICES
07 Jan 2015,FINDEL ED LTD,CHILDRENS SERVICES,PE & EXTENDED PROVISION,131.70,GENERAL MATERIALS,OTHER DIRECT MARKETING-OTHER DIRECT MARKETERS
07 Jan 2015,AMAZON EU,CHILDRENS SERVICES,ADMINISTRATIVE SUPPLIES,32.75,GENERAL MATERIALS,OTHER DIRECT MARKETING-OTHER DIRECT MARKETERS
07 Jan 2015,AMAZON EU,CHILDRENS SERVICES,LIBRARY,3.86,GENERAL MATERIALS,OTHER DIRECT MARKETING-OTHER DIRECT MARKETERS
07 Jan 2015,AMAZON *MKTPLCE EU-UK,CHILDRENS SERVICES,ADMINISTRATIVE SUPPLIES,13.65,GENERAL MATERIALS,BOOK STORES
07 Jan 2015,AMAZON *MKTPLCE EU-UK,CHILDRENS SERVICES,DT,30.89,GENERAL MATERIALS,BOOK STORES
07 Jan 2015,AMAZON *MKTPLCE EU-UK,CHILDRENS SERVICES,ADMINISTRATIVE SUPPLIES,8.80,GENERAL MATERIALS,BOOK STORES
07 Jan 2015,OXFORDUNIVERSITYPR,CHILDRENS SERVICES,PERSONAL LEARNING,282.00,LIBRARY BOOKS,BOOK STORES
07 Jan 2015,HIGH STREET VOUCHE,CHILDRENS SERVICES,SHEPWELL GREEN PUPIL REFERRAL UNIT,100.00,STATIONERY & GENERAL SUPPLIES-OFFICE EXP,"CARD, GIFT, NOVELTY, AND SOUVENIR SHOPS"
07 Jan 2015,WALSALL COUNCIL,CHILDRENS SERVICES,SAFEGUARDING & FAMILY SUPPORT,30.00,REGISTRAR OF BIRTHS/DEATHS/MARRIAGES/CIVIL PARTNERSHIPS-SERV-FEES/CHARGES,GOVERNMENT SERVICES
07 Jan 2015,WALSALL COUNCIL,CHILDRENS SERVICES,SAFEGUARDING & FAMILY SUPPORT,-9.00,REGISTRAR OF BIRTHS/DEATHS/MARRIAGES/CIVIL PARTNERSHIPS-SERV-FEES/CHARGES,GOVERNMENT SERVICES
07 Jan 2015,ALLPAY.NET VISA AND MAST,RESOURCES,ADVICE & GUIDANCE SERVICE,10.67,RENTS,REAL ESTATE MANAGERS - RENTALS
07 Jan 2015,ALLPAY.NET VISA AND MAST,RESOURCES,ADVICE & GUIDANCE SERVICE,10.70,RENTS,REAL ESTATE MANAGERS - RENTALS
07 Jan 2015,ALLPAY.NET VISA AND MAST,RESOURCES,ADVICE & GUIDANCE SERVICE,10.76,RENTS,REAL ESTATE MANAGERS - RENTALS
07 Jan 2015,ALLPAY.NET VISA AND MAST,RESOURCES,ADVICE & GUIDANCE SERVICE,10.55,RENTS,REAL ESTATE MANAGERS - RENTALS
07 Jan 2015,ALLPAY.NET VISA AND MAST,RESOURCES,ADVICE & GUIDANCE SERVICE,10.55,RENTS,REAL ESTATE MANAGERS - RENTALS
07 Jan 2015,ALLPAY.NET VISA AND MAST,RESOURCES,ADVICE & GUIDANCE SERVICE,10.55,RENTS,REAL ESTATE MANAGERS - RENTALS
07 Jan 2015,SNBA GBP E-C,NEIGHBOURHOOD SERVICES,NEW ART GALLERY - ADMIN,234.10,OFFICER/STAFF-PUBLIC TRANSPORT,SN BRUSSELS AIRLINES
07 Jan 2015,CHICKEN COTTAGE,CHILDRENS SERVICES,INITIAL RESPONSE SERVICE,220.00,SUBSISTENCE OFFICERS-EXPENSES,"EATING PLACES, RESTAURANTS"
07 Jan 2015,HOOTSUITE MEDIA INC.,NEIGHBOURHOOD SERVICES,PRINCIPAL MARKETING,8.18,PUBLICITY & ADVERTISING (NOT STAFF ADVERTISING),OTHER BUSINESS SERVICES
07 Jan 2015,MNA LTD CARDCHARGE,REGENERATION,DEVELOPMENT MANAGEMENT,156.48,PERIODICALS/MAGAZINES/NEWSPAPERS-SUBSCRIPTIONS,NEWS DEALERS AND NEWSSTANDS
07 Jan 2015,EXPRESS & STAR,REGENERATION,DEVELOPMENT MANAGEMENT,71.28,PERIODICALS/MAGAZINES/NEWSPAPERS-SUBSCRIPTIONS,NEWS DEALERS AND NEWSSTANDS
07 Jan 2015,ASDA HOME SHOPPING,CHILDRENS SERVICES,57 LICHFIELD ROAD,23.64,GENERAL PROVISIONS-PROVISIONS,GROCERY STORES AND SUPERMARKETS
07 Jan 2015,ASDA HOME SHOPPING,CHILDRENS SERVICES,57 LICHFIELD ROAD,99.45,GENERAL PROVISIONS-PROVISIONS,GROCERY STORES AND SUPERMARKETS
07 Jan 2015,SCREWFIX DIRECT,SOCIAL CARE & INCLUSION,TELE-HEALTH,23.66,GENERAL MATERIALS,LUMBER & BUILDING MATERIALS STORES
07 Jan 2015,ASDAN,NEIGHBOURHOOD SERVICES,WALSALL CANAL BOATS,432.60,LICENCES-EQUIPMENT,"ORGANIZATIONS, CHARITABLE AND SOCIAL SERVICE"
07 Jan 2015,DISTILLEDWA,REGENERATION,CENTRAL OFFICE ACCOMMODATION,183.80,"REPAIRS,ALTERATIONS & MAINTENANCE-PREM",VARIETY STORES
07 Jan 2015,ASDA STORES,CHILDRENS SERVICES,REDRUTH ROAD,9.29,GENERAL PROVISIONS-PROVISIONS,GROCERY STORES AND SUPERMARKETS
07 Jan 2015,ASDA STORES,CHILDRENS SERVICES,REDRUTH ROAD,15.80,FURNITURE & EQUIPMENT,GROCERY STORES AND SUPERMARKETS
07 Jan 2015,WM MORRISON 063,CHILDRENS SERVICES,REDRUTH ROAD,3.50,RESIDENTS PERSONAL EXPENSES-ALLOWANCES TO S/S CLIENTS,GROCERY STORES AND SUPERMARKETS
07 Jan 2015,ASDA,RESOURCES,LINK SERVICE,8.00,FOOD AND BEVERAGES-PROVISIONS,GROCERY STORES AND SUPERMARKETS
07 Jan 2015,LONDON MIDLAND TIC,CHILDRENS SERVICES,LOOKED AFTER CHILDRENS SOCIAL WORK TEAM,24.50,OFFICER/STAFF-PUBLIC TRANSPORT,PASSENGER RAILWAYS
07 Jan 2015,HM PASSPORT OFFICE,CHILDRENS SERVICES,LOOKED AFTER CHILDRENS SOCIAL WORK TEAM,87.00,SUPPORT UNDER SECTION 23 OF THE CHILDRENS ACT,GOVERNMENT SERVICES
07 Jan 2015,THE TRAINLINE.COM,REGENERATION,ERDF-AUTHORITY PARTNERS/TECHNICAL ASSISTANCE PROGRAMME,84.15,OFFICER/STAFF-PUBLIC TRANSPORT,PASSENGER RAILWAYS
07 Jan 2015,RYMAN,NEIGHBOURHOOD SERVICES,LIBRARY OPERATIONS CENTRAL,10.95,STATIONERY & GENERAL SUPPLIES-OFFICE EXP,"OFFICE, SCHOOL SUPPLY, AND STATIONERY STORES"
07 Jan 2015,B & Q,NEIGHBOURHOOD SERVICES,ARBORETUM,33.59,GENERAL MATERIALS,LUMBER & BUILDING MATERIALS STORES
07 Jan 2015,AMAZON EU,CHILDRENS SERVICES,CLUSTER 5 DARLASTON,25.07,GENERAL PROVISIONS-PROVISIONS,OTHER DIRECT MARKETING-OTHER DIRECT MARKETERS
07 Jan 2015,AMAZON EU,CHILDRENS SERVICES,CLUSTER 5 DARLASTON,8.37,GENERAL PROVISIONS-PROVISIONS,OTHER DIRECT MARKETING-OTHER DIRECT MARKETERS
07 Jan 2015,TESCO STORES 6161,CHILDRENS SERVICES,FOOD TECHNOLOGY,27.08,GENERAL MATERIALS,GROCERY STORES AND SUPERMARKETS
07 Jan 2015,WILKO.COM,RESOURCES,WALSALL CRISIS SUPPORT SCHEME,101.64,CRISIS SUPPORT PAYMENTS,HOUSEHOLD APPLIANCE STORES
07 Jan 2015,BORSHCH LIMITED,RESOURCES,WALSALL CRISIS SUPPORT SCHEME,270.00,CRISIS SUPPORT PAYMENTS,ELECTRONIC SALES
07 Jan 2015,TESCO STORES 6161,RESOURCES,WALSALL CRISIS SUPPORT SCHEME,28.40,CRISIS SUPPORT PAYMENTS,GROCERY STORES AND SUPERMARKETS
07 Jan 2015,OFFICE DEPOT,CHILDRENS SERVICES,GENERAL RESOURCES,12.06,GENERAL MATERIALS,"STATIONERY, OFFICE SUPPLIES AND WRITING PAPER"
07 Jan 2015,OFFICE DEPOT,CHILDRENS SERVICES,VIRTUAL SCHOOL,61.67,STATIONERY & GENERAL SUPPLIES-OFFICE EXP,"STATIONERY, OFFICE SUPPLIES AND WRITING PAPER"
07 Jan 2015,OFFICE DEPOT,CHILDRENS SERVICES,VIRTUAL SCHOOL,5.28,STATIONERY & GENERAL SUPPLIES-OFFICE EXP,"STATIONERY, OFFICE SUPPLIES AND WRITING PAPER"
07 Jan 2015,OFFICE DEPOT,SOCIAL CARE & INCLUSION,INTEGRATED BUSINESS PROCESSES & SERVICES,213.47,STATIONERY & GENERAL SUPPLIES-OFFICE EXP,"STATIONERY, OFFICE SUPPLIES AND WRITING PAPER"
07 Jan 2015,OFFICE DEPOT,CHILDRENS SERVICES,DARLASTON DETACHED PROJECT,49.46,STATIONERY & GENERAL SUPPLIES-OFFICE EXP,"STATIONERY, OFFICE SUPPLIES AND WRITING PAPER"
07 Jan 2015,ARTHUR BRETT CATER,NEIGHBOURHOOD SERVICES,CA LEIGHSWOOD PRIMARY SCHOOL,45.51,FRUIT & VEGETABLES OTHER-PROVISIONS,MISCELLANEOUS FOOD STORES & CONVENIENCE STORES
07 Jan 2015,OFFICE DEPOT,SOCIAL CARE & INCLUSION,INTEGRATED BUSINESS PROCESSES & SERVICES,111.28,STATIONERY & GENERAL SUPPLIES-OFFICE EXP,"STATIONERY, OFFICE SUPPLIES AND WRITING PAPER"
07 Jan 2015,OFFICE DEPOT,SOCIAL CARE & INCLUSION,INTEGRATED BUSINESS PROCESSES & SERVICES,111.28,STATIONERY & GENERAL SUPPLIES-OFFICE EXP,"STATIONERY, OFFICE SUPPLIES AND WRITING PAPER"
07 Jan 2015,OFFICE DEPOT,NEIGHBOURHOOD SERVICES,SPORT & LEISURE DEVELOPMENT SERVICES,68.81,STATIONERY & GENERAL SUPPLIES-OFFICE EXP,"STATIONERY, OFFICE SUPPLIES AND WRITING PAPER"
07 Jan 2015,OFFICE DEPOT,SOCIAL CARE & INCLUSION,SOUTH COMMUNITY RECOVERY SERVICE,33.11,STATIONERY & GENERAL SUPPLIES-OFFICE EXP,"STATIONERY, OFFICE SUPPLIES AND WRITING PAPER"
07 Jan 2015,ARTHUR BRETT CATER,NEIGHBOURHOOD SERVICES,CA MOORCROFT WOOD,71.70,FRUIT & VEGETABLES OTHER-PROVISIONS,MISCELLANEOUS FOOD STORES & CONVENIENCE STORES
07 Jan 2015,WELSH BROS FOODS LTD,NEIGHBOURHOOD SERVICES,CA GREEN ROCK PRIMARY,92.77,MEAT-PROVISIONS,FREEZER AND LOCKER MEAT PROVISIONERS
07 Jan 2015,OFFICE DEPOT,SOCIAL CARE & INCLUSION,INTEGRATED BUSINESS PROCESSES & SERVICES,189.55,STATIONERY & GENERAL SUPPLIES-OFFICE EXP,"STATIONERY, OFFICE SUPPLIES AND WRITING PAPER"
07 Jan 2015,ARTHUR BRETT CATER,NEIGHBOURHOOD SERVICES,CA BARCROFT D/C,59.65,FRUIT & VEGETABLES OTHER-PROVISIONS,MISCELLANEOUS FOOD STORES & CONVENIENCE STORES
08 Jan 2015,ASDA SUPERSTORE,RESOURCES,WALSALL CRISIS SUPPORT SCHEME,100.00,CRISIS SUPPORT PAYMENTS,GROCERY STORES AND SUPERMARKETS
08 Jan 2015,ASDA SUPERSTORE,RESOURCES,TENANCY SERVICE,29.95,FOOD AND BEVERAGES-PROVISIONS,GROCERY STORES AND SUPERMARKETS
08 Jan 2015,RIBA ENTERPRISES LTD,NEIGHBOURHOOD SERVICES,LEISURE - MANAGEMENT AND ADMIN,140.00,LIBRARY BOOKS,BOOK STORES
08 Jan 2015,SCREWFIX,NEIGHBOURHOOD SERVICES,ARBORETUM,79.99,GENERAL MATERIALS,LUMBER & BUILDING MATERIALS STORES
08 Jan 2015,AMAZON *MKTPLCE EU-UK,CHILDRENS SERVICES,FOUNDATION LEARNING,5.81,GENERAL MATERIALS,BOOK STORES
08 Jan 2015,WWW.DSVCS.CO.UK,CHILDRENS SERVICES,CLUSTER 5 DARLASTON,7.99,CARRIAGE-IN,OTHER NONDURABLE GOODS
08 Jan 2015,WWW.DSVCS.CO.UK,CHILDRENS SERVICES,CLUSTER 5 DARLASTON,56.70,HEALTH & SAFETY-MATERIALS,OTHER NONDURABLE GOODS
08 Jan 2015,POUNDLAND LTD 1427,NEIGHBOURHOOD SERVICES,ARBORETUM,8.00,FURNITURE & EQUIPMENT,DISCOUNT STORES
08 Jan 2015,MARKS & SPENCER SACAT,NEIGHBOURHOOD SERVICES,NAG - TEMPORARY EXHIBITIONS,7.25,MISC DAIRY PRODUCTS-PROVISIONS,GROCERY STORES AND SUPERMARKETS
08 Jan 2015,MARKS & SPENCER SACAT,NEIGHBOURHOOD SERVICES,NAG - TEMPORARY EXHIBITIONS,0.05,MISC DAIRY PRODUCTS-PROVISIONS,GROCERY STORES AND SUPERMARKETS
08 Jan 2015,TRAINLINE.COM,REGENERATION,REGENERATION MANAGEMENT,19.33,OFFICER/STAFF-PUBLIC TRANSPORT,PASSENGER RAILWAYS
08 Jan 2015,MAPLIN WALSALL WS2,NEIGHBOURHOOD SERVICES,COMMUNITY LIAISON,175.91,FURNITURE & EQUIPMENT,ELECTRONIC SALES
08 Jan 2015,123-REG.CO.UK,RESOURCES,COMMUNICATIONS,8.38,COMPUTER EQUIPMENT AND SUPPLIES,COMPUTER NETWORK/INFORMATION SERVICES
08 Jan 2015,AMAZON *MKTPLCE EU-UK,CHILDRENS SERVICES,REDRUTH ROAD,10.98,TRANSFER PAYMENTS - SOCIAL SERVICES CLIENTS,BOOK STORES
08 Jan 2015,AMAZON *MKTPLCE EU-UK,CHILDRENS SERVICES,REDRUTH ROAD,22.89,TRANSFER PAYMENTS - SOCIAL SERVICES CLIENTS,BOOK STORES
08 Jan 2015,TRAINLINE.COM,CHILDRENS SERVICES,SAFEGUARDING & FAMILY SUPPORT,233.78,OFFICER/STAFF-PUBLIC TRANSPORT,PASSENGER RAILWAYS
08 Jan 2015,AMAZON EU,CHILDRENS SERVICES,ICT LEARNING RESOURCES,40.40,GENERAL MATERIALS,OTHER DIRECT MARKETING-OTHER DIRECT MARKETERS
08 Jan 2015,VALUE PRODUCTS LTD,CHILDRENS SERVICES,PUPIL REFERAL UNIT EXCLUSIONS,342.66,MISCELLANEOUS SUPPLIES,MISCELLANEOUS AND SPECIALTY RETAIL STORES
08 Jan 2015,B&Q DIRECT,CHILDRENS SERVICES,PUPIL REFERAL UNIT EXCLUSIONS,56.00,GENERAL MATERIALS,LUMBER & BUILDING MATERIALS STORES
08 Jan 2015,PAYPAL,CHILDRENS SERVICES,PUPIL REFERAL UNIT EXCLUSIONS,207.96,MEDICAL REQUISITES-MATERIALS,DENTAL/LABORATORY/MEDICAL EQUIPMENT & SUPPLIES
08 Jan 2015,PATOSS-DYSLEX.ORG,CHILDRENS SERVICES,SEN,185.00,EXTERNAL TRAINING,"COLLEGES, UNIVERSITIES, PROFESSIONAL SCHOOLS"
08 Jan 2015,PATOSS-DYSLEX.ORG,CHILDRENS SERVICES,SEN,185.00,EXTERNAL TRAINING,"COLLEGES, UNIVERSITIES, PROFESSIONAL SCHOOLS"
08 Jan 2015,ASDA,CHILDRENS SERVICES,SPINDLETREE,12.95,GENERAL PROVISIONS-PROVISIONS,GROCERY STORES AND SUPERMARKETS
08 Jan 2015,ASDA,CHILDRENS SERVICES,SPINDLETREE,12.32,GENERAL PROVISIONS-PROVISIONS,GROCERY STORES AND SUPERMARKETS
08 Jan 2015,AB WASTE MANAGEMENT LT,CHILDRENS SERVICES,CHILDRENS CENTRE BUILDINGS,124.80,DISPOSAL OF WASTE-SERVICES-FEES,OTHER INDUSTRIAL SUPPLIES
08 Jan 2015,WWW.CARTRIDGESAVE.CO.U,CHILDRENS SERVICES,CLUSTER 4 ALUMWELL & BIRCHILLS,48.21,RIBBONS & CONSUMABLES-COMPUTER,"OFFICE, SCHOOL SUPPLY, AND STATIONERY STORES"
08 Jan 2015,AMAZON *MKTPLCE EU-UK,CHILDRENS SERVICES,"CLUSTER 1 BROWNHILLS,GREENFIELDS,PELSALL",10.95,HEALTH & SAFETY-MATERIALS,BOOK STORES
08 Jan 2015,AMAZON *MKTPLCE EU-UK,CHILDRENS SERVICES,ICT LEARNING RESOURCES,0.90,GENERAL MATERIALS,BOOK STORES
08 Jan 2015,ARGOS RETAIL GROUP,CHILDRENS SERVICES,LOOKED AFTER CHILDRENS SOCIAL WORK TEAM,108.94,SUPPORT UNDER SECTION 23 OF THE CHILDRENS ACT,DISCOUNT STORES
08 Jan 2015,WWW.DVLA.GOV.UK,NEIGHBOURHOOD SERVICES,FLEET,167.50,LICENCES-TRANSPORT RUN COSTS,GOVERNMENT SERVICES
08 Jan 2015,WWW.DVLA.GOV.UK,NEIGHBOURHOOD SERVICES,FLEET,227.50,LICENCES-TRANSPORT RUN COSTS,GOVERNMENT SERVICES
08 Jan 2015,WWW.DVLA.GOV.UK,NEIGHBOURHOOD SERVICES,FLEET,227.50,LICENCES-TRANSPORT RUN COSTS,GOVERNMENT SERVICES
08 Jan 2015,CO-OPERATIVE FOOD,CHILDRENS SERVICES,"43A HILTON ROAD, WILLENHALL",4.90,FOOD AND BEVERAGES-PROVISIONS,GROCERY STORES AND SUPERMARKETS
08 Jan 2015,AMAZON *MKTPLCE EU-UK,CHILDRENS SERVICES,ROSEDALE C.E. PRIMARY SCHOOL,2.01,GENERAL MATERIALS,BOOK STORES
08 Jan 2015,AMAZON *MKTPLCE EU-UK,CHILDRENS SERVICES,ROSEDALE C.E. PRIMARY SCHOOL,11.87,GENERAL MATERIALS,BOOK STORES
08 Jan 2015,AMAZON *MKTPLCE EU-UK,CHILDRENS SERVICES,ROSEDALE C.E. PRIMARY SCHOOL,15.99,GENERAL MATERIALS,BOOK STORES
08 Jan 2015,TESCO STORES 6161,CHILDRENS SERVICES,57 LICHFIELD ROAD,6.00,RESIDENTS PERSONAL EXPENSES-ALLOWANCES TO S/S CLIENTS,GROCERY STORES AND SUPERMARKETS
08 Jan 2015,"CLIVE MARK SCH,",CHILDRENS SERVICES,57 LICHFIELD ROAD,6.00,STATIONERY & GENERAL SUPPLIES-OFFICE EXP,"OFFICE, SCHOOL SUPPLY, AND STATIONERY STORES"
08 Jan 2015,TRAVEL WEST MIDLAN,CHILDRENS SERVICES,LOOKED AFTER CHILDRENS SOCIAL WORK TEAM,63.50,OFFICER/STAFF-PUBLIC TRANSPORT,BUS LINES
08 Jan 2015,ASDA STORES,RESOURCES,ACCOMMODATION SERVICES MANAGEMENT,105.00,FURNITURE & EQUIPMENT,GROCERY STORES AND SUPERMARKETS
08 Jan 2015,WWW.GIROFOOD.COM,NEIGHBOURHOOD SERVICES,TOWN HALL RESTAURANT BISTRO,-433.44,DISPOSABLES-PROVISIONS,WHOLESALE CLUBS
08 Jan 2015,WWW.GIROFOOD.COM,NEIGHBOURHOOD SERVICES,CA BEACON PRIMARY SCHOOL,485.44,DISPOSABLES-PROVISIONS,WHOLESALE CLUBS
08 Jan 2015,WWW.GIROFOOD.COM,NEIGHBOURHOOD SERVICES,CA ST MICHAELS C.E. PRIMARY SCHOOL,120.57,DISPOSABLES-PROVISIONS,WHOLESALE CLUBS
08 Jan 2015,WWW.GIROFOOD.COM,NEIGHBOURHOOD SERVICES,CA BIRCHILLS CE PRIMARY COMMUNITY SCHOOL,30.87,DISPOSABLES-PROVISIONS,WHOLESALE CLUBS
08 Jan 2015,WWW.GIROFOOD.COM,NEIGHBOURHOOD SERVICES,CA FIBBERSLEY PARK PRIMARY SCHOOL,112.02,DISPOSABLES-PROVISIONS,WHOLESALE CLUBS
08 Jan 2015,WWW.GIROFOOD.COM,NEIGHBOURHOOD SERVICES,CA BARCROFT D/C,78.39,DISPOSABLES-PROVISIONS,WHOLESALE CLUBS
08 Jan 2015,BLAKEMORE FOODSERVICE,NEIGHBOURHOOD SERVICES,CA BEACON PRIMARY SCHOOL,38.52,FROZEN FOODS-PROVISIONS,CATERERS
08 Jan 2015,BLAKEMORE FOODSERVICE,NEIGHBOURHOOD SERVICES,CA BEACON PRIMARY SCHOOL,663.61,DRY FOODS-PROVISIONS,CATERERS
08 Jan 2015,BLAKEMORE FOODSERVICE,NEIGHBOURHOOD SERVICES,CA BEACON PRIMARY SCHOOL,204.70,DRY FOODS-PROVISIONS,CATERERS
08 Jan 2015,ARTHUR BRETT CATER,NEIGHBOURHOOD SERVICES,CA BEACON PRIMARY SCHOOL,209.22,FRUIT & VEGETABLES OTHER-PROVISIONS,MISCELLANEOUS FOOD STORES & CONVENIENCE STORES
08 Jan 2015,JOHAL DAIRIES LTD,CHILDRENS SERVICES,57 LICHFIELD ROAD,13.34,GENERAL PROVISIONS-PROVISIONS,OTHER NONDURABLE GOODS
08 Jan 2015,ARTHUR BRETT CATER,NEIGHBOURHOOD SERVICES,CA GREEN ROCK PRIMARY,68.17,FRUIT & VEGETABLES OTHER-PROVISIONS,MISCELLANEOUS FOOD STORES & CONVENIENCE STORES
08 Jan 2015,BLAKEMORE FOODSERVICE,NEIGHBOURHOOD SERVICES,CA GREEN ROCK PRIMARY,135.38,FROZEN FOODS-PROVISIONS,CATERERS
08 Jan 2015,BLAKEMORE FOODSERVICE,NEIGHBOURHOOD SERVICES,CA GREEN ROCK PRIMARY,188.04,DRY FOODS-PROVISIONS,CATERERS
08 Jan 2015,BLAKEMORE FOODSERVICE,NEIGHBOURHOOD SERVICES,CA GREEN ROCK PRIMARY,37.57,DRY FOODS-PROVISIONS,CATERERS
08 Jan 2015,BLAKEMORE FOODSERVICE,NEIGHBOURHOOD SERVICES,CA LINDENS PRIMARY SCHOOL,195.21,FROZEN FOODS-PROVISIONS,CATERERS
08 Jan 2015,OFFICE DEPOT,NEIGHBOURHOOD SERVICES,NEW ART GALLERY - ADMIN,5.04,STATIONERY & GENERAL SUPPLIES-OFFICE EXP,"STATIONERY, OFFICE SUPPLIES AND WRITING PAPER"
08 Jan 2015,OFFICE DEPOT,NEIGHBOURHOOD SERVICES,NEW ART GALLERY - ADMIN,7.51,NEW-FURNITURE & EQUIPMENT,"STATIONERY, OFFICE SUPPLIES AND WRITING PAPER"
08 Jan 2015,OFFICE DEPOT,NEIGHBOURHOOD SERVICES,NEW ART GALLERY VENUE INCOME,12.90,STATIONERY & GENERAL SUPPLIES-OFFICE EXP,"STATIONERY, OFFICE SUPPLIES AND WRITING PAPER"
08 Jan 2015,BLAKEMORE FOODSERVICE,NEIGHBOURHOOD SERVICES,CA ST MICHAELS C.E. PRIMARY SCHOOL,198.94,FROZEN FOODS-PROVISIONS,CATERERS
08 Jan 2015,BLAKEMORE FOODSERVICE,NEIGHBOURHOOD SERVICES,CA ST MICHAELS C.E. PRIMARY SCHOOL,8.07,FROZEN FOODS-PROVISIONS,CATERERS
08 Jan 2015,BLAKEMORE FOODSERVICE,NEIGHBOURHOOD SERVICES,CA ST MICHAELS C.E. PRIMARY SCHOOL,140.48,DRY FOODS-PROVISIONS,CATERERS
08 Jan 2015,BLAKEMORE FOODSERVICE,NEIGHBOURHOOD SERVICES,CA MEADOW VIEW JMI PRIMARY SCHOOL,230.36,FROZEN FOODS-PROVISIONS,CATERERS
08 Jan 2015,BLAKEMORE FOODSERVICE,NEIGHBOURHOOD SERVICES,CA ELMORE GREEN PRIMARY SCHOOL,336.81,DRY FOODS-PROVISIONS,CATERERS
08 Jan 2015,BLAKEMORE FOODSERVICE,NEIGHBOURHOOD SERVICES,CA ELMORE GREEN PRIMARY SCHOOL,63.85,DRY FOODS-PROVISIONS,CATERERS
08 Jan 2015,BLAKEMORE FOODSERVICE,NEIGHBOURHOOD SERVICES,CA ELMORE GREEN PRIMARY SCHOOL,194.05,FROZEN FOODS-PROVISIONS,CATERERS
08 Jan 2015,BLAKEMORE FOODSERVICE,NEIGHBOURHOOD SERVICES,CA JANE LANE SPECIAL SCHOOL,221.38,DRY FOODS-PROVISIONS,CATERERS
08 Jan 2015,BLAKEMORE FOODSERVICE,NEIGHBOURHOOD SERVICES,CA ST ANNES CATHOLIC PRIMARY SCHOOL,156.57,FROZEN FOODS-PROVISIONS,CATERERS
08 Jan 2015,BLAKEMORE FOODSERVICE,NEIGHBOURHOOD SERVICES,CA JOSEPH LECKIE COMMUNITY TECHNOLOGY COLLEGE,284.08,FROZEN FOODS-PROVISIONS,CATERERS
08 Jan 2015,BLAKEMORE FOODSERVICE,NEIGHBOURHOOD SERVICES,CA JOSEPH LECKIE COMMUNITY TECHNOLOGY COLLEGE,504.96,DRY FOODS-PROVISIONS,CATERERS
08 Jan 2015,BLAKEMORE FOODSERVICE,NEIGHBOURHOOD SERVICES,CA JOSEPH LECKIE COMMUNITY TECHNOLOGY COLLEGE,234.90,DRY FOODS-PROVISIONS,CATERERS
08 Jan 2015,BLAKEMORE FOODSERVICE,NEIGHBOURHOOD SERVICES,CA RADLEYS PRIMARY SCHOOL,346.06,DRY FOODS-PROVISIONS,CATERERS
08 Jan 2015,BLAKEMORE FOODSERVICE,NEIGHBOURHOOD SERVICES,CA RADLEYS PRIMARY SCHOOL,29.29,DRY FOODS-PROVISIONS,CATERERS
08 Jan 2015,BLAKEMORE FOODSERVICE,NEIGHBOURHOOD SERVICES,CA RADLEYS PRIMARY SCHOOL,46.34,FROZEN FOODS-PROVISIONS,CATERERS
08 Jan 2015,JOHAL DAIRIES LTD,NEIGHBOURHOOD SERVICES,CA TOWN HALL RESTAURANT - CATERING,12.29,MISC DAIRY PRODUCTS-PROVISIONS,OTHER NONDURABLE GOODS
08 Jan 2015,BLAKEMORE FOODSERVICE,NEIGHBOURHOOD SERVICES,TOWN HALL RESTAURANT BISTRO,199.91,DRY FOODS-PROVISIONS,CATERERS
08 Jan 2015,BLAKEMORE FOODSERVICE,NEIGHBOURHOOD SERVICES,TOWN HALL RESTAURANT BISTRO,254.83,DRY FOODS-PROVISIONS,CATERERS
08 Jan 2015,JOHAL DAIRIES LTD,NEIGHBOURHOOD SERVICES,TOWN HALL RESTAURANT BISTRO,26.13,MISC DAIRY PRODUCTS-PROVISIONS,OTHER NONDURABLE GOODS
08 Jan 2015,BLAKEMORE FOODSERVICE,NEIGHBOURHOOD SERVICES,CA TOWN HALL RESTAURANT - CATERING,36.00,DRY FOODS-PROVISIONS,CATERERS
08 Jan 2015,BLAKEMORE FOODSERVICE,NEIGHBOURHOOD SERVICES,CA TOWN HALL RESTAURANT - CATERING,120.84,FROZEN FOODS-PROVISIONS,CATERERS
08 Jan 2015,BLAKEMORE FOODSERVICE,NEIGHBOURHOOD SERVICES,CA BROWNHILLS WEST PRIMARY SCHOOL,161.02,FROZEN FOODS-PROVISIONS,CATERERS
08 Jan 2015,BLAKEMORE FOODSERVICE,NEIGHBOURHOOD SERVICES,CA BUSILL JONES PRIMARY SCHOOL,138.60,FROZEN FOODS-PROVISIONS,CATERERS
08 Jan 2015,BLAKEMORE FOODSERVICE,NEIGHBOURHOOD SERVICES,CA BUSILL JONES PRIMARY SCHOOL,8.07,FROZEN FOODS-PROVISIONS,CATERERS
08 Jan 2015,BLAKEMORE FOODSERVICE,NEIGHBOURHOOD SERVICES,CA BUSILL JONES PRIMARY SCHOOL,711.39,DRY FOODS-PROVISIONS,CATERERS
08 Jan 2015,BLAKEMORE FOODSERVICE,NEIGHBOURHOOD SERVICES,CA BUSILL JONES PRIMARY SCHOOL,13.15,DRY FOODS-PROVISIONS,CATERERS
08 Jan 2015,ARTHUR BRETT CATER,NEIGHBOURHOOD SERVICES,CA BUSILL JONES PRIMARY SCHOOL,139.82,FRUIT & VEGETABLES OTHER-PROVISIONS,MISCELLANEOUS FOOD STORES & CONVENIENCE STORES
08 Jan 2015,OFFICE DEPOT,CHILDRENS SERVICES,CHILD PROTECTION & REVIEW SERVICES,100.79,STATIONERY & GENERAL SUPPLIES-OFFICE EXP,"STATIONERY, OFFICE SUPPLIES AND WRITING PAPER"
08 Jan 2015,OFFICE DEPOT,SOCIAL CARE & INCLUSION,SOUTH COMMUNITY RECOVERY SERVICE,1.63,STATIONERY & GENERAL SUPPLIES-OFFICE EXP,"STATIONERY, OFFICE SUPPLIES AND WRITING PAPER"
08 Jan 2015,BLAKEMORE FOODSERVICE,NEIGHBOURHOOD SERVICES,CA BIRCHILLS CE PRIMARY COMMUNITY SCHOOL,219.83,DRY FOODS-PROVISIONS,CATERERS
08 Jan 2015,BLAKEMORE FOODSERVICE,NEIGHBOURHOOD SERVICES,CA BIRCHILLS CE PRIMARY COMMUNITY SCHOOL,27.00,DRY FOODS-PROVISIONS,CATERERS
08 Jan 2015,OFFICE DEPOT,NEIGHBOURHOOD SERVICES,LEISURE & CULTURE SUPPORT BUDGET,59.44,STATIONERY & GENERAL SUPPLIES-OFFICE EXP,"STATIONERY, OFFICE SUPPLIES AND WRITING PAPER"
08 Jan 2015,BLAKEMORE FOODSERVICE,NEIGHBOURHOOD SERVICES,CA ST JOHNS C.E. PRIMARY SCHOOL,312.73,DRY FOODS-PROVISIONS,CATERERS
08 Jan 2015,BLAKEMORE FOODSERVICE,NEIGHBOURHOOD SERVICES,CA ST JOHNS C.E. PRIMARY SCHOOL,274.32,DRY FOODS-PROVISIONS,CATERERS
08 Jan 2015,BLAKEMORE FOODSERVICE,NEIGHBOURHOOD SERVICES,CA ST JOHNS C.E. PRIMARY SCHOOL,24.23,DRY FOODS-PROVISIONS,CATERERS
08 Jan 2015,BLAKEMORE FOODSERVICE,NEIGHBOURHOOD SERVICES,CA ST JOHNS C.E. PRIMARY SCHOOL,5.24,FROZEN FOODS-PROVISIONS,CATERERS
08 Jan 2015,JOHAL DAIRIES LTD,SOCIAL CARE & INCLUSION,FALLINGS HEATH,32.60,MISC DAIRY PRODUCTS-PROVISIONS,OTHER NONDURABLE GOODS
08 Jan 2015,BLAKEMORE FOODSERVICE,NEIGHBOURHOOD SERVICES,CA FIBBERSLEY PARK PRIMARY SCHOOL,143.89,FROZEN FOODS-PROVISIONS,CATERERS
08 Jan 2015,BLAKEMORE FOODSERVICE,NEIGHBOURHOOD SERVICES,CA FIBBERSLEY PARK PRIMARY SCHOOL,203.06,DRY FOODS-PROVISIONS,CATERERS
08 Jan 2015,BLAKEMORE FOODSERVICE,NEIGHBOURHOOD SERVICES,CA FIBBERSLEY PARK PRIMARY SCHOOL,61.08,DRY FOODS-PROVISIONS,CATERERS
08 Jan 2015,BLAKEMORE FOODSERVICE,NEIGHBOURHOOD SERVICES,CA CALDMORE COMMUNITY PRIMARY SCHOOL,88.00,DRY FOODS-PROVISIONS,CATERERS
08 Jan 2015,BLAKEMORE FOODSERVICE,NEIGHBOURHOOD SERVICES,CA LEIGHSWOOD PRIMARY SCHOOL,278.32,DRY FOODS-PROVISIONS,CATERERS
08 Jan 2015,BLAKEMORE FOODSERVICE,NEIGHBOURHOOD SERVICES,CA LEIGHSWOOD PRIMARY SCHOOL,122.16,DRY FOODS-PROVISIONS,CATERERS
08 Jan 2015,BLAKEMORE FOODSERVICE,NEIGHBOURHOOD SERVICES,CA LEIGHSWOOD PRIMARY SCHOOL,33.48,FROZEN FOODS-PROVISIONS,CATERERS
08 Jan 2015,BLAKEMORE FOODSERVICE,NEIGHBOURHOOD SERVICES,CA WATLING STREET PRIMARY SCHOOL,167.63,FROZEN FOODS-PROVISIONS,CATERERS
08 Jan 2015,BLAKEMORE FOODSERVICE,NEIGHBOURHOOD SERVICES,CA WATLING STREET PRIMARY SCHOOL,358.87,DRY FOODS-PROVISIONS,CATERERS
08 Jan 2015,BLAKEMORE FOODSERVICE,NEIGHBOURHOOD SERVICES,CA WATLING STREET PRIMARY SCHOOL,88.29,DRY FOODS-PROVISIONS,CATERERS
08 Jan 2015,BLAKEMORE FOODSERVICE,NEIGHBOURHOOD SERVICES,CA COOPER JORDAN CE PRIMARY SCHOOL,193.71,DRY FOODS-PROVISIONS,CATERERS
08 Jan 2015,BLAKEMORE FOODSERVICE,NEIGHBOURHOOD SERVICES,CA COOPER JORDAN CE PRIMARY SCHOOL,189.30,FROZEN FOODS-PROVISIONS,CATERERS
08 Jan 2015,BLAKEMORE FOODSERVICE,NEIGHBOURHOOD SERVICES,CA CASTLEFORT JMI SCHOOL,89.49,FROZEN FOODS-PROVISIONS,CATERERS
08 Jan 2015,BLAKEMORE FOODSERVICE,NEIGHBOURHOOD SERVICES,CA ELMWOOD SPECIAL SCHOOL,84.28,FROZEN FOODS-PROVISIONS,CATERERS
08 Jan 2015,BLAKEMORE FOODSERVICE,NEIGHBOURHOOD SERVICES,CA ELMWOOD SPECIAL SCHOOL,215.41,DRY FOODS-PROVISIONS,CATERERS
08 Jan 2015,BLAKEMORE FOODSERVICE,NEIGHBOURHOOD SERVICES,CA ELMWOOD SPECIAL SCHOOL,29.29,DRY FOODS-PROVISIONS,CATERERS
08 Jan 2015,BLAKEMORE FOODSERVICE,NEIGHBOURHOOD SERVICES,CA RUSHALL JMI SCHOOL,107.31,FROZEN FOODS-PROVISIONS,CATERERS
08 Jan 2015,OFFICE DEPOT,CHILDRENS SERVICES,"CLUSTER 6 BENTLEY,LIGHTHOUSE,FIBBERSLEY",31.31,STATIONERY & GENERAL SUPPLIES-OFFICE EXP,"STATIONERY, OFFICE SUPPLIES AND WRITING PAPER"
08 Jan 2015,BLAKEMORE FOODSERVICE,NEIGHBOURHOOD SERVICES,CA BLUE COAT C OF E PERFORMING ARTS COLLEGE,339.16,FROZEN FOODS-PROVISIONS,CATERERS
08 Jan 2015,BLAKEMORE FOODSERVICE,NEIGHBOURHOOD SERVICES,CA BLUE COAT C OF E PERFORMING ARTS COLLEGE,228.06,DRY FOODS-PROVISIONS,CATERERS
08 Jan 2015,BLAKEMORE FOODSERVICE,NEIGHBOURHOOD SERVICES,CA BLUE COAT C OF E PERFORMING ARTS COLLEGE,89.37,DRY FOODS-PROVISIONS,CATERERS
08 Jan 2015,BLAKEMORE FOODSERVICE,NEIGHBOURHOOD SERVICES,CA BLUE COAT C OF E PERFORMING ARTS COLLEGE,24.12,DRY FOODS-PROVISIONS,CATERERS
08 Jan 2015,JOHAL DAIRIES LTD,SOCIAL CARE & INCLUSION,REABLEMENT TEAM - HOLLY BANK,122.36,MISC DAIRY PRODUCTS-PROVISIONS,OTHER NONDURABLE GOODS
08 Jan 2015,BLAKEMORE FOODSERVICE,NEIGHBOURHOOD SERVICES,CA OAKWOOD SPECIAL SCHOOL,97.62,FROZEN FOODS-PROVISIONS,CATERERS
08 Jan 2015,OFFICE DEPOT,NEIGHBOURHOOD SERVICES,RESOURCE MANAGEMENT,15.61,STATIONERY & GENERAL SUPPLIES-OFFICE EXP,"STATIONERY, OFFICE SUPPLIES AND WRITING PAPER"
08 Jan 2015,WELSH BROS FOODS LTD,NEIGHBOURHOOD SERVICES,CA JANE LANE SPECIAL SCHOOL,57.37,MEAT-PROVISIONS,FREEZER AND LOCKER MEAT PROVISIONERS
09 Jan 2015,GRO HM PASSPORT OFFICE,CHILDRENS SERVICES,SAFEGUARDING & FAMILY SUPPORT,-23.40,REGISTRAR OF BIRTHS/DEATHS/MARRIAGES/CIVIL PARTNERSHIPS-SERV-FEES/CHARGES,GOVERNMENT SERVICES
09 Jan 2015,SCREWFIX,NEIGHBOURHOOD SERVICES,DEPOT,14.99,GENERAL MATERIALS,LUMBER & BUILDING MATERIALS STORES
09 Jan 2015,TP WALSALL BM,NEIGHBOURHOOD SERVICES,ARBORETUM,53.24,GENERAL MATERIALS,LUMBER & BUILDING MATERIALS STORES
09 Jan 2015,SIM MAYOU HARDWARE,NEIGHBOURHOOD SERVICES,DEPOT,29.70,GENERAL MATERIALS,OTHER CONSTRUCTION MATERIALS
09 Jan 2015,AMAZON *MKTPLCE EU-UK,CHILDRENS SERVICES,ROSEDALE C.E. PRIMARY SCHOOL,11.55,GENERAL MATERIALS,BOOK STORES
09 Jan 2015,W M MORRISON PLC,CHILDRENS SERVICES,"43A HILTON ROAD, WILLENHALL",12.49,GENERAL PROVISIONS-PROVISIONS,GROCERY STORES AND SUPERMARKETS
09 Jan 2015,W M MORRISON PLC,CHILDRENS SERVICES,"43A HILTON ROAD, WILLENHALL",62.58,GENERAL PROVISIONS-PROVISIONS,GROCERY STORES AND SUPERMARKETS
09 Jan 2015,W M MORRISON PLC,CHILDRENS SERVICES,"43A HILTON ROAD, WILLENHALL",69.42,GENERAL PROVISIONS-PROVISIONS,GROCERY STORES AND SUPERMARKETS
09 Jan 2015,W M MORRISON PLC,CHILDRENS SERVICES,"43A HILTON ROAD, WILLENHALL",3.99,EQUIP NEW-CLEANING,GROCERY STORES AND SUPERMARKETS
09 Jan 2015,LONDON MIDLAND TIC,CHILDRENS SERVICES,LOOKED AFTER CHILDRENS SOCIAL WORK TEAM,-32.40,OFFICER/STAFF-PUBLIC TRANSPORT,PASSENGER RAILWAYS
09 Jan 2015,LONDON MIDLAND TIC,CHILDRENS SERVICES,LOOKED AFTER CHILDRENS SOCIAL WORK TEAM,-16.20,OFFICER/STAFF-PUBLIC TRANSPORT,PASSENGER RAILWAYS
09 Jan 2015,LONDON MIDLAND TIC,CHILDRENS SERVICES,LOOKED AFTER CHILDRENS SOCIAL WORK TEAM,48.60,OFFICER/STAFF-PUBLIC TRANSPORT,PASSENGER RAILWAYS
09 Jan 2015,LONDON MIDLAND TIC,CHILDRENS SERVICES,LOOKED AFTER CHILDRENS SOCIAL WORK TEAM,42.70,OFFICER/STAFF-PUBLIC TRANSPORT,PASSENGER RAILWAYS
09 Jan 2015,STRIKE ELECTRICAL DIST,CHILDRENS SERVICES,CLUSTER 4 ALUMWELL & BIRCHILLS,23.76,CLEANING-MATERIALS (INC LIGHT BULBS),HOUSEHOLD APPLIANCE STORES
09 Jan 2015,PIZZA HUT 754,CHILDRENS SERVICES,REWARDS,333.90,GENERAL MATERIALS,"EATING PLACES, RESTAURANTS"
09 Jan 2015,AMAZON EU,CHILDRENS SERVICES,ADMINISTRATIVE SUPPLIES,29.16,GENERAL MATERIALS,OTHER DIRECT MARKETING-OTHER DIRECT MARKETERS
09 Jan 2015,AMAZON *MKTPLCE EU-UK,CHILDRENS SERVICES,GENERAL RESOURCES & MISC,35.96,GENERAL MATERIALS,BOOK STORES
09 Jan 2015,WWW.BAKERROSS.CO.UK,CHILDRENS SERVICES,CLUSTER 4 ALUMWELL & BIRCHILLS,105.20,GENERAL MATERIALS,"ARTIST SUPPLY STORES, CRAFT SHOPS"
09 Jan 2015,AMAZON EU,CHILDRENS SERVICES,SEN,43.14,LIBRARY BOOKS,OTHER DIRECT MARKETING-OTHER DIRECT MARKETERS
09 Jan 2015,PAYPAL,CHILDRENS SERVICES,DT,20.00,GENERAL MATERIALS,BOOK STORES
09 Jan 2015,ASDA HOME SHOPPING,CHILDRENS SERVICES,SPINDLETREE,121.10,GENERAL PROVISIONS-PROVISIONS,GROCERY STORES AND SUPERMARKETS
09 Jan 2015,VIKING,CHILDRENS SERVICES,PUPIL REFERAL UNIT EXCLUSIONS,459.86,STATIONERY & GENERAL SUPPLIES-OFFICE EXP,"STATIONERY, OFFICE SUPPLIES AND WRITING PAPER"
09 Jan 2015,AMAZON *MKTPLCE EU-UK,CHILDRENS SERVICES,PUPIL REFERAL UNIT EXCLUSIONS,69.98,LIBRARY BOOKS,BOOK STORES
09 Jan 2015,TRAINLINE.COM,RESOURCES,SIT-CORPORATE SERVICES,373.01,OFFICER/STAFF-PUBLIC TRANSPORT,PASSENGER RAILWAYS
09 Jan 2015,AMAZON *MKTPLCE EU-UK,CHILDRENS SERVICES,PUPIL PREMIUM,47.85,GENERAL MATERIALS,BOOK STORES
09 Jan 2015,ALDI,NEIGHBOURHOOD SERVICES,POOLFITTERS,14.99,GENERAL MATERIALS,GROCERY STORES AND SUPERMARKETS
09 Jan 2015,GRO HM PASSPORT OFFICE,CHILDRENS SERVICES,SAFEGUARDING & FAMILY SUPPORT,23.40,REGISTRAR OF BIRTHS/DEATHS/MARRIAGES/CIVIL PARTNERSHIPS-SERV-FEES/CHARGES,GOVERNMENT SERVICES
09 Jan 2015,MOTHERCARE DIRECT-E-CO,CHILDRENS SERVICES,SAFEGUARDING & FAMILY SUPPORT,16.91,BEDDING & LINEN-MATERIALS,DEPARTMENT STORES
09 Jan 2015,PREMIER INN44533745,RESOURCES,ADVICE & GUIDANCE SERVICE,179.25,BED & BREAKFAST PAYMENTS,PREMIER INN
09 Jan 2015,REGISTRATION SERVICES,CHILDRENS SERVICES,TRANSITION AND LEAVING CARE,15.00,REGISTRAR OF BIRTHS/DEATHS/MARRIAGES/CIVIL PARTNERSHIPS-SERV-FEES/CHARGES,OTHER RECREATION SERVICES
09 Jan 2015,THREE-BILLPAY(CC),SOCIAL CARE & INCLUSION,INTEGRATED BUSINESS PROCESSES & SERVICES,69.08,COSTS (NOT INTERNAL RECHARGES)-TELEPHONES,TELECOMMUNICATION SERVICES
09 Jan 2015,BT BILL PAYMENT 2,SOCIAL CARE & INCLUSION,INTEGRATED BUSINESS PROCESSES & SERVICES,67.85,COSTS (NOT INTERNAL RECHARGES)-TELEPHONES,TELECOMMUNICATION EQUIPMENT & SALES
09 Jan 2015,BT BILL PAYMENT 2,SOCIAL CARE & INCLUSION,INTEGRATED BUSINESS PROCESSES & SERVICES,81.92,COSTS (NOT INTERNAL RECHARGES)-TELEPHONES,TELECOMMUNICATION EQUIPMENT & SALES
09 Jan 2015,BT BILL PAYMENT 2,SOCIAL CARE & INCLUSION,INTEGRATED BUSINESS PROCESSES & SERVICES,72.49,COSTS (NOT INTERNAL RECHARGES)-TELEPHONES,TELECOMMUNICATION EQUIPMENT & SALES
09 Jan 2015,TESCO STORES 6161,RESOURCES,ADVICE & GUIDANCE SERVICE,100.00,FOOD AND BEVERAGES-PROVISIONS,GROCERY STORES AND SUPERMARKETS
09 Jan 2015,AMAZON *MKTPLCE EU-UK,SOCIAL CARE & INCLUSION,INTEGRATED BUSINESS PROCESSES & SERVICES,-39.98,LIBRARY BOOKS,BOOK STORES
09 Jan 2015,AMAZON EU,SOCIAL CARE & INCLUSION,INTEGRATED BUSINESS PROCESSES & SERVICES,-32.98,FURNITURE & EQUIPMENT,OTHER DIRECT MARKETING-OTHER DIRECT MARKETERS
09 Jan 2015,ASDA HOME SHOPPING,NEIGHBOURHOOD SERVICES,VP SCL VOCATIONAL & SUPPORTED LEARNING,23.96,CATERING,GROCERY STORES AND SUPERMARKETS
09 Jan 2015,ASDA HOME SHOPPING,NEIGHBOURHOOD SERVICES,VP SCL VOCATIONAL & SUPPORTED LEARNING,287.92,CATERING,GROCERY STORES AND SUPERMARKETS
09 Jan 2015,ASDA HOME SHOPPING,NEIGHBOURHOOD SERVICES,VP SCL VOCATIONAL & SUPPORTED LEARNING,5.00,CATERING,GROCERY STORES AND SUPERMARKETS
09 Jan 2015,WM MORRISON 063,CHILDRENS SERVICES,REDRUTH ROAD,42.30,GENERAL PROVISIONS-PROVISIONS,GROCERY STORES AND SUPERMARKETS
09 Jan 2015,WM MORRISON 063,CHILDRENS SERVICES,REDRUTH ROAD,6.39,CLEANING-MATERIALS (INC LIGHT BULBS),GROCERY STORES AND SUPERMARKETS
09 Jan 2015,THE TRAINLINE.COM,CHILDRENS SERVICES,GENERAL MANAGEMENT SUPPORT (INC LEGAL),8.21,OFFICER/STAFF-PUBLIC TRANSPORT,PASSENGER RAILWAYS
09 Jan 2015,DON RUFFLES LTD,NEIGHBOURHOOD SERVICES,STREET PRIDE MANAGEMENT,178.80,STATIONERY & GENERAL SUPPLIES-OFFICE EXP,"OFFICE, SCHOOL SUPPLY, AND STATIONERY STORES"
09 Jan 2015,TRAINLINE.COM,REGENERATION,REGENERATION MANAGEMENT,99.86,OFFICER/STAFF-PUBLIC TRANSPORT,PASSENGER RAILWAYS
09 Jan 2015,ASDA,RESOURCES,LINK SERVICE,4.25,FOOD AND BEVERAGES-PROVISIONS,GROCERY STORES AND SUPERMARKETS
09 Jan 2015,ASDA,RESOURCES,LINK SERVICE,6.07,FOOD AND BEVERAGES-PROVISIONS,GROCERY STORES AND SUPERMARKETS
09 Jan 2015,SHOWCASE CINEMAS DUDLE,CHILDRENS SERVICES,REWARDS,125.00,GENERAL MATERIALS,MOTION PICTURE THEATERS
09 Jan 2015,SILVER BLADES - CA,CHILDRENS SERVICES,REWARDS,141.00,GENERAL MATERIALS,RECREATIONAL AND SPORTING CAMPS
09 Jan 2015,PREMIER INN44533745,NEIGHBOURHOOD SERVICES,NAG - TEMPORARY EXHIBITIONS,243.00,OTHER EXPENSES-EXPENSES,PREMIER INN
09 Jan 2015,RYMAN,NEIGHBOURHOOD SERVICES,NAG - TEMPORARY EXHIBITIONS,17.99,STATIONERY & GENERAL SUPPLIES-OFFICE EXP,"OFFICE, SCHOOL SUPPLY, AND STATIONERY STORES"
09 Jan 2015,POST OFFICE COUNTER,NEIGHBOURHOOD SERVICES,FOREST ARTS CENTRE,60.15,GENERAL MATERIALS,POSTAL SERVICES - GOVERNMENT ONLY
09 Jan 2015,WWW.JOHNLEWIS.COM,NEIGHBOURHOOD SERVICES,FOREST ARTS CENTRE,199.99,GENERAL MATERIALS,DEPARTMENT STORES
09 Jan 2015,LONDON MIDLAND INT,CHILDRENS SERVICES,FOUNDATION LEARNING,152.00,OFFICER/STAFF-PUBLIC TRANSPORT,PASSENGER RAILWAYS
09 Jan 2015,LONDON MIDLAND INT,CHILDRENS SERVICES,FOUNDATION LEARNING,119.00,OFFICER/STAFF-PUBLIC TRANSPORT,PASSENGER RAILWAYS
09 Jan 2015,TRAINLINE.COM,CHILDRENS SERVICES,SEN REFORM GRANT,173.91,OFFICER/STAFF-PUBLIC TRANSPORT,PASSENGER RAILWAYS
09 Jan 2015,MARSTON BOOK LTD,CHILDRENS SERVICES,SCHOOL IMPROVEMENT,54.88,STATIONERY & GENERAL SUPPLIES-OFFICE EXP,OTHER DIRECT MARKETING-OTHER DIRECT MARKETERS
09 Jan 2015,VIRGINTRAINS.CO.UK,CHILDRENS SERVICES,SCHOOL IMPROVEMENT,78.60,OFFICER/STAFF-PUBLIC TRANSPORT,PASSENGER RAILWAYS
09 Jan 2015,SIM MAYOU HARDWARE,NEIGHBOURHOOD SERVICES,DEPOT,6.99,GENERAL MATERIALS,OTHER CONSTRUCTION MATERIALS
09 Jan 2015,TESCO STORES 6161,RESOURCES,WALSALL CRISIS SUPPORT SCHEME,15.00,CRISIS SUPPORT PAYMENTS,GROCERY STORES AND SUPERMARKETS
09 Jan 2015,WWW.GIROFOOD.COM,NEIGHBOURHOOD SERVICES,CA BEACON PRIMARY SCHOOL,148.04,DISPOSABLES-PROVISIONS,WHOLESALE CLUBS
09 Jan 2015,WWW.GIROFOOD.COM,NEIGHBOURHOOD SERVICES,CA CROFT COMMUNITY PRIMARY SCHOOL,72.71,DISPOSABLES-PROVISIONS,WHOLESALE CLUBS
09 Jan 2015,OFFICE DEPOT,CHILDRENS SERVICES,SCHOOL IMPROVEMENT,39.31,STATIONERY & GENERAL SUPPLIES-OFFICE EXP,"STATIONERY, OFFICE SUPPLIES AND WRITING PAPER"
09 Jan 2015,OFFICE DEPOT,CHILDRENS SERVICES,SCHOOL IMPROVEMENT,1.06,STATIONERY & GENERAL SUPPLIES-OFFICE EXP,"STATIONERY, OFFICE SUPPLIES AND WRITING PAPER"
09 Jan 2015,OFFICE DEPOT,CHILDRENS SERVICES,GENERAL RESOURCES,2.17,GENERAL MATERIALS,"STATIONERY, OFFICE SUPPLIES AND WRITING PAPER"
09 Jan 2015,OFFICE DEPOT,CHILDRENS SERVICES,"CLUSTER 6 BENTLEY,LIGHTHOUSE,FIBBERSLEY",23.39,STATIONERY & GENERAL SUPPLIES-OFFICE EXP,"STATIONERY, OFFICE SUPPLIES AND WRITING PAPER"
09 Jan 2015,OFFICE DEPOT,CHILDRENS SERVICES,PROFFITT STREET YOUTH PROJECT,215.12,STATIONERY & GENERAL SUPPLIES-OFFICE EXP,"STATIONERY, OFFICE SUPPLIES AND WRITING PAPER"
09 Jan 2015,ARTHUR BRETT CATER,NEIGHBOURHOOD SERVICES,CA LEIGHSWOOD PRIMARY SCHOOL,150.49,FRUIT & VEGETABLES OTHER-PROVISIONS,MISCELLANEOUS FOOD STORES & CONVENIENCE STORES
09 Jan 2015,ARTHUR BRETT CATER,NEIGHBOURHOOD SERVICES,CA CALDMORE COMMUNITY PRIMARY SCHOOL,56.44,FRUIT & VEGETABLES OTHER-PROVISIONS,MISCELLANEOUS FOOD STORES & CONVENIENCE STORES
09 Jan 2015,OFFICE DEPOT,CHILDRENS SERVICES,"CLUSTER 1 BROWNHILLS,GREENFIELDS,PELSALL",18.14,STATIONERY & GENERAL SUPPLIES-OFFICE EXP,"STATIONERY, OFFICE SUPPLIES AND WRITING PAPER"
09 Jan 2015,OFFICE DEPOT,NEIGHBOURHOOD SERVICES,CEMETERIES CENTRAL ADMINISTRATION,70.82,STATIONERY & GENERAL SUPPLIES-OFFICE EXP,"STATIONERY, OFFICE SUPPLIES AND WRITING PAPER"
09 Jan 2015,OFFICE DEPOT,RESOURCES,PRINT STORES,420.00,STATIONERY & GENERAL SUPPLIES-OFFICE EXP,"STATIONERY, OFFICE SUPPLIES AND WRITING PAPER"
09 Jan 2015,OFFICE DEPOT,RESOURCES,PRINT STORES,17.11,STATIONERY & GENERAL SUPPLIES-OFFICE EXP,"STATIONERY, OFFICE SUPPLIES AND WRITING PAPER"
09 Jan 2015,THE TRAINLINE.COM,RESOURCES,ELECTORAL SERVICES,58.75,OFFICER/STAFF-PUBLIC TRANSPORT,PASSENGER RAILWAYS
09 Jan 2015,THE TRAINLINE.COM,RESOURCES,ELECTORAL SERVICES,91.70,OFFICER/STAFF-PUBLIC TRANSPORT,PASSENGER RAILWAYS
09 Jan 2015,ARTHUR BRETT CATER,NEIGHBOURHOOD SERVICES,CA BARCROFT D/C,25.20,FRUIT & VEGETABLES OTHER-PROVISIONS,MISCELLANEOUS FOOD STORES & CONVENIENCE STORES
10 Jan 2015,AMAZON *MKTPLCE EU-UK,CHILDRENS SERVICES,ROSEDALE C.E. PRIMARY SCHOOL,24.48,GENERAL MATERIALS,BOOK STORES
10 Jan 2015,OFFICE DEPOT,CHILDRENS SERVICES,UNIVERSAL EDUCATION CLIENT UNIT,119.76,STATIONERY & GENERAL SUPPLIES-OFFICE EXP,"STATIONERY, OFFICE SUPPLIES AND WRITING PAPER"
10 Jan 2015,OFFICE DEPOT,CHILDRENS SERVICES,ACCESS TEAM,44.68,STATIONERY & GENERAL SUPPLIES-OFFICE EXP,"STATIONERY, OFFICE SUPPLIES AND WRITING PAPER"
10 Jan 2015,OFFICE DEPOT,CHILDRENS SERVICES,EARLY YEARS SERVICE,96.96,STATIONERY & GENERAL SUPPLIES-OFFICE EXP,"STATIONERY, OFFICE SUPPLIES AND WRITING PAPER"
10 Jan 2015,OFFICE DEPOT,SOCIAL CARE & INCLUSION,INTEGRATED BUSINESS PROCESSES & SERVICES,71.10,GENERAL MATERIALS,"STATIONERY, OFFICE SUPPLIES AND WRITING PAPER"
10 Jan 2015,OFFICE DEPOT,CHILDRENS SERVICES,"CLUSTER 1 BROWNHILLS,GREENFIELDS,PELSALL",9.54,STATIONERY & GENERAL SUPPLIES-OFFICE EXP,"STATIONERY, OFFICE SUPPLIES AND WRITING PAPER"
10 Jan 2015,OFFICE DEPOT,SOCIAL CARE & INCLUSION,INTEGRATED BUSINESS PROCESSES & SERVICES,102.53,STATIONERY & GENERAL SUPPLIES-OFFICE EXP,"STATIONERY, OFFICE SUPPLIES AND WRITING PAPER"
11 Jan 2015,CARD FACTORY,NEIGHBOURHOOD SERVICES,DEPOT,2.50,GENERAL MATERIALS,"CARD, GIFT, NOVELTY, AND SOUVENIR SHOPS"
11 Jan 2015,AMAZON *MKTPLCE EU-UK,REGENERATION,DIRECTORATE SUPPORT,30.41,MISCELLANEOUS SUPPLIES,BOOK STORES
12 Jan 2015,THY,NEIGHBOURHOOD SERVICES,NAG - EXTERNALLY FUNDED PROJECTS,512.46,OTHER/VOLUNTEERS-PUBLIC TRANSPORT,TURKISH AIRLINES
12 Jan 2015,ASDA HOME SHOPPING,CHILDRENS SERVICES,"CLUSTER 3 BLOXWICH,BLAKENALL,HATHERTON,E STAMMERS",-1.00,FOOD AND BEVERAGES-PROVISIONS,GROCERY STORES AND SUPERMARKETS
12 Jan 2015,LOCKS & FITTINGS,NEIGHBOURHOOD SERVICES,COMMUNITY LIAISON,67.48,"REPAIRS,ALTERATIONS & MAINTENANCE-PREM",HARDWARE EQUIPMENT AND SUPPLIES
12 Jan 2015,WM MORRISON FOOD.COM,CHILDRENS SERVICES,CLUSTER 5 DARLASTON,5.10,GENERAL PROVISIONS-PROVISIONS,GROCERY STORES AND SUPERMARKETS
12 Jan 2015,WM MORRISON FOOD.COM,CHILDRENS SERVICES,CLUSTER 5 DARLASTON,143.52,FOOD AND BEVERAGES-PROVISIONS,GROCERY STORES AND SUPERMARKETS
12 Jan 2015,WM MORRISON FOOD.COM,CHILDRENS SERVICES,"CLUSTER 3 BLOXWICH,BLAKENALL,HATHERTON,E STAMMERS",27.96,FOOD AND BEVERAGES-PROVISIONS,GROCERY STORES AND SUPERMARKETS
12 Jan 2015,WM MORRISON FOOD.COM,CHILDRENS SERVICES,"CLUSTER 3 BLOXWICH,BLAKENALL,HATHERTON,E STAMMERS",68.96,FOOD AND BEVERAGES-PROVISIONS,GROCERY STORES AND SUPERMARKETS
12 Jan 2015,TESCO STORES 6161,CHILDRENS SERVICES,"CLUSTER 3 BLOXWICH,BLAKENALL,HATHERTON,E STAMMERS",13.70,CLEANING MATERIALS,GROCERY STORES AND SUPERMARKETS
12 Jan 2015,EXPEDIA 17826277392,NEIGHBOURHOOD SERVICES,NAG - EXTERNALLY FUNDED PROJECTS,10.00,OTHER/VOLUNTEERS-PUBLIC TRANSPORT,TRAVEL AGENCIES AND TOUR OPERATORS
12 Jan 2015,THE TRAINLINE.COM,NEIGHBOURHOOD SERVICES,AREA PARTNERSHIPS,29.33,OFFICER/STAFF-PUBLIC TRANSPORT,PASSENGER RAILWAYS
12 Jan 2015,WM MORRISON 063,CHILDRENS SERVICES,REDRUTH ROAD,12.33,GENERAL PROVISIONS-PROVISIONS,GROCERY STORES AND SUPERMARKETS
12 Jan 2015,WM MORRISON 063,CHILDRENS SERVICES,REDRUTH ROAD,54.74,GENERAL PROVISIONS-PROVISIONS,GROCERY STORES AND SUPERMARKETS
12 Jan 2015,CURRYS,NEIGHBOURHOOD SERVICES,DARLASTON LEISURE CENTRE,69.99,FURNITURE & EQUIPMENT,ELECTRONIC SALES
12 Jan 2015,ASDA HOME SHOPPING,NEIGHBOURHOOD SERVICES,VP SCL VOCATIONAL & SUPPORTED LEARNING,4.00,CATERING,GROCERY STORES AND SUPERMARKETS
12 Jan 2015,ASDA HOME SHOPPING,NEIGHBOURHOOD SERVICES,VP SCL VOCATIONAL & SUPPORTED LEARNING,55.42,CATERING,GROCERY STORES AND SUPERMARKETS
12 Jan 2015,ASDA HOME SHOPPING,NEIGHBOURHOOD SERVICES,PRINCIPAL BOARD OF GOVERNORS,6.90,CATERING,GROCERY STORES AND SUPERMARKETS
12 Jan 2015,ASDA HOME SHOPPING,NEIGHBOURHOOD SERVICES,VP SCL VOCATIONAL & SUPPORTED LEARNING,2.86,CATERING,GROCERY STORES AND SUPERMARKETS
12 Jan 2015,VUE*NCS CITB HS&E TEST,NEIGHBOURHOOD SERVICES,AP FINANCE & RESOURCES EXAMINATIONS,157.50,EXAMINATIONS-SERVICES,OTHER SCHOOLS AND EDUCATIONAL SERVICES
12 Jan 2015,REGISTRATION SERVICES,CHILDRENS SERVICES,SUPPORT UNDER SECT 23 OF THE CHILDRENS ACT,10.00,SUPPORT UNDER SECTION 23 OF THE CHILDRENS ACT,OTHER RECREATION SERVICES
12 Jan 2015,IKEA SACAT,SOCIAL CARE & INCLUSION,FALLINGS HEATH,5.00,FOOD AND BEVERAGES-PROVISIONS,MISCELLANEOUS HOUSE FURNISHING SPECIALTY SHOPS
12 Jan 2015,MNA LTD CARDCHARGE,REGENERATION,DEVELOPMENT MANAGEMENT,108.00,PERIODICALS/MAGAZINES/NEWSPAPERS-SUBSCRIPTIONS,NEWS DEALERS AND NEWSSTANDS
12 Jan 2015,PARENTPAY.COM,CHILDRENS SERVICES,57 LICHFIELD ROAD,13.53,GENERAL PROVISIONS-PROVISIONS,"COLLEGES, UNIVERSITIES, PROFESSIONAL SCHOOLS"
12 Jan 2015,ARGOS RETAIL GROUP,CHILDRENS SERVICES,57 LICHFIELD ROAD,98.93,RESIDENTS PERSONAL EXPENSES-ALLOWANCES TO S/S CLIENTS,DISCOUNT STORES
12 Jan 2015,WM MORRISONS,CHILDRENS SERVICES,57 LICHFIELD ROAD,4.00,GENERAL PROVISIONS-PROVISIONS,GROCERY STORES AND SUPERMARKETS
12 Jan 2015,WM MORRISONS,CHILDRENS SERVICES,57 LICHFIELD ROAD,11.89,GENERAL PROVISIONS-PROVISIONS,GROCERY STORES AND SUPERMARKETS
12 Jan 2015,WM MORRISONS,CHILDRENS SERVICES,57 LICHFIELD ROAD,7.50,EQUIP NEW-CLEANING,GROCERY STORES AND SUPERMARKETS
12 Jan 2015,CONCENTRIC LETTINGS LT,RESOURCES,HOMELESS PREVENTION GRANT,550.00,LANGUAGES & INTERPRETATION-SERVICES,PROFESSIONAL SERVICES
12 Jan 2015,AMAZON *MKTPLCE EU-UK,NEIGHBOURHOOD SERVICES,REGISTRAR,31.98,STATIONERY & GENERAL SUPPLIES-OFFICE EXP,BOOK STORES
12 Jan 2015,NEC PARKING,CHILDRENS SERVICES,PUPIL PREMIUM,8.00,GENERAL MATERIALS,OTHER BUSINESS SERVICES
12 Jan 2015,SADIE COLES HQ LIM,NEIGHBOURHOOD SERVICES,NAG - GARMAN RYAN/PERMANENT COLLECTION,133.00,DISCOVERY / GARMAN RYAN,ART DEALERS AND GALLERIES
12 Jan 2015,GRO HM PASSPORT OFFICE,CHILDRENS SERVICES,SAFEGUARDING & FAMILY SUPPORT,23.40,REGISTRAR OF BIRTHS/DEATHS/MARRIAGES/CIVIL PARTNERSHIPS-SERV-FEES/CHARGES,GOVERNMENT SERVICES
12 Jan 2015,WEST MID TRAVEL,CHILDRENS SERVICES,SAFEGUARDING & FAMILY SUPPORT,420.00,OFFICER/STAFF-PUBLIC TRANSPORT,BUS LINES
12 Jan 2015,WEST MID TRAVEL,CHILDRENS SERVICES,SAFEGUARDING & FAMILY SUPPORT,6.75,OFFICER/STAFF-PUBLIC TRANSPORT,BUS LINES
12 Jan 2015,CURRYS ONLINE,CHILDRENS SERVICES,ICT LEARNING RESOURCES,69.93,GENERAL MATERIALS,ELECTRONIC SALES
12 Jan 2015,TRAINLINE.COM,RESOURCES,SIT-CORPORATE SERVICES,187.78,GENERAL MATERIALS,PASSENGER RAILWAYS
12 Jan 2015,TRAINLINE.COM,CHILDRENS SERVICES,SEN,55.59,OFFICER/STAFF-PUBLIC TRANSPORT,PASSENGER RAILWAYS
12 Jan 2015,ASDA HOME SHOPPING,CHILDRENS SERVICES,CLUSTER 4 ALUMWELL & BIRCHILLS,10.13,FOOD AND BEVERAGES-PROVISIONS,GROCERY STORES AND SUPERMARKETS
12 Jan 2015,ASDA HOME SHOPPING,CHILDRENS SERVICES,CLUSTER 4 ALUMWELL & BIRCHILLS,1.00,CLEANING MATERIALS,GROCERY STORES AND SUPERMARKETS
12 Jan 2015,ASDA HOME SHOPPING,CHILDRENS SERVICES,ALUMWELL NURSERY,83.62,FOOD AND BEVERAGES-PROVISIONS,GROCERY STORES AND SUPERMARKETS
12 Jan 2015,ASDA HOME SHOPPING,CHILDRENS SERVICES,CLUSTER 4 ALUMWELL & BIRCHILLS,5.50,FOOD AND BEVERAGES-PROVISIONS,GROCERY STORES AND SUPERMARKETS
12 Jan 2015,ASDA HOME SHOPPING,CHILDRENS SERVICES,ALUMWELL NURSERY,2.75,FOOD AND BEVERAGES-PROVISIONS,GROCERY STORES AND SUPERMARKETS
12 Jan 2015,ASDA HOME SHOPPING,CHILDRENS SERVICES,ALUMWELL NURSERY,3.00,CLEANING MATERIALS,GROCERY STORES AND SUPERMARKETS
12 Jan 2015,ASDA HOME SHOPPING,CHILDRENS SERVICES,CLUSTER 4 ALUMWELL & BIRCHILLS,1.49,CLEANING MATERIALS,GROCERY STORES AND SUPERMARKETS
12 Jan 2015,WWW.INVESTEC.CO.UK,CHILDRENS SERVICES,CLUSTER 4 ALUMWELL & BIRCHILLS,176.61,LEASING/HIRE/RENTAL-EQUIPMENT,EQUIPMENT RENTAL AND LEASING SERVICES
12 Jan 2015,ASDA HOME SHOPPING,CHILDRENS SERVICES,CLUSTER 4 ALUMWELL & BIRCHILLS,2.25,FOOD AND BEVERAGES-PROVISIONS,GROCERY STORES AND SUPERMARKETS
12 Jan 2015,ASDA HOME SHOPPING,CHILDRENS SERVICES,CLUSTER 4 ALUMWELL & BIRCHILLS,7.18,FOOD AND BEVERAGES-PROVISIONS,GROCERY STORES AND SUPERMARKETS
12 Jan 2015,ASDA HOME SHOPPING,CHILDRENS SERVICES,STANLEYS NURSERY,39.08,FOOD AND BEVERAGES-PROVISIONS,GROCERY STORES AND SUPERMARKETS
12 Jan 2015,ASDA HOME SHOPPING,CHILDRENS SERVICES,STANLEYS NURSERY,5.81,FOOD AND BEVERAGES-PROVISIONS,GROCERY STORES AND SUPERMARKETS
12 Jan 2015,ASDA HOME SHOPPING,CHILDRENS SERVICES,STANLEYS NURSERY,6.53,CLEANING MATERIALS,GROCERY STORES AND SUPERMARKETS
12 Jan 2015,AMAZON EU,CHILDRENS SERVICES,ADMINISTRATIVE SUPPLIES,19.44,GENERAL MATERIALS,OTHER DIRECT MARKETING-OTHER DIRECT MARKETERS
12 Jan 2015,AMAZON *MKTPLCE EU-UK,CHILDRENS SERVICES,ADMINISTRATIVE SUPPLIES,4.95,GENERAL MATERIALS,BOOK STORES
12 Jan 2015,RISING STARS UK LT,CHILDRENS SERVICES,ASSESSMENT COSTS,524.95,GENERAL MATERIALS,OTHER SCHOOLS AND EDUCATIONAL SERVICES
12 Jan 2015,ARGOS RETAIL GROUP,CHILDRENS SERVICES,ADMINISTRATIVE SUPPLIES,163.91,GENERAL MATERIALS,DISCOUNT STORES
12 Jan 2015,ASDA HOME SHOPPING,CHILDRENS SERVICES,"CLUSTER 1 BROWNHILLS,GREENFIELDS,PELSALL",34.62,FOOD AND BEVERAGES-PROVISIONS,GROCERY STORES AND SUPERMARKETS
12 Jan 2015,ASDA HOME SHOPPING,CHILDRENS SERVICES,"CLUSTER 1 BROWNHILLS,GREENFIELDS,PELSALL",5.10,FOOD AND BEVERAGES-PROVISIONS,GROCERY STORES AND SUPERMARKETS
12 Jan 2015,TESCO STORES 3351,CHILDRENS SERVICES,"CLUSTER 1 BROWNHILLS,GREENFIELDS,PELSALL",20.00,FOOD AND BEVERAGES-PROVISIONS,GROCERY STORES AND SUPERMARKETS
12 Jan 2015,WWW.DVLA.GOV.UK,NEIGHBOURHOOD SERVICES,FLEET,167.50,LICENCES-TRANSPORT RUN COSTS,GOVERNMENT SERVICES
12 Jan 2015,TRAINLINE.COM,RESOURCES,SOCIAL CARE TEAM,172.89,OTHER-TRAVEL ALLOWANCES,PASSENGER RAILWAYS
12 Jan 2015,WATERSTONES.COM,CHILDRENS SERVICES,CONTINGENCY,119.80,LIBRARY BOOKS,BOOK STORES
12 Jan 2015,VODAFONE,CHILDRENS SERVICES,ADMINISTRATIVE SUPPLIES,4.38,TELEPHONES MOBILE/PAGERS-TELEPHONES,TELECOMMUNICATION SERVICES
12 Jan 2015,VODAFONE,CHILDRENS SERVICES,ADMINISTRATIVE SUPPLIES,114.01,TELEPHONES MOBILE/PAGERS-TELEPHONES,TELECOMMUNICATION SERVICES
12 Jan 2015,POST OFFICE COUNTER,NEIGHBOURHOOD SERVICES,FLEET,847.50,LICENCES-TRANSPORT RUN COSTS,POSTAL SERVICES - GOVERNMENT ONLY
12 Jan 2015,ASDA HOME SHOPPING,CHILDRENS SERVICES,"CLUSTER 1 BROWNHILLS,GREENFIELDS,PELSALL",19.81,FOOD AND BEVERAGES-PROVISIONS,GROCERY STORES AND SUPERMARKETS
12 Jan 2015,ASDA HOME SHOPPING,CHILDRENS SERVICES,"CLUSTER 1 BROWNHILLS,GREENFIELDS,PELSALL",42.72,FOOD AND BEVERAGES-PROVISIONS,GROCERY STORES AND SUPERMARKETS
12 Jan 2015,ASDA HOME SHOPPING,CHILDRENS SERVICES,"CLUSTER 3 BLOXWICH,BLAKENALL,HATHERTON,E STAMMERS",31.54,FOOD AND BEVERAGES-PROVISIONS,GROCERY STORES AND SUPERMARKETS
12 Jan 2015,ASDA HOME SHOPPING,CHILDRENS SERVICES,"CLUSTER 3 BLOXWICH,BLAKENALL,HATHERTON,E STAMMERS",4.00,FOOD AND BEVERAGES-PROVISIONS,GROCERY STORES AND SUPERMARKETS
12 Jan 2015,TESCO STORES 6161,CHILDRENS SERVICES,"43A HILTON ROAD, WILLENHALL",18.00,EQUIP NEW-CLEANING,GROCERY STORES AND SUPERMARKETS
12 Jan 2015,W M MORRISONS.COM,CHILDRENS SERVICES,"CLUSTER 6 BENTLEY,LIGHTHOUSE,FIBBERSLEY",22.62,FOOD AND BEVERAGES-PROVISIONS,GROCERY STORES AND SUPERMARKETS
12 Jan 2015,W M MORRISONS.COM,CHILDRENS SERVICES,"CLUSTER 6 BENTLEY,LIGHTHOUSE,FIBBERSLEY",27.32,FOOD AND BEVERAGES-PROVISIONS,GROCERY STORES AND SUPERMARKETS
12 Jan 2015,LONDON MIDLAND TIC,CHILDRENS SERVICES,TRANSITION AND LEAVING CARE,88.50,OFFICER/STAFF-PUBLIC TRANSPORT,PASSENGER RAILWAYS
12 Jan 2015,LONDON MIDLAND TIC,CHILDRENS SERVICES,TRANSITION AND LEAVING CARE,52.60,OFFICER/STAFF-PUBLIC TRANSPORT,PASSENGER RAILWAYS
12 Jan 2015,ASDA,RESOURCES,ADVICE & GUIDANCE SERVICE,100.00,FOOD AND BEVERAGES-PROVISIONS,GROCERY STORES AND SUPERMARKETS
12 Jan 2015,W M MORRISON PLC,RESOURCES,ACCOMMODATION SERVICES MANAGEMENT,25.00,FOOD AND BEVERAGES-PROVISIONS,GROCERY STORES AND SUPERMARKETS
12 Jan 2015,TESCO STORES 6161,RESOURCES,ACCOMMODATION SERVICES MANAGEMENT,46.60,FOOD AND BEVERAGES-PROVISIONS,GROCERY STORES AND SUPERMARKETS
12 Jan 2015,TESCO STORES 6161,RESOURCES,ACCOMMODATION SERVICES MANAGEMENT,5.40,FOOD AND BEVERAGES-PROVISIONS,GROCERY STORES AND SUPERMARKETS
12 Jan 2015,ALLPAY.NET VISA AND MAST,RESOURCES,ACCOMMODATION SERVICES MANAGEMENT,15.00,RENTS-OTHER,REAL ESTATE MANAGERS - RENTALS
12 Jan 2015,AKAL NEWS,RESOURCES,ACCOMMODATION SERVICES MANAGEMENT,20.50,FOOD AND BEVERAGES-PROVISIONS,GROCERY STORES AND SUPERMARKETS
12 Jan 2015,SHOWCASE CINEMAS,CHILDRENS SERVICES,57 LICHFIELD ROAD,32.85,RESIDENTS PERSONAL EXPENSES-ALLOWANCES TO S/S CLIENTS,MOTION PICTURE THEATERS
12 Jan 2015,BORSHCH LIMITED,RESOURCES,WALSALL CRISIS SUPPORT SCHEME,400.00,CRISIS SUPPORT PAYMENTS,ELECTRONIC SALES
12 Jan 2015,BORSHCH LIMITED,RESOURCES,WALSALL CRISIS SUPPORT SCHEME,390.00,CRISIS SUPPORT PAYMENTS,ELECTRONIC SALES
12 Jan 2015,BORSHCH LIMITED,RESOURCES,WALSALL CRISIS SUPPORT SCHEME,320.00,CRISIS SUPPORT PAYMENTS,ELECTRONIC SALES
12 Jan 2015,TESCO STORES 6161,RESOURCES,WALSALL CRISIS SUPPORT SCHEME,12.78,CRISIS SUPPORT PAYMENTS,GROCERY STORES AND SUPERMARKETS
12 Jan 2015,WWW.GIROFOOD.COM,NEIGHBOURHOOD SERVICES,CA LEIGHSWOOD PRIMARY SCHOOL,174.60,DISPOSABLES-PROVISIONS,WHOLESALE CLUBS
12 Jan 2015,BLAKEMORE FOODSERVICE,NEIGHBOURHOOD SERVICES,CA BUSILL JONES PRIMARY SCHOOL,331.76,FROZEN FOODS-PROVISIONS,CATERERS
12 Jan 2015,BLAKEMORE FOODSERVICE,NEIGHBOURHOOD SERVICES,CA BUSILL JONES PRIMARY SCHOOL,56.70,FROZEN FOODS-PROVISIONS,CATERERS
12 Jan 2015,ARTHUR BRETT CATER,NEIGHBOURHOOD SERVICES,CA BROWNHILLS WEST PRIMARY SCHOOL,92.12,FRUIT & VEGETABLES OTHER-PROVISIONS,MISCELLANEOUS FOOD STORES & CONVENIENCE STORES
12 Jan 2015,WELSH BROS FOODS LTD,NEIGHBOURHOOD SERVICES,CA BROWNHILLS WEST PRIMARY SCHOOL,111.86,MEAT-PROVISIONS,FREEZER AND LOCKER MEAT PROVISIONERS
12 Jan 2015,WELSH BROS FOODS LTD,NEIGHBOURHOOD SERVICES,CA MOORCROFT WOOD,223.52,MEAT-PROVISIONS,FREEZER AND LOCKER MEAT PROVISIONERS
12 Jan 2015,BLAKEMORE FOODSERVICE,NEIGHBOURHOOD SERVICES,CA MOORCROFT WOOD,209.16,DRY FOODS-PROVISIONS,CATERERS
12 Jan 2015,BLAKEMORE FOODSERVICE,NEIGHBOURHOOD SERVICES,CA MOORCROFT WOOD,13.15,DRY FOODS-PROVISIONS,CATERERS
12 Jan 2015,BLAKEMORE FOODSERVICE,NEIGHBOURHOOD SERVICES,CA MOORCROFT WOOD,59.69,FROZEN FOODS-PROVISIONS,CATERERS
12 Jan 2015,ARTHUR BRETT CATER,NEIGHBOURHOOD SERVICES,CA COOPER JORDAN CE PRIMARY SCHOOL,166.26,FRUIT & VEGETABLES OTHER-PROVISIONS,MISCELLANEOUS FOOD STORES & CONVENIENCE STORES
12 Jan 2015,BLAKEMORE FOODSERVICE,NEIGHBOURHOOD SERVICES,CA RADLEYS PRIMARY SCHOOL,191.66,FROZEN FOODS-PROVISIONS,CATERERS
12 Jan 2015,ARTHUR BRETT CATER,NEIGHBOURHOOD SERVICES,CA BLUE COAT C OF E PERFORMING ARTS COLLEGE,53.84,FRUIT & VEGETABLES OTHER-PROVISIONS,MISCELLANEOUS FOOD STORES & CONVENIENCE STORES
12 Jan 2015,WELSH BROS FOODS LTD,NEIGHBOURHOOD SERVICES,CA RADLEYS PRIMARY SCHOOL,201.59,MEAT-PROVISIONS,FREEZER AND LOCKER MEAT PROVISIONERS
12 Jan 2015,BLAKEMORE FOODSERVICE,NEIGHBOURHOOD SERVICES,CA JOSEPH LECKIE COMMUNITY TECHNOLOGY COLLEGE,160.08,FROZEN FOODS-PROVISIONS,CATERERS
12 Jan 2015,WELSH BROS FOODS LTD,NEIGHBOURHOOD SERVICES,CA JOSEPH LECKIE COMMUNITY TECHNOLOGY COLLEGE,251.79,MEAT-PROVISIONS,FREEZER AND LOCKER MEAT PROVISIONERS
12 Jan 2015,BLAKEMORE FOODSERVICE,NEIGHBOURHOOD SERVICES,CA JANE LANE SPECIAL SCHOOL,130.35,DRY FOODS-PROVISIONS,CATERERS
12 Jan 2015,ARTHUR BRETT CATER,NEIGHBOURHOOD SERVICES,CA ST ANNES CATHOLIC PRIMARY SCHOOL,63.76,FRUIT & VEGETABLES OTHER-PROVISIONS,MISCELLANEOUS FOOD STORES & CONVENIENCE STORES
12 Jan 2015,ARTHUR BRETT CATER,NEIGHBOURHOOD SERVICES,CA LINDENS PRIMARY SCHOOL,85.75,FRUIT & VEGETABLES OTHER-PROVISIONS,MISCELLANEOUS FOOD STORES & CONVENIENCE STORES
12 Jan 2015,WELSH BROS FOODS LTD,NEIGHBOURHOOD SERVICES,CA GREEN ROCK PRIMARY,77.70,MEAT-PROVISIONS,FREEZER AND LOCKER MEAT PROVISIONERS
12 Jan 2015,WELSH BROS FOODS LTD,NEIGHBOURHOOD SERVICES,CA BEACON PRIMARY SCHOOL,158.93,MEAT-PROVISIONS,FREEZER AND LOCKER MEAT PROVISIONERS
12 Jan 2015,THE TRAINLINE.COM,RESOURCES,FINANCE,19.13,OFFICER/STAFF-PUBLIC TRANSPORT,PASSENGER RAILWAYS
12 Jan 2015,WELSH BROS FOODS LTD,NEIGHBOURHOOD SERVICES,CA ST MICHAELS C.E. PRIMARY SCHOOL,76.03,MEAT-PROVISIONS,FREEZER AND LOCKER MEAT PROVISIONERS
12 Jan 2015,WELSH BROS FOODS LTD,NEIGHBOURHOOD SERVICES,CA ELMORE GREEN PRIMARY SCHOOL,147.02,MEAT-PROVISIONS,FREEZER AND LOCKER MEAT PROVISIONERS
12 Jan 2015,BLAKEMORE FOODSERVICE,NEIGHBOURHOOD SERVICES,CA BEACON PRIMARY SCHOOL,216.15,FROZEN FOODS-PROVISIONS,CATERERS
12 Jan 2015,WELSH BROS FOODS LTD,NEIGHBOURHOOD SERVICES,CA MEADOW VIEW JMI PRIMARY SCHOOL,190.67,MEAT-PROVISIONS,FREEZER AND LOCKER MEAT PROVISIONERS
12 Jan 2015,ARTHUR BRETT CATER,NEIGHBOURHOOD SERVICES,CA MEADOW VIEW JMI PRIMARY SCHOOL,61.07,FRUIT & VEGETABLES OTHER-PROVISIONS,MISCELLANEOUS FOOD STORES & CONVENIENCE STORES
12 Jan 2015,ARTHUR BRETT CATER,NEIGHBOURHOOD SERVICES,TOWN HALL RESTAURANT BISTRO,60.34,FRUIT & VEGETABLES OTHER-PROVISIONS,MISCELLANEOUS FOOD STORES & CONVENIENCE STORES
12 Jan 2015,ARTHUR BRETT CATER,NEIGHBOURHOOD SERVICES,CA TOWN HALL RESTAURANT - CATERING,53.35,FRUIT & VEGETABLES OTHER-PROVISIONS,MISCELLANEOUS FOOD STORES & CONVENIENCE STORES
12 Jan 2015,OFFICE DEPOT,RESOURCES,PRINT STORES,99.65,STATIONERY & GENERAL SUPPLIES-OFFICE EXP,"STATIONERY, OFFICE SUPPLIES AND WRITING PAPER"
12 Jan 2015,BLAKEMORE FOODSERVICE,NEIGHBOURHOOD SERVICES,CA BIRCHILLS CE PRIMARY COMMUNITY SCHOOL,198.14,FROZEN FOODS-PROVISIONS,CATERERS
12 Jan 2015,BLAKEMORE FOODSERVICE,NEIGHBOURHOOD SERVICES,CA FIBBERSLEY PARK PRIMARY SCHOOL,25.28,FROZEN FOODS-PROVISIONS,CATERERS
12 Jan 2015,WELSH BROS FOODS LTD,NEIGHBOURHOOD SERVICES,CA FIBBERSLEY PARK PRIMARY SCHOOL,103.89,MEAT-PROVISIONS,FREEZER AND LOCKER MEAT PROVISIONERS
12 Jan 2015,OFFICE DEPOT,NEIGHBOURHOOD SERVICES,LOCAL HISTORY CENTRE,11.34,STATIONERY & GENERAL SUPPLIES-OFFICE EXP,"STATIONERY, OFFICE SUPPLIES AND WRITING PAPER"
12 Jan 2015,ARTHUR BRETT CATER,NEIGHBOURHOOD SERVICES,CA ST BERNADETTES CATHOLIC PRIMARY SCHOOL,34.97,FRUIT & VEGETABLES OTHER-PROVISIONS,MISCELLANEOUS FOOD STORES & CONVENIENCE STORES
12 Jan 2015,BLAKEMORE FOODSERVICE,NEIGHBOURHOOD SERVICES,CA CALDMORE COMMUNITY PRIMARY SCHOOL,111.70,FROZEN FOODS-PROVISIONS,CATERERS
12 Jan 2015,BLAKEMORE FOODSERVICE,NEIGHBOURHOOD SERVICES,CA LEIGHSWOOD PRIMARY SCHOOL,119.14,FROZEN FOODS-PROVISIONS,CATERERS
12 Jan 2015,BLAKEMORE FOODSERVICE,NEIGHBOURHOOD SERVICES,CA CROFT COMMUNITY PRIMARY SCHOOL,241.96,FROZEN FOODS-PROVISIONS,CATERERS
12 Jan 2015,WELSH BROS FOODS LTD,NEIGHBOURHOOD SERVICES,CA LEIGHSWOOD PRIMARY SCHOOL,157.33,MEAT-PROVISIONS,FREEZER AND LOCKER MEAT PROVISIONERS
12 Jan 2015,BLAKEMORE FOODSERVICE,NEIGHBOURHOOD SERVICES,CA WATLING STREET PRIMARY SCHOOL,25.28,FROZEN FOODS-PROVISIONS,CATERERS
12 Jan 2015,ARTHUR BRETT CATER,NEIGHBOURHOOD SERVICES,CA WATLING STREET PRIMARY SCHOOL,87.54,FRUIT & VEGETABLES OTHER-PROVISIONS,MISCELLANEOUS FOOD STORES & CONVENIENCE STORES
12 Jan 2015,WELSH BROS FOODS LTD,NEIGHBOURHOOD SERVICES,CA WATLING STREET PRIMARY SCHOOL,160.69,MEAT-PROVISIONS,FREEZER AND LOCKER MEAT PROVISIONERS
12 Jan 2015,WELSH BROS FOODS LTD,NEIGHBOURHOOD SERVICES,CA ST JOHNS C.E. PRIMARY SCHOOL,139.93,MEAT-PROVISIONS,FREEZER AND LOCKER MEAT PROVISIONERS
12 Jan 2015,ARTHUR BRETT CATER,NEIGHBOURHOOD SERVICES,CA ST JOHNS C.E. PRIMARY SCHOOL,177.64,FRUIT & VEGETABLES OTHER-PROVISIONS,MISCELLANEOUS FOOD STORES & CONVENIENCE STORES
12 Jan 2015,ARTHUR BRETT CATER,NEIGHBOURHOOD SERVICES,CA WALSALL WOOD PRIMARY SCHOOL,36.05,FRUIT & VEGETABLES OTHER-PROVISIONS,MISCELLANEOUS FOOD STORES & CONVENIENCE STORES
12 Jan 2015,WELSH BROS FOODS LTD,NEIGHBOURHOOD SERVICES,CA CASTLEFORT JMI SCHOOL,146.64,MEAT-PROVISIONS,FREEZER AND LOCKER MEAT PROVISIONERS
12 Jan 2015,ARTHUR BRETT CATER,NEIGHBOURHOOD SERVICES,CA CASTLEFORT JMI SCHOOL,73.95,FRUIT & VEGETABLES OTHER-PROVISIONS,MISCELLANEOUS FOOD STORES & CONVENIENCE STORES
12 Jan 2015,WELSH BROS FOODS LTD,NEIGHBOURHOOD SERVICES,CA COOPER JORDAN CE PRIMARY SCHOOL,123.86,MEAT-PROVISIONS,FREEZER AND LOCKER MEAT PROVISIONERS
12 Jan 2015,BLAKEMORE FOODSERVICE,NEIGHBOURHOOD SERVICES,CA BARCROFT D/C,242.86,FROZEN FOODS-PROVISIONS,CATERERS
12 Jan 2015,WELSH BROS FOODS LTD,NEIGHBOURHOOD SERVICES,CA BARCROFT D/C,199.21,MEAT-PROVISIONS,FREEZER AND LOCKER MEAT PROVISIONERS
12 Jan 2015,WELSH BROS FOODS LTD,NEIGHBOURHOOD SERVICES,CA RUSHALL JMI SCHOOL,61.55,MEAT-PROVISIONS,FREEZER AND LOCKER MEAT PROVISIONERS
12 Jan 2015,ARTHUR BRETT CATER,NEIGHBOURHOOD SERVICES,CA OAKWOOD SPECIAL SCHOOL,36.94,FRUIT & VEGETABLES OTHER-PROVISIONS,MISCELLANEOUS FOOD STORES & CONVENIENCE STORES
12 Jan 2015,WELSH BROS FOODS LTD,NEIGHBOURHOOD SERVICES,CA BLUE COAT C OF E PERFORMING ARTS COLLEGE,259.52,MEAT-PROVISIONS,FREEZER AND LOCKER MEAT PROVISIONERS
12 Jan 2015,OFFICE DEPOT,CHILDRENS SERVICES,"CLUSTER 6 BENTLEY,LIGHTHOUSE,FIBBERSLEY",3.84,STATIONERY & GENERAL SUPPLIES-OFFICE EXP,"STATIONERY, OFFICE SUPPLIES AND WRITING PAPER"
12 Jan 2015,BLAKEMORE FOODSERVICE,NEIGHBOURHOOD SERVICES,CA OLD HALL SPECIAL SCHOOL,64.35,FROZEN FOODS-PROVISIONS,CATERERS
13 Jan 2015,LCS CONTAINER SERVICES,REGENERATION,PELSALL EDUCATION DEVELOPMENT CENTRE,93.00,MISCELLANEOUS SUPPLIES,MISCELLANEOUS AND SPECIALTY RETAIL STORES
13 Jan 2015,TRAVEL WEST MIDLAN,CHILDRENS SERVICES,LOOKED AFTER CHILDRENS SOCIAL WORK TEAM,40.00,TRANSFER PAYMENTS - SOCIAL SERVICES CLIENTS,BUS LINES
13 Jan 2015,TESCO STORES 6161,CHILDRENS SERVICES,LOOKED AFTER CHILDRENS SOCIAL WORK TEAM,0.84,TRANSFER PAYMENTS - SOCIAL SERVICES CLIENTS,GROCERY STORES AND SUPERMARKETS
13 Jan 2015,TESCO STORES 6161,CHILDRENS SERVICES,LOOKED AFTER CHILDRENS SOCIAL WORK TEAM,8.43,TRANSFER PAYMENTS - SOCIAL SERVICES CLIENTS,GROCERY STORES AND SUPERMARKETS
13 Jan 2015,WALSALL COUNCIL,CHILDRENS SERVICES,LOOKED AFTER CHILDRENS SOCIAL WORK TEAM,20.00,SECTION 1/17CHILD CARE ACT 1989-ASSISTANCE TO S/S CLIENTS,GOVERNMENT SERVICES
13 Jan 2015,A F BLAKEMORE & SON LTD,CHILDRENS SERVICES,MARY ELLIOTT SPECIAL SCHOOL,354.57,BREAD-GENERAL-PROVISIONS,GROCERY STORES AND SUPERMARKETS
13 Jan 2015,A F BLAKEMORE & SON LTD,CHILDRENS SERVICES,MARY ELLIOTT SPECIAL SCHOOL,8.45,BREAD-GENERAL-PROVISIONS,GROCERY STORES AND SUPERMARKETS
13 Jan 2015,HOPWELLS LTD,CHILDRENS SERVICES,MARY ELLIOTT SPECIAL SCHOOL,356.93,BREAD-GENERAL-PROVISIONS,CATERERS
13 Jan 2015,ARGOS LTD,NEIGHBOURHOOD SERVICES,STREETLY CREMATORIUM,11.99,NEW-FURNITURE & EQUIPMENT,DISCOUNT STORES
13 Jan 2015,ARGOS LTD,NEIGHBOURHOOD SERVICES,STREETLY CREMATORIUM,11.39,NEW-FURNITURE & EQUIPMENT,DISCOUNT STORES
13 Jan 2015,TESCO STORES 6727,CHILDRENS SERVICES,ADOPTION TEAM,6.17,FOOD AND BEVERAGES-PROVISIONS,GROCERY STORES AND SUPERMARKETS
13 Jan 2015,DULUX DECORATOR CENTRE,NEIGHBOURHOOD SERVICES,TECHNICAL/ART HANDLING,117.00,LOOSE TOOLS & CONSUMABLES,"PAINTS, VARNISHES, AND SUPPLIES"
13 Jan 2015,WWW.THESAFETYCENTRE.CO,CHILDRENS SERVICES,PALFREY JUNIOR SCHOOL,35.94,"REPAIRS,ALTERATIONS & MAINTENANCE-PREM","GLASS, PAINT AND WALLPAPER STORES"
13 Jan 2015,AMAZON *MKTPLCE EU-UK,CHILDRENS SERVICES,ADMINISTRATIVE SUPPLIES,14.85,GENERAL MATERIALS,BOOK STORES
13 Jan 2015,WM MORRISONS,CHILDRENS SERVICES,GOVERNOR EXPENSES,14.86,GENERAL MATERIALS,GROCERY STORES AND SUPERMARKETS
13 Jan 2015,WM MORRISONS,CHILDRENS SERVICES,GOVERNOR EXPENSES,12.60,GENERAL MATERIALS,GROCERY STORES AND SUPERMARKETS
13 Jan 2015,AMAZON EU,CHILDRENS SERVICES,PSYCHOLOGY,8.72,LIBRARY BOOKS,OTHER DIRECT MARKETING-OTHER DIRECT MARKETERS
13 Jan 2015,AMAZON EU,CHILDRENS SERVICES,SOCIOLOGY,8.72,LIBRARY BOOKS,OTHER DIRECT MARKETING-OTHER DIRECT MARKETERS
13 Jan 2015,AMAZON *MKTPLCE EU-UK,CHILDRENS SERVICES,SOCIOLOGY,5.93,LIBRARY BOOKS,BOOK STORES
13 Jan 2015,AMAZON *MKTPLCE EU-UK,CHILDRENS SERVICES,PSYCHOLOGY,5.93,LIBRARY BOOKS,BOOK STORES
13 Jan 2015,OXFORDUNIVERSITYPR,CHILDRENS SERVICES,PUPIL REFERAL UNIT EXCLUSIONS,27.50,LIBRARY BOOKS,BOOK STORES
13 Jan 2015,PC WORLD ONLINE,CHILDRENS SERVICES,CARE MATTERS,275.76,FURNITURE & EQUIPMENT,ELECTRONIC SALES
13 Jan 2015,PC WORLD ONLINE,CHILDRENS SERVICES,CARE MATTERS,59.99,FURNITURE & EQUIPMENT,ELECTRONIC SALES
13 Jan 2015,PAYPAL,CHILDRENS SERVICES,SAFEGUARDING & FAMILY SUPPORT,256.00,BEDDING & LINEN-MATERIALS,OTHER CHEMICALS AND ALLIED PRODUCTS
13 Jan 2015,AMAZON *MKTPLCE EU-UK,NEIGHBOURHOOD SERVICES,REGISTRAR,14.60,STATIONERY & GENERAL SUPPLIES-OFFICE EXP,BOOK STORES
13 Jan 2015,ARGOS LTD,NEIGHBOURHOOD SERVICES,STREETLY CREMATORIUM,-11.99,NEW-FURNITURE & EQUIPMENT,DISCOUNT STORES
13 Jan 2015,WALSALL COUNCIL,CHILDRENS SERVICES,LOOKED AFTER CHILDRENS SOCIAL WORK TEAM,15.00,SECTION 1/17CHILD CARE ACT 1989-ASSISTANCE TO S/S CLIENTS,GOVERNMENT SERVICES
13 Jan 2015,GRO HM PASSPORT OFFICE,CHILDRENS SERVICES,LOOKED AFTER CHILDRENS SOCIAL WORK TEAM,23.40,SECTION 1/17CHILD CARE ACT 1989-ASSISTANCE TO S/S CLIENTS,GOVERNMENT SERVICES
13 Jan 2015,ASDA STORES,SOCIAL CARE & INCLUSION,FALLINGS HEATH,53.83,FOOD AND BEVERAGES-PROVISIONS,GROCERY STORES AND SUPERMARKETS
13 Jan 2015,ASDA STORES,SOCIAL CARE & INCLUSION,FALLINGS HEATH,0.89,FOOD AND BEVERAGES-PROVISIONS,GROCERY STORES AND SUPERMARKETS
13 Jan 2015,ASDA,CHILDRENS SERVICES,LOOKED AFTER CHILDRENS SOCIAL WORK TEAM,16.03,FOOD AND BEVERAGES-PROVISIONS,GROCERY STORES AND SUPERMARKETS
13 Jan 2015,ASDA,CHILDRENS SERVICES,LOOKED AFTER CHILDRENS SOCIAL WORK TEAM,1.90,FOOD AND BEVERAGES-PROVISIONS,GROCERY STORES AND SUPERMARKETS
13 Jan 2015,AMAZON EU,REGENERATION,CENTRALISED STATIONERY,15.09,STATIONERY & GENERAL SUPPLIES-OFFICE EXP,OTHER DIRECT MARKETING-OTHER DIRECT MARKETERS
13 Jan 2015,QUALITY HOTEL DUDLEY,CHILDRENS SERVICES,INITIAL RESPONSE SERVICE,110.00,HOTEL ACCOMMODATION-EMPLOYEES,"HOTELS, MOTELS, RESORTS"
13 Jan 2015,QUALITY HOTEL DUDLEY,CHILDRENS SERVICES,INITIAL RESPONSE SERVICE,50.00,HOTEL ACCOMMODATION-EMPLOYEES,"HOTELS, MOTELS, RESORTS"
13 Jan 2015,PAYPAL,RESOURCES,NETWORKS,167.16,RECHARGE FOR MAINTENANCE/APPLICATION COSTS-COMPUTER,COMPUTER NETWORK/INFORMATION SERVICES
13 Jan 2015,WM MORRISON 063,CHILDRENS SERVICES,REDRUTH ROAD,6.24,GENERAL PROVISIONS-PROVISIONS,GROCERY STORES AND SUPERMARKETS
13 Jan 2015,CROMWELL TOOLS,SOCIAL CARE & INCLUSION,EMPLOYMENT LINKS TO WORK,47.52,GENERAL MATERIALS,HARDWARE EQUIPMENT AND SUPPLIES
13 Jan 2015,PAYPAL,NEIGHBOURHOOD SERVICES,LIBRARY OPERATIONS CENTRAL,72.46,EXTERNAL AUDIT FEES-CENTRAL EXPENSES,"ACCOUNTING, AUDITING, AND BOOKKEEPING SERVICES"
13 Jan 2015,PAYPAL,CHILDRENS SERVICES,OUTDOOR EDUCATION,67.50,GENERAL MATERIALS,MENS AND BOYS CLOTHING AND FURNISHINGS STORE
13 Jan 2015,PAYPAL,CHILDRENS SERVICES,ELMWOOD SECONDARY SPECIAL SCHOOL,11.98,"REPAIRS,ALTERATIONS & MAINTENANCE-PREM",HARDWARE STORES
13 Jan 2015,AL- SAQIB EXPRESS,RESOURCES,LINK SERVICE,20.50,FOOD AND BEVERAGES-PROVISIONS,GROCERY STORES AND SUPERMARKETS
13 Jan 2015,B&M RETAIL LTD,RESOURCES,LINK SERVICE,105.31,FOOD AND BEVERAGES-PROVISIONS,DISCOUNT STORES
13 Jan 2015,B&M RETAIL LTD,RESOURCES,LINK SERVICE,15.98,FOOD AND BEVERAGES-PROVISIONS,DISCOUNT STORES
13 Jan 2015,SOLACE LTD,REGENERATION,REGENERATION MANAGEMENT,60.00,COURSE/CONFERENCE EXPENSES,"ORGANIZATIONS, MEMBERSHIP"
13 Jan 2015,AMAZON EU,CHILDRENS SERVICES,ROSEDALE C.E. PRIMARY SCHOOL,68.88,EQUIP NEW-CLEANING,OTHER DIRECT MARKETING-OTHER DIRECT MARKETERS
13 Jan 2015,WILKO RETAIL LIMIT,NEIGHBOURHOOD SERVICES,ARBORETUM,6.99,FURNITURE & EQUIPMENT,HOUSEHOLD APPLIANCE STORES
13 Jan 2015,AMAZON EU,CHILDRENS SERVICES,ROSEDALE C.E. PRIMARY SCHOOL,68.88,EQUIP NEW-CLEANING,OTHER DIRECT MARKETING-OTHER DIRECT MARKETERS
13 Jan 2015,VIRGINTRAINS.CO.UK,NEIGHBOURHOOD SERVICES,PUBLIC HEALTH BUSINESS SUPPORT,168.00,OFFICER/STAFF-PUBLIC TRANSPORT,PASSENGER RAILWAYS
13 Jan 2015,AQUAID FRANCHISING LTD,REGENERATION,PELSALL EDUCATION DEVELOPMENT CENTRE,364.20,PROFESSIONAL FEES AND SERVICES,OTHER BUSINESS SERVICES
13 Jan 2015,AMAZON *MKTPLCE EU-UK,CHILDRENS SERVICES,ADMINISTRATIVE SUPPLIES,46.30,FURNITURE & EQUIPMENT,BOOK STORES
13 Jan 2015,LONDON MIDLAND INT,CHILDRENS SERVICES,FOUNDATION LEARNING,77.00,OFFICER/STAFF-PUBLIC TRANSPORT,PASSENGER RAILWAYS
13 Jan 2015,WILKO RETAIL LIMIT,RESOURCES,WALSALL CRISIS SUPPORT SCHEME,13.50,CRISIS SUPPORT PAYMENTS,HOUSEHOLD APPLIANCE STORES
13 Jan 2015,CRAZY HOUSE (BROWNHILL,RESOURCES,WALSALL CRISIS SUPPORT SCHEME,110.00,CRISIS SUPPORT PAYMENTS,"EQUIPMENT, FURNITURE, AND HOME FURNISHINGS STORES "
13 Jan 2015,CRAZY HOUSE (BROWNHILL,RESOURCES,WALSALL CRISIS SUPPORT SCHEME,55.00,CRISIS SUPPORT PAYMENTS,"EQUIPMENT, FURNITURE, AND HOME FURNISHINGS STORES "
13 Jan 2015,CRAZY HOUSE (BROWNHILL,RESOURCES,WALSALL CRISIS SUPPORT SCHEME,105.00,CRISIS SUPPORT PAYMENTS,"EQUIPMENT, FURNITURE, AND HOME FURNISHINGS STORES "
13 Jan 2015,TESCO STORES 6161,RESOURCES,WALSALL CRISIS SUPPORT SCHEME,10.18,CRISIS SUPPORT PAYMENTS,GROCERY STORES AND SUPERMARKETS
13 Jan 2015,"BOOTS,WALSALL",RESOURCES,WALSALL CRISIS SUPPORT SCHEME,8.49,CRISIS SUPPORT PAYMENTS,"DRUG STORES, PHARMACIES"
13 Jan 2015,WWW.GIROFOOD.COM,NEIGHBOURHOOD SERVICES,CA ST JOHNS C.E. PRIMARY SCHOOL,75.03,DISPOSABLES-PROVISIONS,WHOLESALE CLUBS
13 Jan 2015,ARTHUR BRETT CATER,NEIGHBOURHOOD SERVICES,CA BARCROFT D/C,-0.88,FRUIT & VEGETABLES OTHER-PROVISIONS,MISCELLANEOUS FOOD STORES & CONVENIENCE STORES
13 Jan 2015,ARTHUR BRETT CATER,NEIGHBOURHOOD SERVICES,CA ST FRANCIS CATHOLIC PRIMARY SCHOOL,-11.82,FRUIT & VEGETABLES OTHER-PROVISIONS,MISCELLANEOUS FOOD STORES & CONVENIENCE STORES
13 Jan 2015,OFFICE DEPOT,CHILDRENS SERVICES,PARENTING TEAM,24.30,STATIONERY & GENERAL SUPPLIES-OFFICE EXP,"STATIONERY, OFFICE SUPPLIES AND WRITING PAPER"
13 Jan 2015,OFFICE DEPOT,CHILDRENS SERVICES,ACCESS TEAM,51.74,STATIONERY & GENERAL SUPPLIES-OFFICE EXP,"STATIONERY, OFFICE SUPPLIES AND WRITING PAPER"
13 Jan 2015,OFFICE DEPOT,SOCIAL CARE & INCLUSION,INTEGRATED BUSINESS PROCESSES & SERVICES,25.87,STATIONERY & GENERAL SUPPLIES-OFFICE EXP,"STATIONERY, OFFICE SUPPLIES AND WRITING PAPER"
13 Jan 2015,OFFICE DEPOT,SOCIAL CARE & INCLUSION,INTEGRATED BUSINESS PROCESSES & SERVICES,23.95,STATIONERY & GENERAL SUPPLIES-OFFICE EXP,"STATIONERY, OFFICE SUPPLIES AND WRITING PAPER"
13 Jan 2015,ARTHUR BRETT CATER,NEIGHBOURHOOD SERVICES,CA RUSHALL JMI SCHOOL,21.56,FRUIT & VEGETABLES OTHER-PROVISIONS,MISCELLANEOUS FOOD STORES & CONVENIENCE STORES
13 Jan 2015,ARTHUR BRETT CATER,NEIGHBOURHOOD SERVICES,CA ST FRANCIS CATHOLIC PRIMARY SCHOOL,58.79,FRUIT & VEGETABLES OTHER-PROVISIONS,MISCELLANEOUS FOOD STORES & CONVENIENCE STORES
13 Jan 2015,ARTHUR BRETT CATER,NEIGHBOURHOOD SERVICES,CA ELMWOOD SPECIAL SCHOOL,42.82,FRUIT & VEGETABLES OTHER-PROVISIONS,MISCELLANEOUS FOOD STORES & CONVENIENCE STORES
13 Jan 2015,ARTHUR BRETT CATER,NEIGHBOURHOOD SERVICES,CA CROFT COMMUNITY PRIMARY SCHOOL,78.39,FRUIT & VEGETABLES OTHER-PROVISIONS,MISCELLANEOUS FOOD STORES & CONVENIENCE STORES
13 Jan 2015,ARTHUR BRETT CATER,NEIGHBOURHOOD SERVICES,CA CALDMORE COMMUNITY PRIMARY SCHOOL,123.24,FRUIT & VEGETABLES OTHER-PROVISIONS,MISCELLANEOUS FOOD STORES & CONVENIENCE STORES
13 Jan 2015,ARTHUR BRETT CATER,NEIGHBOURHOOD SERVICES,CA BLOXWICH C.E. JMI PRIMARY SCHOOL,56.22,FRUIT & VEGETABLES OTHER-PROVISIONS,MISCELLANEOUS FOOD STORES & CONVENIENCE STORES
13 Jan 2015,ARTHUR BRETT CATER,NEIGHBOURHOOD SERVICES,CA FIBBERSLEY PARK PRIMARY SCHOOL,120.00,FRUIT & VEGETABLES OTHER-PROVISIONS,MISCELLANEOUS FOOD STORES & CONVENIENCE STORES
13 Jan 2015,ARTHUR BRETT CATER,NEIGHBOURHOOD SERVICES,CA BIRCHILLS CE PRIMARY COMMUNITY SCHOOL,73.19,FRUIT & VEGETABLES OTHER-PROVISIONS,MISCELLANEOUS FOOD STORES & CONVENIENCE STORES
13 Jan 2015,ARTHUR BRETT CATER,NEIGHBOURHOOD SERVICES,CA BIRCHILLS CE PRIMARY COMMUNITY SCHOOL,12.60,FRUIT & VEGETABLES OTHER-PROVISIONS,MISCELLANEOUS FOOD STORES & CONVENIENCE STORES
13 Jan 2015,OFFICE DEPOT,SOCIAL CARE & INCLUSION,SOUTH COMMUNITY RECOVERY SERVICE,41.57,STATIONERY & GENERAL SUPPLIES-OFFICE EXP,"STATIONERY, OFFICE SUPPLIES AND WRITING PAPER"
13 Jan 2015,OFFICE DEPOT,RESOURCES,PRINT STORES,73.80,STATIONERY & GENERAL SUPPLIES-OFFICE EXP,"STATIONERY, OFFICE SUPPLIES AND WRITING PAPER"
13 Jan 2015,ARTHUR BRETT CATER,NEIGHBOURHOOD SERVICES,CA OLD HALL SPECIAL SCHOOL,28.52,FRUIT & VEGETABLES OTHER-PROVISIONS,MISCELLANEOUS FOOD STORES & CONVENIENCE STORES
13 Jan 2015,ARTHUR BRETT CATER,NEIGHBOURHOOD SERVICES,CA ST MICHAELS C.E. PRIMARY SCHOOL,45.94,FRUIT & VEGETABLES OTHER-PROVISIONS,MISCELLANEOUS FOOD STORES & CONVENIENCE STORES
13 Jan 2015,ARTHUR BRETT CATER,NEIGHBOURHOOD SERVICES,CA BEACON PRIMARY SCHOOL,271.54,FRUIT & VEGETABLES OTHER-PROVISIONS,MISCELLANEOUS FOOD STORES & CONVENIENCE STORES
13 Jan 2015,ARTHUR BRETT CATER,NEIGHBOURHOOD SERVICES,CA ST GILES C.E. PRIMARY SCHOOL,51.96,FRUIT & VEGETABLES OTHER-PROVISIONS,MISCELLANEOUS FOOD STORES & CONVENIENCE STORES
13 Jan 2015,ARTHUR BRETT CATER,NEIGHBOURHOOD SERVICES,CA BARCROFT D/C,120.19,FRUIT & VEGETABLES OTHER-PROVISIONS,MISCELLANEOUS FOOD STORES & CONVENIENCE STORES
13 Jan 2015,OFFICE DEPOT,REGENERATION,CENTRALISED STATIONERY,-59.56,STATIONERY & GENERAL SUPPLIES-OFFICE EXP,"STATIONERY, OFFICE SUPPLIES AND WRITING PAPER"
13 Jan 2015,ARTHUR BRETT CATER,NEIGHBOURHOOD SERVICES,CA LITTLE BLOXWICH CE PRIMARY SCHOOL,41.30,FRUIT & VEGETABLES OTHER-PROVISIONS,MISCELLANEOUS FOOD STORES & CONVENIENCE STORES
13 Jan 2015,ARTHUR BRETT CATER,NEIGHBOURHOOD SERVICES,CA GREEN ROCK PRIMARY,48.31,FRUIT & VEGETABLES OTHER-PROVISIONS,MISCELLANEOUS FOOD STORES & CONVENIENCE STORES
13 Jan 2015,WELSH BROS FOODS LTD,NEIGHBOURHOOD SERVICES,CA LINDENS PRIMARY SCHOOL,39.55,MEAT-PROVISIONS,FREEZER AND LOCKER MEAT PROVISIONERS
13 Jan 2015,SMART FOOD UK LIMITED,NEIGHBOURHOOD SERVICES,CA LINDENS PRIMARY SCHOOL,305.60,FROZEN FOODS-PROVISIONS,CATERERS
13 Jan 2015,ARTHUR BRETT CATER,NEIGHBOURHOOD SERVICES,CA POOL HAYES PRIMARY SCHOOL,42.04,FRUIT & VEGETABLES OTHER-PROVISIONS,MISCELLANEOUS FOOD STORES & CONVENIENCE STORES
13 Jan 2015,ARTHUR BRETT CATER,NEIGHBOURHOOD SERVICES,CA JOSEPH LECKIE COMMUNITY TECHNOLOGY COLLEGE,189.65,FRUIT & VEGETABLES OTHER-PROVISIONS,MISCELLANEOUS FOOD STORES & CONVENIENCE STORES
13 Jan 2015,ARTHUR BRETT CATER,NEIGHBOURHOOD SERVICES,CA RADLEYS PRIMARY SCHOOL,99.95,FRUIT & VEGETABLES OTHER-PROVISIONS,MISCELLANEOUS FOOD STORES & CONVENIENCE STORES
13 Jan 2015,ARTHUR BRETT CATER,NEIGHBOURHOOD SERVICES,CA ELMORE GREEN PRIMARY SCHOOL,49.66,FRUIT & VEGETABLES OTHER-PROVISIONS,MISCELLANEOUS FOOD STORES & CONVENIENCE STORES
13 Jan 2015,ARTHUR BRETT CATER,NEIGHBOURHOOD SERVICES,CA JANE LANE SPECIAL SCHOOL,48.38,FRUIT & VEGETABLES OTHER-PROVISIONS,MISCELLANEOUS FOOD STORES & CONVENIENCE STORES
13 Jan 2015,SMART FOOD UK LIMITED,NEIGHBOURHOOD SERVICES,CA JOSEPH LECKIE COMMUNITY TECHNOLOGY COLLEGE,687.60,FROZEN FOODS-PROVISIONS,CATERERS
13 Jan 2015,ARTHUR BRETT CATER,NEIGHBOURHOOD SERVICES,CA ELMORE GREEN PRIMARY SCHOOL,152.04,FRUIT & VEGETABLES OTHER-PROVISIONS,MISCELLANEOUS FOOD STORES & CONVENIENCE STORES
13 Jan 2015,ARTHUR BRETT CATER,NEIGHBOURHOOD SERVICES,CA MOORCROFT WOOD,77.68,FRUIT & VEGETABLES OTHER-PROVISIONS,MISCELLANEOUS FOOD STORES & CONVENIENCE STORES
13 Jan 2015,ARTHUR BRETT CATER,NEIGHBOURHOOD SERVICES,CA BLAKENALL HEATH JUNIOR SCHOOL,57.41,FRUIT & VEGETABLES OTHER-PROVISIONS,MISCELLANEOUS FOOD STORES & CONVENIENCE STORES
13 Jan 2015,ARTHUR BRETT CATER,NEIGHBOURHOOD SERVICES,CA ABBEY PRIMARY SCHOOL,57.36,FRUIT & VEGETABLES OTHER-PROVISIONS,MISCELLANEOUS FOOD STORES & CONVENIENCE STORES
13 Jan 2015,ARTHUR BRETT CATER,NEIGHBOURHOOD SERVICES,CA BUSILL JONES PRIMARY SCHOOL,108.22,FRUIT & VEGETABLES OTHER-PROVISIONS,MISCELLANEOUS FOOD STORES & CONVENIENCE STORES
13 Jan 2015,WELSH BROS FOODS LTD,NEIGHBOURHOOD SERVICES,TOWN HALL RESTAURANT BISTRO,112.24,MEAT-PROVISIONS,FREEZER AND LOCKER MEAT PROVISIONERS
13 Jan 2015,WELSH BROS FOODS LTD,NEIGHBOURHOOD SERVICES,CA TOWN HALL RESTAURANT - CATERING,146.22,MEAT-PROVISIONS,FREEZER AND LOCKER MEAT PROVISIONERS
14 Jan 2015,GRANITE SAFES LTD,CHILDRENS SERVICES,PUPIL REFERAL UNIT EXCLUSIONS,78.00,"CROCKERY,HARDWARE & DISPOSABLES-MATERIALS",HARDWARE STORES
14 Jan 2015,EA HAZARDOUS WASTE-DOM,NEIGHBOURHOOD SERVICES,FLEET,23.00,GENERAL MATERIALS,GOVERNMENT SERVICES
14 Jan 2015,YELLOW CARS,CHILDRENS SERVICES,INITIAL RESPONSE SERVICE,22.00,TAXIS-TRAVEL ALLOWANCES,TAXI SERVICES
14 Jan 2015,WM MORRISONS,NEIGHBOURHOOD SERVICES,ARBORETUM,10.05,FOOD AND BEVERAGES-PROVISIONS,GROCERY STORES AND SUPERMARKETS
14 Jan 2015,AMAZON *MKTPLCE EU-UK,CHILDRENS SERVICES,ROSEDALE C.E. PRIMARY SCHOOL,21.99,EQUIP NEW-CLEANING,BOOK STORES
14 Jan 2015,BROOKES/OUTDOOR LOOK,CHILDRENS SERVICES,SDP PROJECTS,149.60,GENERAL MATERIALS,OTHER INDUSTRIAL SUPPLIES
14 Jan 2015,WILKO RETAIL LIMIT,NEIGHBOURHOOD SERVICES,LIBRARY OPERATIONS CENTRAL,15.98,GENERAL MATERIALS,HOUSEHOLD APPLIANCE STORES
14 Jan 2015,PAYPAL,SOCIAL CARE & INCLUSION,EMPLOYMENT LINKS TO WORK,18.19,GENERAL MATERIALS,ELECTRONIC SALES
14 Jan 2015,SOLACE LTD,RESOURCES,CORPORATE MANAGEMENT TEAM,60.00,COURSE/CONFERENCE EXPENSES,"ORGANIZATIONS, MEMBERSHIP"
14 Jan 2015,BOC TEL ORDER,NEIGHBOURHOOD SERVICES,WALSALL TOWN HALL,5.70,CHEMICALS & SCIENTIFIC MATS-MATERIALS,OTHER CHEMICALS AND ALLIED PRODUCTS
14 Jan 2015,BOC TEL ORDER,NEIGHBOURHOOD SERVICES,DARLASTON TOWN HALL,9.24,CHEMICALS & SCIENTIFIC MATS-MATERIALS,OTHER CHEMICALS AND ALLIED PRODUCTS
14 Jan 2015,LINENS DIRECT LTD,CHILDRENS SERVICES,57 LICHFIELD ROAD,16.99,RESIDENTS PERSONAL EXPENSES-ALLOWANCES TO S/S CLIENTS,"DRAPERY, UPHOLSTERY, AND WINDOW COVERINGS STORES"
14 Jan 2015,WILKO RETAIL LIMIT,CHILDRENS SERVICES,57 LICHFIELD ROAD,18.17,FURNITURE & EQUIPMENT,HOUSEHOLD APPLIANCE STORES
14 Jan 2015,ARGOS LTD,CHILDRENS SERVICES,57 LICHFIELD ROAD,8.99,RESIDENTS PERSONAL EXPENSES-ALLOWANCES TO S/S CLIENTS,DISCOUNT STORES
14 Jan 2015,ASDA HOME SHOPPING,CHILDRENS SERVICES,57 LICHFIELD ROAD,17.94,GENERAL PROVISIONS-PROVISIONS,GROCERY STORES AND SUPERMARKETS
14 Jan 2015,ASDA HOME SHOPPING,CHILDRENS SERVICES,57 LICHFIELD ROAD,82.75,GENERAL PROVISIONS-PROVISIONS,GROCERY STORES AND SUPERMARKETS
14 Jan 2015,MNA LTD CARDCHARGE,REGENERATION,DEVELOPMENT MANAGEMENT,391.20,PERIODICALS/MAGAZINES/NEWSPAPERS-SUBSCRIPTIONS,NEWS DEALERS AND NEWSSTANDS
14 Jan 2015,THE TRAINLINE.COM,REGENERATION,CAPITAL-REGENERATION STRATEGIC TRANSPORTATION,199.41,OFFICER/STAFF-PUBLIC TRANSPORT,PASSENGER RAILWAYS
14 Jan 2015,TESCO STORES 6161,RESOURCES,ADVICE & GUIDANCE SERVICE,29.00,FOOD AND BEVERAGES-PROVISIONS,GROCERY STORES AND SUPERMARKETS
14 Jan 2015,TESCO STORES 6161,RESOURCES,ADVICE & GUIDANCE SERVICE,29.00,FOOD AND BEVERAGES-PROVISIONS,GROCERY STORES AND SUPERMARKETS
14 Jan 2015,TESCO STORES 3351,CHILDRENS SERVICES,PARENTING TEAM,14.87,FOOD AND BEVERAGES-PROVISIONS,GROCERY STORES AND SUPERMARKETS
14 Jan 2015,WWW.FITNESS-SUPERSTORE.C,NEIGHBOURHOOD SERVICES,WALSALL GALA CENTRE,34.91,GENERAL MATERIALS,SPORTING GOODS STORES
14 Jan 2015,WALSALL COUNCIL,CHILDRENS SERVICES,SAFEGUARDING & FAMILY SUPPORT,20.00,REGISTRAR OF BIRTHS/DEATHS/MARRIAGES/CIVIL PARTNERSHIPS-SERV-FEES/CHARGES,GOVERNMENT SERVICES
14 Jan 2015,WWW.TROPHYSTORE.CO.UK,CHILDRENS SERVICES,PUPIL PREMIUM,73.69,GENERAL MATERIALS,"CARD, GIFT, NOVELTY, AND SOUVENIR SHOPS"
14 Jan 2015,WP-NAACE,CHILDRENS SERVICES,INFORMATION SERVICES,100.00,GENERAL MATERIALS,"ORGANIZATIONS, CHARITABLE AND SOCIAL SERVICE"
14 Jan 2015,VIKING,CHILDRENS SERVICES,PUPIL REFERAL UNIT EXCLUSIONS,517.75,STATIONERY & GENERAL SUPPLIES-OFFICE EXP,"STATIONERY, OFFICE SUPPLIES AND WRITING PAPER"
14 Jan 2015,AMAZON *MKTPLCE EU-UK,CHILDRENS SERVICES,DT,12.70,GENERAL MATERIALS,BOOK STORES
14 Jan 2015,AMAZON *MKTPLCE EU-UK,CHILDRENS SERVICES,SOCIOLOGY,13.88,LIBRARY BOOKS,BOOK STORES
14 Jan 2015,AMAZON *MKTPLCE EU-UK,CHILDRENS SERVICES,PSYCHOLOGY,13.87,LIBRARY BOOKS,BOOK STORES
14 Jan 2015,AMAZON EU,CHILDRENS SERVICES,SCIENCE,32.90,GENERAL MATERIALS,OTHER DIRECT MARKETING-OTHER DIRECT MARKETERS
14 Jan 2015,AMAZON *MKTPLCE EU-UK,CHILDRENS SERVICES,DT,4.58,GENERAL MATERIALS,BOOK STORES
14 Jan 2015,AMAZON EU,CHILDRENS SERVICES,GENERAL RESOURCES & MISC,33.54,GENERAL MATERIALS,OTHER DIRECT MARKETING-OTHER DIRECT MARKETERS
14 Jan 2015,SCREWFIX,NEIGHBOURHOOD SERVICES,INFRASTRUCTURE MAINTENANCE,349.99,GENERAL MATERIALS,LUMBER & BUILDING MATERIALS STORES
14 Jan 2015,AMAZON EU,NEIGHBOURHOOD SERVICES,VP SCL EMPLOYER GATEWAY,211.68,GENERAL MATERIALS,OTHER DIRECT MARKETING-OTHER DIRECT MARKETERS
14 Jan 2015,TP WALSALL,NEIGHBOURHOOD SERVICES,TECHNICAL/ART HANDLING,34.32,LOOSE TOOLS & CONSUMABLES,LUMBER & BUILDING MATERIALS STORES
14 Jan 2015,GRO HM PASSPORT OFFICE,CHILDRENS SERVICES,LOOKED AFTER CHILDRENS SOCIAL WORK TEAM,9.25,SUPPORT UNDER SECTION 23 OF THE CHILDRENS ACT,GOVERNMENT SERVICES
14 Jan 2015,AMAZON *MKTPLCE EU-UK,NEIGHBOURHOOD SERVICES,REGISTRAR,23.99,STATIONERY & GENERAL SUPPLIES-OFFICE EXP,BOOK STORES
14 Jan 2015,ASDA HOME SHOPPING,CHILDRENS SERVICES,"43A HILTON ROAD, WILLENHALL",34.72,GENERAL PROVISIONS-PROVISIONS,GROCERY STORES AND SUPERMARKETS
14 Jan 2015,ASDA HOME SHOPPING,CHILDRENS SERVICES,"43A HILTON ROAD, WILLENHALL",33.22,GENERAL PROVISIONS-PROVISIONS,GROCERY STORES AND SUPERMARKETS
14 Jan 2015,ASDA HOME SHOPPING,CHILDRENS SERVICES,"43A HILTON ROAD, WILLENHALL",1.00,GENERAL PROVISIONS-PROVISIONS,GROCERY STORES AND SUPERMARKETS
14 Jan 2015,STRIKE ELECTRICAL DIST,NEIGHBOURHOOD SERVICES,DEPOT,14.39,GENERAL MATERIALS,HOUSEHOLD APPLIANCE STORES
14 Jan 2015,TOOLSTATION LTD,NEIGHBOURHOOD SERVICES,DEPOT,29.75,GENERAL MATERIALS,HARDWARE STORES
14 Jan 2015,ASDA STORES,RESOURCES,ACCOMMODATION SERVICES MANAGEMENT,25.00,FOOD AND BEVERAGES-PROVISIONS,GROCERY STORES AND SUPERMARKETS
14 Jan 2015,ASDA SUPERSTORE,RESOURCES,ACCOMMODATION SERVICES MANAGEMENT,50.00,FOOD AND BEVERAGES-PROVISIONS,GROCERY STORES AND SUPERMARKETS
14 Jan 2015,WM MORRISON 063,CHILDRENS SERVICES,LOOKED AFTER CHILDRENS SOCIAL WORK TEAM,0.50,TRANSFER PAYMENTS - SOCIAL SERVICES CLIENTS,GROCERY STORES AND SUPERMARKETS
14 Jan 2015,WM MORRISON 063,CHILDRENS SERVICES,LOOKED AFTER CHILDRENS SOCIAL WORK TEAM,9.08,TRANSFER PAYMENTS - SOCIAL SERVICES CLIENTS,GROCERY STORES AND SUPERMARKETS
14 Jan 2015,DOMESTIC HEROES LTD,RESOURCES,WALSALL CRISIS SUPPORT SCHEME,50.23,CRISIS SUPPORT PAYMENTS,HOUSEHOLD APPLIANCE STORES
14 Jan 2015,THE CARPET MAN,RESOURCES,WALSALL CRISIS SUPPORT SCHEME,390.00,CRISIS SUPPORT PAYMENTS,FLOOR COVERING STORES
14 Jan 2015,COMPANIES HOUSE,RESOURCES,WALSALL CRISIS SUPPORT SCHEME,1.00,CRISIS SUPPORT PAYMENTS,GOVERNMENT SERVICES
14 Jan 2015,THE CARPET MAN,RESOURCES,WALSALL CRISIS SUPPORT SCHEME,378.00,CRISIS SUPPORT PAYMENTS,FLOOR COVERING STORES
14 Jan 2015,THE CARPET MAN,RESOURCES,WALSALL CRISIS SUPPORT SCHEME,390.00,CRISIS SUPPORT PAYMENTS,FLOOR COVERING STORES
14 Jan 2015,WILKO RETAIL LIMIT,RESOURCES,WALSALL CRISIS SUPPORT SCHEME,10.00,CRISIS SUPPORT PAYMENTS,HOUSEHOLD APPLIANCE STORES
14 Jan 2015,WILKO RETAIL LIMIT,RESOURCES,WALSALL CRISIS SUPPORT SCHEME,7.00,CRISIS SUPPORT PAYMENTS,HOUSEHOLD APPLIANCE STORES
14 Jan 2015,TESCO STORES 6161,RESOURCES,WALSALL CRISIS SUPPORT SCHEME,29.28,CRISIS SUPPORT PAYMENTS,GROCERY STORES AND SUPERMARKETS
14 Jan 2015,CRAZY HOUSE (BROWNHILL,RESOURCES,WALSALL CRISIS SUPPORT SCHEME,185.00,CRISIS SUPPORT PAYMENTS,"EQUIPMENT, FURNITURE, AND HOME FURNISHINGS STORES "
14 Jan 2015,TESCO STORES 6161,RESOURCES,WALSALL CRISIS SUPPORT SCHEME,5.06,CRISIS SUPPORT PAYMENTS,GROCERY STORES AND SUPERMARKETS
14 Jan 2015,CRAZY HOUSE (BROWNHILL,RESOURCES,WALSALL CRISIS SUPPORT SCHEME,55.00,CRISIS SUPPORT PAYMENTS,"EQUIPMENT, FURNITURE, AND HOME FURNISHINGS STORES "
14 Jan 2015,CRAZY HOUSE (BROWNHILL,RESOURCES,WALSALL CRISIS SUPPORT SCHEME,60.00,CRISIS SUPPORT PAYMENTS,"EQUIPMENT, FURNITURE, AND HOME FURNISHINGS STORES "
14 Jan 2015,CHICKEN JOES LTD,NEIGHBOURHOOD SERVICES,CA BUSILL JONES PRIMARY SCHOOL,179.78,FROZEN FOODS-PROVISIONS,CATERERS
14 Jan 2015,BLAKEMORE FOODSERVICE,NEIGHBOURHOOD SERVICES,CA BUSILL JONES PRIMARY SCHOOL,185.57,FROZEN FOODS-PROVISIONS,CATERERS
14 Jan 2015,BLAKEMORE FOODSERVICE,NEIGHBOURHOOD SERVICES,CA BUSILL JONES PRIMARY SCHOOL,609.49,DRY FOODS-PROVISIONS,CATERERS
14 Jan 2015,BLAKEMORE FOODSERVICE,NEIGHBOURHOOD SERVICES,CA BUSILL JONES PRIMARY SCHOOL,17.07,DRY FOODS-PROVISIONS,CATERERS
14 Jan 2015,CHICKEN JOES LTD,NEIGHBOURHOOD SERVICES,CA BUSILL JONES PRIMARY SCHOOL,-6.93,FROZEN FOODS-PROVISIONS,CATERERS
14 Jan 2015,BLAKEMORE FOODSERVICE,NEIGHBOURHOOD SERVICES,CA BROWNHILLS WEST PRIMARY SCHOOL,87.89,FROZEN FOODS-PROVISIONS,CATERERS
14 Jan 2015,BLAKEMORE FOODSERVICE,NEIGHBOURHOOD SERVICES,CA RADLEYS PRIMARY SCHOOL,156.76,FROZEN FOODS-PROVISIONS,CATERERS
14 Jan 2015,BLAKEMORE FOODSERVICE,NEIGHBOURHOOD SERVICES,CA JOSEPH LECKIE COMMUNITY TECHNOLOGY COLLEGE,233.24,FROZEN FOODS-PROVISIONS,CATERERS
14 Jan 2015,BLAKEMORE FOODSERVICE,NEIGHBOURHOOD SERVICES,CA JOSEPH LECKIE COMMUNITY TECHNOLOGY COLLEGE,767.83,DRY FOODS-PROVISIONS,CATERERS
14 Jan 2015,BLAKEMORE FOODSERVICE,NEIGHBOURHOOD SERVICES,CA JOSEPH LECKIE COMMUNITY TECHNOLOGY COLLEGE,203.32,DRY FOODS-PROVISIONS,CATERERS
14 Jan 2015,BLAKEMORE FOODSERVICE,NEIGHBOURHOOD SERVICES,CA ST ANNES CATHOLIC PRIMARY SCHOOL,188.14,FROZEN FOODS-PROVISIONS,CATERERS
14 Jan 2015,BLAKEMORE FOODSERVICE,NEIGHBOURHOOD SERVICES,CA ST ANNES CATHOLIC PRIMARY SCHOOL,16.16,FROZEN FOODS-PROVISIONS,CATERERS
14 Jan 2015,CHICKEN JOES LTD,NEIGHBOURHOOD SERVICES,CA ELMORE GREEN PRIMARY SCHOOL,65.20,FROZEN FOODS-PROVISIONS,CATERERS
14 Jan 2015,BLAKEMORE FOODSERVICE,NEIGHBOURHOOD SERVICES,CA LINDENS PRIMARY SCHOOL,187.03,DRY FOODS-PROVISIONS,CATERERS
14 Jan 2015,CHICKEN JOES LTD,NEIGHBOURHOOD SERVICES,CA LINDENS PRIMARY SCHOOL,57.90,FROZEN FOODS-PROVISIONS,CATERERS
14 Jan 2015,BLAKEMORE FOODSERVICE,NEIGHBOURHOOD SERVICES,CA GREEN ROCK PRIMARY,91.59,FROZEN FOODS-PROVISIONS,CATERERS
14 Jan 2015,CHICKEN JOES LTD,NEIGHBOURHOOD SERVICES,CA BEACON PRIMARY SCHOOL,136.90,FROZEN FOODS-PROVISIONS,CATERERS
14 Jan 2015,BLAKEMORE FOODSERVICE,NEIGHBOURHOOD SERVICES,CA BEACON PRIMARY SCHOOL,592.27,DRY FOODS-PROVISIONS,CATERERS
14 Jan 2015,BLAKEMORE FOODSERVICE,NEIGHBOURHOOD SERVICES,CA BEACON PRIMARY SCHOOL,52.56,DRY FOODS-PROVISIONS,CATERERS
14 Jan 2015,BLAKEMORE FOODSERVICE,NEIGHBOURHOOD SERVICES,CA BEACON PRIMARY SCHOOL,94.25,FROZEN FOODS-PROVISIONS,CATERERS
14 Jan 2015,CHICKEN JOES LTD,NEIGHBOURHOOD SERVICES,CA BEACON PRIMARY SCHOOL,114.15,FROZEN FOODS-PROVISIONS,CATERERS
14 Jan 2015,BLAKEMORE FOODSERVICE,NEIGHBOURHOOD SERVICES,CA ST MICHAELS C.E. PRIMARY SCHOOL,84.81,FROZEN FOODS-PROVISIONS,CATERERS
14 Jan 2015,BLAKEMORE FOODSERVICE,NEIGHBOURHOOD SERVICES,CA ST MICHAELS C.E. PRIMARY SCHOOL,8.07,FROZEN FOODS-PROVISIONS,CATERERS
14 Jan 2015,BLAKEMORE FOODSERVICE,NEIGHBOURHOOD SERVICES,CA ELMORE GREEN PRIMARY SCHOOL,219.46,FROZEN FOODS-PROVISIONS,CATERERS
14 Jan 2015,BLAKEMORE FOODSERVICE,NEIGHBOURHOOD SERVICES,CA ELMORE GREEN PRIMARY SCHOOL,390.60,DRY FOODS-PROVISIONS,CATERERS
14 Jan 2015,BLAKEMORE FOODSERVICE,NEIGHBOURHOOD SERVICES,CA ELMORE GREEN PRIMARY SCHOOL,26.28,DRY FOODS-PROVISIONS,CATERERS
14 Jan 2015,BLAKEMORE FOODSERVICE,NEIGHBOURHOOD SERVICES,CA MEADOW VIEW JMI PRIMARY SCHOOL,204.72,FROZEN FOODS-PROVISIONS,CATERERS
14 Jan 2015,CHICKEN JOES LTD,NEIGHBOURHOOD SERVICES,CA MEADOW VIEW JMI PRIMARY SCHOOL,41.75,FROZEN FOODS-PROVISIONS,CATERERS
14 Jan 2015,OFFICE DEPOT,NEIGHBOURHOOD SERVICES,LEATHER MUSEUM,12.14,STATIONERY & GENERAL SUPPLIES-OFFICE EXP,"STATIONERY, OFFICE SUPPLIES AND WRITING PAPER"
14 Jan 2015,OFFICE DEPOT,RESOURCES,PRINT STORES,16.37,STATIONERY & GENERAL SUPPLIES-OFFICE EXP,"STATIONERY, OFFICE SUPPLIES AND WRITING PAPER"
14 Jan 2015,OFFICE DEPOT,CHILDRENS SERVICES,INITIAL RESPONSE SERVICE,128.52,STATIONERY & GENERAL SUPPLIES-OFFICE EXP,"STATIONERY, OFFICE SUPPLIES AND WRITING PAPER"
14 Jan 2015,OFFICE DEPOT,REGENERATION,CENTRALISED STATIONERY,0.62,STATIONERY & GENERAL SUPPLIES-OFFICE EXP,"STATIONERY, OFFICE SUPPLIES AND WRITING PAPER"
14 Jan 2015,CHICKEN JOES LTD,NEIGHBOURHOOD SERVICES,CA RADLEYS PRIMARY SCHOOL,83.50,FROZEN FOODS-PROVISIONS,CATERERS
14 Jan 2015,BLAKEMORE FOODSERVICE,NEIGHBOURHOOD SERVICES,CA BIRCHILLS CE PRIMARY COMMUNITY SCHOOL,243.84,DRY FOODS-PROVISIONS,CATERERS
14 Jan 2015,BLAKEMORE FOODSERVICE,NEIGHBOURHOOD SERVICES,CA BIRCHILLS CE PRIMARY COMMUNITY SCHOOL,9.00,DRY FOODS-PROVISIONS,CATERERS
14 Jan 2015,BLAKEMORE FOODSERVICE,NEIGHBOURHOOD SERVICES,CA FIBBERSLEY PARK PRIMARY SCHOOL,79.76,FROZEN FOODS-PROVISIONS,CATERERS
14 Jan 2015,CHICKEN JOES LTD,NEIGHBOURHOOD SERVICES,CA FIBBERSLEY PARK PRIMARY SCHOOL,41.75,FROZEN FOODS-PROVISIONS,CATERERS
14 Jan 2015,OFFICE DEPOT,CHILDRENS SERVICES,CHILD PROTECTION & REVIEW SERVICES,45.34,STATIONERY & GENERAL SUPPLIES-OFFICE EXP,"STATIONERY, OFFICE SUPPLIES AND WRITING PAPER"
14 Jan 2015,BLAKEMORE FOODSERVICE,NEIGHBOURHOOD SERVICES,CA CALDMORE COMMUNITY PRIMARY SCHOOL,6.67,DRY FOODS-PROVISIONS,CATERERS
14 Jan 2015,NOBISCO LTD,NEIGHBOURHOOD SERVICES,CA CALDMORE COMMUNITY PRIMARY SCHOOL,56.59,DISPOSABLES-PROVISIONS,"CLEANING AND MAINTENANCE, JANITORIAL SERVICES"
14 Jan 2015,BLAKEMORE FOODSERVICE,NEIGHBOURHOOD SERVICES,CA CALDMORE COMMUNITY PRIMARY SCHOOL,182.51,DRY FOODS-PROVISIONS,CATERERS
14 Jan 2015,CHICKEN JOES LTD,NEIGHBOURHOOD SERVICES,CA LEIGHSWOOD PRIMARY SCHOOL,41.75,FROZEN FOODS-PROVISIONS,CATERERS
14 Jan 2015,BLAKEMORE FOODSERVICE,NEIGHBOURHOOD SERVICES,CA LEIGHSWOOD PRIMARY SCHOOL,47.99,FROZEN FOODS-PROVISIONS,CATERERS
14 Jan 2015,CHICKEN JOES LTD,NEIGHBOURHOOD SERVICES,CA ST JOHNS C.E. PRIMARY SCHOOL,41.48,FROZEN FOODS-PROVISIONS,CATERERS
14 Jan 2015,BLAKEMORE FOODSERVICE,NEIGHBOURHOOD SERVICES,CA ST JOHNS C.E. PRIMARY SCHOOL,194.19,FROZEN FOODS-PROVISIONS,CATERERS
14 Jan 2015,BLAKEMORE FOODSERVICE,NEIGHBOURHOOD SERVICES,CA ST JOHNS C.E. PRIMARY SCHOOL,24.23,FROZEN FOODS-PROVISIONS,CATERERS
14 Jan 2015,BLAKEMORE FOODSERVICE,NEIGHBOURHOOD SERVICES,CA FIBBERSLEY PARK PRIMARY SCHOOL,153.05,DRY FOODS-PROVISIONS,CATERERS
14 Jan 2015,BLAKEMORE FOODSERVICE,NEIGHBOURHOOD SERVICES,CA FIBBERSLEY PARK PRIMARY SCHOOL,48.86,DRY FOODS-PROVISIONS,CATERERS
14 Jan 2015,CHICKEN JOES LTD,NEIGHBOURHOOD SERVICES,CA WATLING STREET PRIMARY SCHOOL,60.65,FROZEN FOODS-PROVISIONS,CATERERS
14 Jan 2015,BLAKEMORE FOODSERVICE,NEIGHBOURHOOD SERVICES,CA WATLING STREET PRIMARY SCHOOL,154.19,FROZEN FOODS-PROVISIONS,CATERERS
14 Jan 2015,BLAKEMORE FOODSERVICE,NEIGHBOURHOOD SERVICES,CA COOPER JORDAN CE PRIMARY SCHOOL,97.27,FROZEN FOODS-PROVISIONS,CATERERS
14 Jan 2015,CHICKEN JOES LTD,NEIGHBOURHOOD SERVICES,CA CASTLEFORT JMI SCHOOL,45.65,FROZEN FOODS-PROVISIONS,CATERERS
14 Jan 2015,ARTHUR BRETT CATER,NEIGHBOURHOOD SERVICES,CA CASTLEFORT JMI SCHOOL,35.62,FRUIT & VEGETABLES OTHER-PROVISIONS,MISCELLANEOUS FOOD STORES & CONVENIENCE STORES
14 Jan 2015,BLAKEMORE FOODSERVICE,NEIGHBOURHOOD SERVICES,CA CASTLEFORT JMI SCHOOL,110.44,FROZEN FOODS-PROVISIONS,CATERERS
14 Jan 2015,BLAKEMORE FOODSERVICE,NEIGHBOURHOOD SERVICES,CA ELMWOOD SPECIAL SCHOOL,22.18,FROZEN FOODS-PROVISIONS,CATERERS
14 Jan 2015,BLAKEMORE FOODSERVICE,NEIGHBOURHOOD SERVICES,CA TOWN HALL RESTAURANT - CATERING,59.63,FROZEN FOODS-PROVISIONS,CATERERS
14 Jan 2015,BLAKEMORE FOODSERVICE,NEIGHBOURHOOD SERVICES,CA RUSHALL JMI SCHOOL,108.36,FROZEN FOODS-PROVISIONS,CATERERS
14 Jan 2015,BLAKEMORE FOODSERVICE,NEIGHBOURHOOD SERVICES,CA BARCROFT D/C,392.22,DRY FOODS-PROVISIONS,CATERERS
14 Jan 2015,BLAKEMORE FOODSERVICE,NEIGHBOURHOOD SERVICES,CA BARCROFT D/C,42.44,DRY FOODS-PROVISIONS,CATERERS
14 Jan 2015,CHICKEN JOES LTD,NEIGHBOURHOOD SERVICES,CA RUSHALL JMI SCHOOL,58.65,FROZEN FOODS-PROVISIONS,CATERERS
14 Jan 2015,BLAKEMORE FOODSERVICE,NEIGHBOURHOOD SERVICES,CA OAKWOOD SPECIAL SCHOOL,56.16,FROZEN FOODS-PROVISIONS,CATERERS
14 Jan 2015,BLAKEMORE FOODSERVICE,NEIGHBOURHOOD SERVICES,CA OAKWOOD SPECIAL SCHOOL,8.07,FROZEN FOODS-PROVISIONS,CATERERS
14 Jan 2015,BLAKEMORE FOODSERVICE,NEIGHBOURHOOD SERVICES,CA BLUE COAT C OF E PERFORMING ARTS COLLEGE,446.08,FROZEN FOODS-PROVISIONS,CATERERS
14 Jan 2015,BLAKEMORE FOODSERVICE,NEIGHBOURHOOD SERVICES,CA BLUE COAT C OF E PERFORMING ARTS COLLEGE,348.90,DRY FOODS-PROVISIONS,CATERERS
14 Jan 2015,BLAKEMORE FOODSERVICE,NEIGHBOURHOOD SERVICES,CA BLUE COAT C OF E PERFORMING ARTS COLLEGE,121.15,DRY FOODS-PROVISIONS,CATERERS
14 Jan 2015,OFFICE DEPOT,CHILDRENS SERVICES,"CLUSTER 3 BLOXWICH,BLAKENALL,HATHERTON,E STAMMERS",202.30,STATIONERY & GENERAL SUPPLIES-OFFICE EXP,"STATIONERY, OFFICE SUPPLIES AND WRITING PAPER"
14 Jan 2015,BLAKEMORE FOODSERVICE,NEIGHBOURHOOD SERVICES,CA OLD HALL SPECIAL SCHOOL,234.88,DRY FOODS-PROVISIONS,CATERERS
15 Jan 2015,PREMIER INN44533745,RESOURCES,HOMELESSNESS PREVENTION STRATEGY,73.75,BED & BREAKFAST PAYMENTS,PREMIER INN
15 Jan 2015,ASDA STORES,RESOURCES,ACCOMMODATION SERVICES MANAGEMENT,162.75,FURNITURE & EQUIPMENT,GROCERY STORES AND SUPERMARKETS
15 Jan 2015,IKEA,CHILDRENS SERVICES,ROSEDALE C.E. PRIMARY SCHOOL,17.00,GENERAL MATERIALS,MISCELLANEOUS HOUSE FURNISHING SPECIALTY SHOPS
15 Jan 2015,IKEA,CHILDRENS SERVICES,LIBRARY SH,155.00,FURNITURE & EQUIPMENT,MISCELLANEOUS HOUSE FURNISHING SPECIALTY SHOPS
15 Jan 2015,SIM MAYOU HARDWARE,NEIGHBOURHOOD SERVICES,DEPOT,40.56,GENERAL MATERIALS,OTHER CONSTRUCTION MATERIALS
15 Jan 2015,WM MORRISON FOOD.COM,CHILDRENS SERVICES,BLUEBELLS,15.24,GENERAL PROVISIONS-PROVISIONS,GROCERY STORES AND SUPERMARKETS
15 Jan 2015,WM MORRISON FOOD.COM,CHILDRENS SERVICES,BLUEBELLS,109.99,GENERAL PROVISIONS-PROVISIONS,GROCERY STORES AND SUPERMARKETS
15 Jan 2015,WM MORRISONS,CHILDRENS SERVICES,"43A HILTON ROAD, WILLENHALL",7.77,FOOD AND BEVERAGES-PROVISIONS,GROCERY STORES AND SUPERMARKETS
15 Jan 2015,MIGHTY,RESOURCES,TENANCY SERVICE,208.34,GENERAL MATERIALS,LUMBER & BUILDING MATERIALS STORES
15 Jan 2015,WWW.DAISYGROUPPIC.,CHILDRENS SERVICES,"CLUSTER 3 BLOXWICH,BLAKENALL,HATHERTON,E STAMMERS",1.67,COSTS (NOT INTERNAL RECHARGES)-TELEPHONES,TELECOMMUNICATION EQUIPMENT & SALES
15 Jan 2015,WWW.DAISYGROUPPIC.,CHILDRENS SERVICES,"CLUSTER 3 BLOXWICH,BLAKENALL,HATHERTON,E STAMMERS",83.53,COSTS (NOT INTERNAL RECHARGES)-TELEPHONES,TELECOMMUNICATION EQUIPMENT & SALES
15 Jan 2015,B&M RETAIL LTD,CHILDRENS SERVICES,"CLUSTER 1 BROWNHILLS,GREENFIELDS,PELSALL",22.96,CLEANING-MATERIALS (INC LIGHT BULBS),DISCOUNT STORES
15 Jan 2015,ARGOS LTD,NEIGHBOURHOOD SERVICES,STREETLY CREMATORIUM,34.18,NEW-FURNITURE & EQUIPMENT,DISCOUNT STORES
15 Jan 2015,REDFUNNEL.CO.UK,CHILDRENS SERVICES,SUPPORT UNDER SECT 23 OF THE CHILDRENS ACT,41.00,SUPPORT UNDER SECTION 23 OF THE CHILDRENS ACT,STEAMSHIP LINES AND CRUISE LINES
15 Jan 2015,AMAZON EU,NEIGHBOURHOOD SERVICES,VP SCL ESSENTIAL SKILLS S4L IT ESOL,89.94,NEW-FURNITURE & EQUIPMENT,OTHER DIRECT MARKETING-OTHER DIRECT MARKETERS
15 Jan 2015,THE PLASTIC BOX COMPAN,CHILDRENS SERVICES,ADMINISTRATIVE SUPPLIES,34.75,MEDICAL REQUISITES-MATERIALS,OTHER INDUSTRIAL SUPPLIES
15 Jan 2015,AMAZON *MKTPLCE EU-UK,CHILDRENS SERVICES,DT,2.29,GENERAL MATERIALS,BOOK STORES
15 Jan 2015,TRAVEL WEST MIDLAN,CHILDRENS SERVICES,BURSARY,185.50,TRANSPORT OTHER-ASSISTANCE TO STUDENTS,BUS LINES
15 Jan 2015,INFORMA UK MOTO GB,CHILDRENS SERVICES,WHOLE SCHOOL,212.40,PUBLICATIONS/ORGANISATIONS-SUBSCRIPTIONS,MISCELLANEOUS PUBLISHING AND PRINTING
15 Jan 2015,WWW.FURNITUREATWORK.CO,CHILDRENS SERVICES,PUPIL REFERAL UNIT EXCLUSIONS,33.60,FURNITURE & EQUIPMENT,"EQUIPMENT, FURNITURE, AND HOME FURNISHINGS STORES "
15 Jan 2015,CROSSBOW EDUCATION LTD,CHILDRENS SERVICES,ICT LEARNING RESOURCES,191.66,GENERAL MATERIALS,BOOK STORES
15 Jan 2015,PAYPAL,CHILDRENS SERVICES,SAFEGUARDING & FAMILY SUPPORT,95.00,BEDDING & LINEN-MATERIALS,OTHER CHEMICALS AND ALLIED PRODUCTS
15 Jan 2015,PAYPAL,CHILDRENS SERVICES,SAFEGUARDING & FAMILY SUPPORT,-95.00,BEDDING & LINEN-MATERIALS,OTHER CHEMICALS AND ALLIED PRODUCTS
15 Jan 2015,ARGOS LTD,NEIGHBOURHOOD SERVICES,STREETLY CREMATORIUM,-11.99,NEW-FURNITURE & EQUIPMENT,DISCOUNT STORES
15 Jan 2015,TESCO STORES 6161,RESOURCES,ADVICE & GUIDANCE SERVICE,12.00,FOOD AND BEVERAGES-PROVISIONS,GROCERY STORES AND SUPERMARKETS
15 Jan 2015,ARDEN NEWS 60191/020,RESOURCES,ADVICE & GUIDANCE SERVICE,10.50,FOOD AND BEVERAGES-PROVISIONS,GROCERY STORES AND SUPERMARKETS
15 Jan 2015,WALSALL COUNCIL,CHILDRENS SERVICES,LOOKED AFTER CHILDRENS SOCIAL WORK TEAM,35.00,SECTION 1/17CHILD CARE ACT 1989-ASSISTANCE TO S/S CLIENTS,GOVERNMENT SERVICES
15 Jan 2015,TRAVEL WEST MIDLAN,CHILDRENS SERVICES,LOOKED AFTER CHILDRENS SOCIAL WORK TEAM,9.20,OFFICER/STAFF-PUBLIC TRANSPORT,BUS LINES
15 Jan 2015,TRAINLINE.COM,NEIGHBOURHOOD SERVICES,NEW ART GALLERY - ADMIN,39.47,OFFICER/STAFF-PUBLIC TRANSPORT,PASSENGER RAILWAYS
15 Jan 2015,MAPMATE LTD,RESOURCES,RECHARGEABLE EQUIPMENT,13.60,COMPUTER EQUIPMENT AND SUPPLIES,OTHER SERVICES
15 Jan 2015,AMAZON EU,CHILDRENS SERVICES,COMMUNICATION & LANGUAGE LH,9.98,LIBRARY BOOKS,OTHER DIRECT MARKETING-OTHER DIRECT MARKETERS
15 Jan 2015,WM MORRISON 063,CHILDRENS SERVICES,REDRUTH ROAD,8.49,GENERAL PROVISIONS-PROVISIONS,GROCERY STORES AND SUPERMARKETS
15 Jan 2015,WM MORRISON 063,CHILDRENS SERVICES,REDRUTH ROAD,12.99,GENERAL PROVISIONS-PROVISIONS,GROCERY STORES AND SUPERMARKETS
15 Jan 2015,PROSOL UK,NEIGHBOURHOOD SERVICES,FLEET,137.34,VEHICLES-REPAIR & MTCE,"AUTOMOTIVE PARTS, ACCESSORIES STORES"
15 Jan 2015,PAYPAL,CHILDRENS SERVICES,DT/CONSTRUCTION,19.18,GENERAL MATERIALS,"AUTOMOTIVE PARTS, ACCESSORIES STORES"
15 Jan 2015,MACHINE MART WEB,CHILDRENS SERVICES,DT/CONSTRUCTION,154.27,NEW-FURNITURE & EQUIPMENT,EQUIPMENT RENTAL AND LEASING SERVICES
15 Jan 2015,PAYPAL,CHILDRENS SERVICES,OUTDOOR EDUCATION,81.78,GENERAL MATERIALS,BICYCLE SHOPS-SALES AND SERVICE
15 Jan 2015,PAYPAL,CHILDRENS SERVICES,OUTDOOR EDUCATION,52.71,GENERAL MATERIALS,SPORTING GOODS STORES
15 Jan 2015,AMAZON EU,CHILDRENS SERVICES,PUPIL PREMIUM LEARNING RESOURCE NOT ICT,26.33,GENERAL MATERIALS,OTHER DIRECT MARKETING-OTHER DIRECT MARKETERS
15 Jan 2015,FEDEX*548095351,NEIGHBOURHOOD SERVICES,NAG - TEMPORARY EXHIBITIONS,90.00,POSTAGES AND COURIER SERVICES,COURIER SERVICES
15 Jan 2015,ROYAL YACHTING ASSOC,NEIGHBOURHOOD SERVICES,WALSALL OUTDOOR ADVENTURE CENTRE,50.00,PROFESSIONAL FEES AND SERVICES,OTHER BUSINESS SERVICES
15 Jan 2015,BCU,NEIGHBOURHOOD SERVICES,WALSALL OUTDOOR ADVENTURE CENTRE,42.00,PROFESSIONAL FEES AND SERVICES,"CLUBS COUNTRY CLUBS, MEMBERSHIP"
15 Jan 2015,B & Q,NEIGHBOURHOOD SERVICES,ARBORETUM,9.50,GENERAL MATERIALS,LUMBER & BUILDING MATERIALS STORES
15 Jan 2015,AMAZON EU,CHILDRENS SERVICES,ROSEDALE C.E. PRIMARY SCHOOL,92.75,LANDSCAPE WORK-OP MTCE,OTHER DIRECT MARKETING-OTHER DIRECT MARKETERS
15 Jan 2015,ASDA SUPERSTORE,CHILDRENS SERVICES,"CLUSTER 3 BLOXWICH,BLAKENALL,HATHERTON,E STAMMERS",6.14,FOOD AND BEVERAGES-PROVISIONS,GROCERY STORES AND SUPERMARKETS
15 Jan 2015,ASDA SUPERSTORE,CHILDRENS SERVICES,"CLUSTER 3 BLOXWICH,BLAKENALL,HATHERTON,E STAMMERS",18.03,FOOD AND BEVERAGES-PROVISIONS,GROCERY STORES AND SUPERMARKETS
15 Jan 2015,TP WALSALL BM,CHILDRENS SERVICES,"CLUSTER 3 BLOXWICH,BLAKENALL,HATHERTON,E STAMMERS",49.85,GENERAL MATERIALS,LUMBER & BUILDING MATERIALS STORES
15 Jan 2015,OFSTED INTERNET,CHILDRENS SERVICES,CLUSTER 5 DARLASTON,220.00,PROFESSIONAL FEES AND SERVICES,GOVERNMENT SERVICES
15 Jan 2015,CTO,CHILDRENS SERVICES,ADMINISTRATIVE SUPPLIES,92.04,SOFTWARE ACQ-COMPUTER,DIRECT MARKETING CONTINUITY SUBSCRIPTION MERCHANTS
15 Jan 2015,CITY ELECT FACTORS,CHILDRENS SERVICES,NEW LEAF PUPIL REFERRAL UNIT,79.06,ALARM CALL OUTS-OP MTCE,LUMBER & BUILDING MATERIALS STORES
15 Jan 2015,TESCO STORES 6161,CHILDRENS SERVICES,FOOD TECHNOLOGY,43.47,GENERAL MATERIALS,GROCERY STORES AND SUPERMARKETS
15 Jan 2015,FAST KEY SERVICES,REGENERATION,PELSALL EDUCATION DEVELOPMENT CENTRE,19.78,PROFESSIONAL FEES AND SERVICES,OTHER BUSINESS SERVICES
15 Jan 2015,BORSHCH LIMITED,RESOURCES,WALSALL CRISIS SUPPORT SCHEME,325.00,CRISIS SUPPORT PAYMENTS,ELECTRONIC SALES
15 Jan 2015,BORSHCH LIMITED,RESOURCES,WALSALL CRISIS SUPPORT SCHEME,520.00,CRISIS SUPPORT PAYMENTS,ELECTRONIC SALES
15 Jan 2015,BORSHCH LIMITED,RESOURCES,WALSALL CRISIS SUPPORT SCHEME,325.00,CRISIS SUPPORT PAYMENTS,ELECTRONIC SALES
15 Jan 2015,BORSHCH LIMITED,RESOURCES,WALSALL CRISIS SUPPORT SCHEME,195.00,CRISIS SUPPORT PAYMENTS,ELECTRONIC SALES
15 Jan 2015,BORSHCH LIMITED,RESOURCES,WALSALL CRISIS SUPPORT SCHEME,325.00,CRISIS SUPPORT PAYMENTS,ELECTRONIC SALES
15 Jan 2015,TESCO STORES 6161,RESOURCES,WALSALL CRISIS SUPPORT SCHEME,8.50,CRISIS SUPPORT PAYMENTS,GROCERY STORES AND SUPERMARKETS
15 Jan 2015,WWW.GIROFOOD.COM,NEIGHBOURHOOD SERVICES,CA MOORCROFT WOOD,88.62,DISPOSABLES-PROVISIONS,WHOLESALE CLUBS
15 Jan 2015,OFFICE DEPOT,RESOURCES,SIT-CORPORATE SERVICES,6.52,STATIONERY & GENERAL SUPPLIES-OFFICE EXP,"STATIONERY, OFFICE SUPPLIES AND WRITING PAPER"
15 Jan 2015,BLAKEMORE FOODSERVICE,NEIGHBOURHOOD SERVICES,CA OAKWOOD SPECIAL SCHOOL,130.10,DRY FOODS-PROVISIONS,CATERERS
15 Jan 2015,BLAKEMORE FOODSERVICE,NEIGHBOURHOOD SERVICES,CA RUSHALL JMI SCHOOL,228.15,DRY FOODS-PROVISIONS,CATERERS
15 Jan 2015,BLAKEMORE FOODSERVICE,NEIGHBOURHOOD SERVICES,CA RUSHALL JMI SCHOOL,50.72,DRY FOODS-PROVISIONS,CATERERS
15 Jan 2015,BLAKEMORE FOODSERVICE,NEIGHBOURHOOD SERVICES,TOWN HALL RESTAURANT BISTRO,318.53,DRY FOODS-PROVISIONS,CATERERS
15 Jan 2015,BLAKEMORE FOODSERVICE,NEIGHBOURHOOD SERVICES,TOWN HALL RESTAURANT BISTRO,81.34,DRY FOODS-PROVISIONS,CATERERS
15 Jan 2015,BLAKEMORE FOODSERVICE,NEIGHBOURHOOD SERVICES,CA TOWN HALL RESTAURANT - CATERING,228.81,DRY FOODS-PROVISIONS,CATERERS
15 Jan 2015,OFFICE DEPOT,NEIGHBOURHOOD SERVICES,LIBRARY OPERATIONS CENTRAL,133.06,STATIONERY & GENERAL SUPPLIES-OFFICE EXP,"STATIONERY, OFFICE SUPPLIES AND WRITING PAPER"
15 Jan 2015,OFFICE DEPOT,NEIGHBOURHOOD SERVICES,LIBRARY OPERATIONS CENTRAL,6.68,STATIONERY & GENERAL SUPPLIES-OFFICE EXP,"STATIONERY, OFFICE SUPPLIES AND WRITING PAPER"
15 Jan 2015,BLAKEMORE FOODSERVICE,NEIGHBOURHOOD SERVICES,CA CASTLEFORT JMI SCHOOL,182.78,DRY FOODS-PROVISIONS,CATERERS
15 Jan 2015,OFFICE DEPOT,SOCIAL CARE & INCLUSION,PARIS & PERFORMANCE,104.26,GENERAL MATERIALS,"STATIONERY, OFFICE SUPPLIES AND WRITING PAPER"
15 Jan 2015,OFFICE DEPOT,NEIGHBOURHOOD SERVICES,VP SCL EMPLOYER GATEWAY,131.77,STATIONERY & GENERAL SUPPLIES-OFFICE EXP,"STATIONERY, OFFICE SUPPLIES AND WRITING PAPER"
15 Jan 2015,OFFICE DEPOT,NEIGHBOURHOOD SERVICES,VP SCL EMPLOYER GATEWAY,1.63,STATIONERY & GENERAL SUPPLIES-OFFICE EXP,"STATIONERY, OFFICE SUPPLIES AND WRITING PAPER"
15 Jan 2015,OFFICE DEPOT,NEIGHBOURHOOD SERVICES,AP FINANCE & RESOURCES ADMINISTRATION,67.04,STATIONERY & GENERAL SUPPLIES-OFFICE EXP,"STATIONERY, OFFICE SUPPLIES AND WRITING PAPER"
15 Jan 2015,ARTHUR BRETT CATER,NEIGHBOURHOOD SERVICES,CA ST JOHNS C.E. PRIMARY SCHOOL,60.47,FRUIT & VEGETABLES OTHER-PROVISIONS,MISCELLANEOUS FOOD STORES & CONVENIENCE STORES
15 Jan 2015,BLAKEMORE FOODSERVICE,NEIGHBOURHOOD SERVICES,CA CROFT COMMUNITY PRIMARY SCHOOL,173.90,DRY FOODS-PROVISIONS,CATERERS
15 Jan 2015,BLAKEMORE FOODSERVICE,NEIGHBOURHOOD SERVICES,CA CROFT COMMUNITY PRIMARY SCHOOL,0.47,DRY FOODS-PROVISIONS,CATERERS
15 Jan 2015,BLAKEMORE FOODSERVICE,NEIGHBOURHOOD SERVICES,CA LEIGHSWOOD PRIMARY SCHOOL,306.62,DRY FOODS-PROVISIONS,CATERERS
15 Jan 2015,BLAKEMORE FOODSERVICE,NEIGHBOURHOOD SERVICES,CA LEIGHSWOOD PRIMARY SCHOOL,122.16,DRY FOODS-PROVISIONS,CATERERS
15 Jan 2015,OFFICE DEPOT,NEIGHBOURHOOD SERVICES,RESOURCE MANAGEMENT,127.98,STATIONERY & GENERAL SUPPLIES-OFFICE EXP,"STATIONERY, OFFICE SUPPLIES AND WRITING PAPER"
15 Jan 2015,OFFICE DEPOT,CHILDRENS SERVICES,"CLUSTER 1 BROWNHILLS,GREENFIELDS,PELSALL",35.93,STATIONERY & GENERAL SUPPLIES-OFFICE EXP,"STATIONERY, OFFICE SUPPLIES AND WRITING PAPER"
15 Jan 2015,BLAKEMORE FOODSERVICE,NEIGHBOURHOOD SERVICES,CA ST JOHNS C.E. PRIMARY SCHOOL,536.25,DRY FOODS-PROVISIONS,CATERERS
15 Jan 2015,BLAKEMORE FOODSERVICE,NEIGHBOURHOOD SERVICES,CA COOPER JORDAN CE PRIMARY SCHOOL,243.76,DRY FOODS-PROVISIONS,CATERERS
15 Jan 2015,BLAKEMORE FOODSERVICE,NEIGHBOURHOOD SERVICES,CA COOPER JORDAN CE PRIMARY SCHOOL,24.44,DRY FOODS-PROVISIONS,CATERERS
15 Jan 2015,OFFICE DEPOT,REGENERATION,CENTRALISED STATIONERY,7.92,STATIONERY & GENERAL SUPPLIES-OFFICE EXP,"STATIONERY, OFFICE SUPPLIES AND WRITING PAPER"
15 Jan 2015,OFFICE DEPOT,CHILDRENS SERVICES,CHILD PROTECTION & REVIEW SERVICES,1.96,STATIONERY & GENERAL SUPPLIES-OFFICE EXP,"STATIONERY, OFFICE SUPPLIES AND WRITING PAPER"
15 Jan 2015,BLAKEMORE FOODSERVICE,NEIGHBOURHOOD SERVICES,CA MEADOW VIEW JMI PRIMARY SCHOOL,372.55,DRY FOODS-PROVISIONS,CATERERS
15 Jan 2015,ARTHUR BRETT CATER,NEIGHBOURHOOD SERVICES,CA TOWN HALL RESTAURANT - CATERING,36.26,FRUIT & VEGETABLES OTHER-PROVISIONS,MISCELLANEOUS FOOD STORES & CONVENIENCE STORES
15 Jan 2015,ARTHUR BRETT CATER,NEIGHBOURHOOD SERVICES,TOWN HALL RESTAURANT BISTRO,39.03,FRUIT & VEGETABLES OTHER-PROVISIONS,MISCELLANEOUS FOOD STORES & CONVENIENCE STORES
15 Jan 2015,BLAKEMORE FOODSERVICE,NEIGHBOURHOOD SERVICES,CA ELMORE GREEN PRIMARY SCHOOL,6.86,DRY FOODS-PROVISIONS,CATERERS
15 Jan 2015,BLAKEMORE FOODSERVICE,NEIGHBOURHOOD SERVICES,CA ST MICHAELS C.E. PRIMARY SCHOOL,187.31,DRY FOODS-PROVISIONS,CATERERS
15 Jan 2015,BLAKEMORE FOODSERVICE,NEIGHBOURHOOD SERVICES,CA ST MICHAELS C.E. PRIMARY SCHOOL,50.72,DRY FOODS-PROVISIONS,CATERERS
15 Jan 2015,ARTHUR BRETT CATER,NEIGHBOURHOOD SERVICES,CA BEACON PRIMARY SCHOOL,170.09,FRUIT & VEGETABLES OTHER-PROVISIONS,MISCELLANEOUS FOOD STORES & CONVENIENCE STORES
15 Jan 2015,BLAKEMORE FOODSERVICE,NEIGHBOURHOOD SERVICES,CA GREEN ROCK PRIMARY,195.93,DRY FOODS-PROVISIONS,CATERERS
15 Jan 2015,BLAKEMORE FOODSERVICE,NEIGHBOURHOOD SERVICES,CA GREEN ROCK PRIMARY,37.57,DRY FOODS-PROVISIONS,CATERERS
15 Jan 2015,ARTHUR BRETT CATER,NEIGHBOURHOOD SERVICES,CA GREEN ROCK PRIMARY,22.71,FRUIT & VEGETABLES OTHER-PROVISIONS,MISCELLANEOUS FOOD STORES & CONVENIENCE STORES
15 Jan 2015,BLAKEMORE FOODSERVICE,NEIGHBOURHOOD SERVICES,CA LINDENS PRIMARY SCHOOL,423.63,DRY FOODS-PROVISIONS,CATERERS
15 Jan 2015,BLAKEMORE FOODSERVICE,NEIGHBOURHOOD SERVICES,CA LINDENS PRIMARY SCHOOL,228.32,DRY FOODS-PROVISIONS,CATERERS
15 Jan 2015,WELSH BROS FOODS LTD,NEIGHBOURHOOD SERVICES,CA LINDENS PRIMARY SCHOOL,55.78,MEAT-PROVISIONS,FREEZER AND LOCKER MEAT PROVISIONERS
15 Jan 2015,BLAKEMORE FOODSERVICE,NEIGHBOURHOOD SERVICES,CA ST ANNES CATHOLIC PRIMARY SCHOOL,136.00,DRY FOODS-PROVISIONS,CATERERS
15 Jan 2015,BLAKEMORE FOODSERVICE,NEIGHBOURHOOD SERVICES,CA RADLEYS PRIMARY SCHOOL,406.43,DRY FOODS-PROVISIONS,CATERERS
15 Jan 2015,BLAKEMORE FOODSERVICE,NEIGHBOURHOOD SERVICES,CA RADLEYS PRIMARY SCHOOL,42.44,DRY FOODS-PROVISIONS,CATERERS
15 Jan 2015,ARTHUR BRETT CATER,NEIGHBOURHOOD SERVICES,CA BUSILL JONES PRIMARY SCHOOL,124.65,FRUIT & VEGETABLES OTHER-PROVISIONS,MISCELLANEOUS FOOD STORES & CONVENIENCE STORES
15 Jan 2015,BLAKEMORE FOODSERVICE,NEIGHBOURHOOD SERVICES,CA BROWNHILLS WEST PRIMARY SCHOOL,292.22,DRY FOODS-PROVISIONS,CATERERS
15 Jan 2015,BLAKEMORE FOODSERVICE,NEIGHBOURHOOD SERVICES,CA BROWNHILLS WEST PRIMARY SCHOOL,144.37,DRY FOODS-PROVISIONS,CATERERS
15 Jan 2015,SPENDVISION,RESOURCES,FINANCE ADMIN,1900.64,SERVICE AGREEMENTS-SERVICES,
16 Jan 2015,GREENHAM TRADING LTD,NEIGHBOURHOOD SERVICES,ARBORETUM,17.38,FURNITURE & EQUIPMENT,OTHER INDUSTRIAL SUPPLIES
16 Jan 2015,FEDEX*548101047,NEIGHBOURHOOD SERVICES,NAG - TEMPORARY EXHIBITIONS,150.15,POSTAGES AND COURIER SERVICES,COURIER SERVICES
16 Jan 2015,POST OFFICE COUNTER,CHILDRENS SERVICES,ADMINISTRATIVE SUPPLIES,23.14,POSTAGES AND COURIER SERVICES,POSTAL SERVICES - GOVERNMENT ONLY
16 Jan 2015,PAYPAL,RESOURCES,COMMUNICATIONS,5.45,MISCELLANEOUS SUPPLIES,MISCELLANEOUS AND SPECIALTY RETAIL STORES
16 Jan 2015,WWW.LEWIS-PLAST.CO.UK,NEIGHBOURHOOD SERVICES,DARLASTON LEISURE & CULTURE HUB,65.82,MEDICAL REQUISITES-MATERIALS,DENTAL/LABORATORY/MEDICAL EQUIPMENT & SUPPLIES
16 Jan 2015,VILLAGE HOTEL WALSALL,RESOURCES,CORPORATE MANAGEMENT TEAM,195.50,HOTEL ACCOMMODATION-EMPLOYEES,"HOTELS, MOTELS, RESORTS"
16 Jan 2015,FARMFOODS- WALSALL,CHILDRENS SERVICES,REDRUTH ROAD,5.69,GENERAL PROVISIONS-PROVISIONS,GROCERY STORES AND SUPERMARKETS
16 Jan 2015,AMAZON EU,RESOURCES,RISK & INSURANCE,22.74,PERIODICALS/MAGAZINES/NEWSPAPERS-SUBSCRIPTIONS,OTHER DIRECT MARKETING-OTHER DIRECT MARKETERS
16 Jan 2015,REGISTRATION SERVICES,CHILDRENS SERVICES,SUPPORT UNDER SECT 23 OF THE CHILDRENS ACT,85.00,SUPPORT UNDER SECTION 23 OF THE CHILDRENS ACT,OTHER RECREATION SERVICES
16 Jan 2015,HOMELIVING,CHILDRENS SERVICES,57 LICHFIELD ROAD,20.00,FURNITURE & EQUIPMENT,HOME SUPPLY WAREHOUSE STORES
16 Jan 2015,TESCO STORES 6161,CHILDRENS SERVICES,57 LICHFIELD ROAD,4.70,EQUIP NEW-CLEANING,GROCERY STORES AND SUPERMARKETS
16 Jan 2015,TESCO STORES 6161,CHILDRENS SERVICES,57 LICHFIELD ROAD,17.55,GENERAL PROVISIONS-PROVISIONS,GROCERY STORES AND SUPERMARKETS
16 Jan 2015,BODYCARE,CHILDRENS SERVICES,57 LICHFIELD ROAD,15.14,RESIDENTS PERSONAL EXPENSES-ALLOWANCES TO S/S CLIENTS,COSMETIC STORES
16 Jan 2015,PREMIER INN44533745,RESOURCES,HOMELESSNESS PREVENTION STRATEGY,199.25,BED & BREAKFAST PAYMENTS,PREMIER INN
16 Jan 2015,EURASIA CARPETS LTD,RESOURCES,HOMELESSNESS PREVENTION STRATEGY,212.00,FURNITURE & EQUIPMENT,FLOOR COVERING STORES
16 Jan 2015,TATES STORE 347314,CHILDRENS SERVICES,PARENTING TEAM,5.00,FOOD AND BEVERAGES-PROVISIONS,GROCERY STORES AND SUPERMARKETS
16 Jan 2015,PAYPAL,CHILDRENS SERVICES,SAFEGUARDING & FAMILY SUPPORT,190.00,BEDDING & LINEN-MATERIALS,OTHER CHEMICALS AND ALLIED PRODUCTS
16 Jan 2015,ASDA HOME SHOPPING,CHILDRENS SERVICES,SPINDLETREE,27.00,GENERAL PROVISIONS-PROVISIONS,GROCERY STORES AND SUPERMARKETS
16 Jan 2015,ASDA HOME SHOPPING,CHILDRENS SERVICES,SPINDLETREE,144.15,GENERAL PROVISIONS-PROVISIONS,GROCERY STORES AND SUPERMARKETS
16 Jan 2015,WWW.CORNERHOUSE.ORG/BO,NEIGHBOURHOOD SERVICES,NAG - TEMPORARY EXHIBITIONS,33.00,LIBRARY BOOKS,BOOK STORES
16 Jan 2015,AMAZON *MKTPLCE EU-UK,CHILDRENS SERVICES,LIBRARY,31.95,GENERAL MATERIALS,BOOK STORES
16 Jan 2015,ASDA SUPERSTORE,CHILDRENS SERVICES,HOSPITALITY & CATERING,3.62,GENERAL MATERIALS,GROCERY STORES AND SUPERMARKETS
16 Jan 2015,DULUX DECORATOR CENTRE,NEIGHBOURHOOD SERVICES,TECHNICAL/ART HANDLING,156.00,LOOSE TOOLS & CONSUMABLES,"PAINTS, VARNISHES, AND SUPPLIES"
16 Jan 2015,AMAZON *MKTPLCE EU-UK,NEIGHBOURHOOD SERVICES,AP QUALITY & PERFORMANCE INSPIRING LEARNING,67.96,GENERAL MATERIALS,MISCELLANEOUS AND SPECIALTY RETAIL STORES
16 Jan 2015,AMAZON EU,NEIGHBOURHOOD SERVICES,VP SCL ESSENTIAL SKILLS S4L IT ESOL,134.91,GENERAL MATERIALS,OTHER DIRECT MARKETING-OTHER DIRECT MARKETERS
16 Jan 2015,TRAINLINE.COM,NEIGHBOURHOOD SERVICES,AP FINANCE & RESOURCES STAFF DEVELOPMENT,47.63,OFFICER/STAFF-PUBLIC TRANSPORT,PASSENGER RAILWAYS
16 Jan 2015,WILKO RETAIL LIMIT,CHILDRENS SERVICES,CLUSTER 4 ALUMWELL & BIRCHILLS,3.90,CLEANING MATERIALS,HOUSEHOLD APPLIANCE STORES
16 Jan 2015,WWW.CIPS.ORG,NEIGHBOURHOOD SERVICES,STREET PRIDE MANAGEMENT,95.88,EXTERNAL TRAINING,"ORGANIZATIONS, MEMBERSHIP"
16 Jan 2015,W M MORRISON PLC,CHILDRENS SERVICES,"43A HILTON ROAD, WILLENHALL",21.78,FOOD AND BEVERAGES-PROVISIONS,GROCERY STORES AND SUPERMARKETS
16 Jan 2015,W M MORRISON PLC,CHILDRENS SERVICES,"43A HILTON ROAD, WILLENHALL",99.23,FOOD AND BEVERAGES-PROVISIONS,GROCERY STORES AND SUPERMARKETS
16 Jan 2015,WM MORRISON 063,CHILDRENS SERVICES,BLUEBELLS,23.92,RESIDENTS PERSONAL EXPENSES-ALLOWANCES TO S/S CLIENTS,GROCERY STORES AND SUPERMARKETS
16 Jan 2015,SAINSBURYS S/MKTS,CHILDRENS SERVICES,BLUEBELLS,8.00,RESIDENTS PERSONAL EXPENSES-ALLOWANCES TO S/S CLIENTS,GROCERY STORES AND SUPERMARKETS
16 Jan 2015,SCREWFIX,NEIGHBOURHOOD SERVICES,DEPOT,135.28,GENERAL MATERIALS,LUMBER & BUILDING MATERIALS STORES
16 Jan 2015,ASDA STORES,RESOURCES,ACCOMMODATION SERVICES MANAGEMENT,75.25,FOOD AND BEVERAGES-PROVISIONS,GROCERY STORES AND SUPERMARKETS
16 Jan 2015,POUNDLAND LTD 1055,CHILDRENS SERVICES,LOOKED AFTER CHILDRENS SOCIAL WORK TEAM,3.00,TRANSFER PAYMENTS - SOCIAL SERVICES CLIENTS,DISCOUNT STORES
16 Jan 2015,EE & T-MOBILE,CHILDRENS SERVICES,"CLUSTER 1 BROWNHILLS,GREENFIELDS,PELSALL",113.30,COSTS (NOT INTERNAL RECHARGES)-TELEPHONES,TELECOMMUNICATION SERVICES
16 Jan 2015,TESCO STORES 6161,RESOURCES,ADVICE & GUIDANCE SERVICE,35.00,GENERAL MATERIALS,GROCERY STORES AND SUPERMARKETS
16 Jan 2015,WILKO RETAIL LIMIT,RESOURCES,ADVICE & GUIDANCE SERVICE,131.98,FURNITURE & EQUIPMENT,HOUSEHOLD APPLIANCE STORES
16 Jan 2015,TESCO STORES 2335,RESOURCES,ADVICE & GUIDANCE SERVICE,70.00,FOOD AND BEVERAGES-PROVISIONS,GROCERY STORES AND SUPERMARKETS
16 Jan 2015,TESCO STORES 6161,RESOURCES,ADVICE & GUIDANCE SERVICE,66.00,FOOD AND BEVERAGES-PROVISIONS,GROCERY STORES AND SUPERMARKETS
16 Jan 2015,CRAZY HOUSE (BROWNHILL,RESOURCES,WALSALL CRISIS SUPPORT SCHEME,55.00,CRISIS SUPPORT PAYMENTS,"EQUIPMENT, FURNITURE, AND HOME FURNISHINGS STORES "
16 Jan 2015,BORSHCH LIMITED,RESOURCES,WALSALL CRISIS SUPPORT SCHEME,335.00,CRISIS SUPPORT PAYMENTS,ELECTRONIC SALES
16 Jan 2015,BORSHCH LIMITED,RESOURCES,WALSALL CRISIS SUPPORT SCHEME,195.00,CRISIS SUPPORT PAYMENTS,ELECTRONIC SALES
16 Jan 2015,CRAZY HOUSE (BROWNHILL,RESOURCES,WALSALL CRISIS SUPPORT SCHEME,55.00,CRISIS SUPPORT PAYMENTS,"EQUIPMENT, FURNITURE, AND HOME FURNISHINGS STORES "
16 Jan 2015,BORSHCH LIMITED,RESOURCES,WALSALL CRISIS SUPPORT SCHEME,140.00,CRISIS SUPPORT PAYMENTS,ELECTRONIC SALES
16 Jan 2015,BORSHCH LIMITED,RESOURCES,WALSALL CRISIS SUPPORT SCHEME,325.00,CRISIS SUPPORT PAYMENTS,ELECTRONIC SALES
16 Jan 2015,"BOOTS,WALSALL",RESOURCES,WALSALL CRISIS SUPPORT SCHEME,8.49,CRISIS SUPPORT PAYMENTS,"DRUG STORES, PHARMACIES"
16 Jan 2015,ASDA,RESOURCES,WALSALL CRISIS SUPPORT SCHEME,14.46,CRISIS SUPPORT PAYMENTS,GROCERY STORES AND SUPERMARKETS
16 Jan 2015,BORSHCH LIMITED,RESOURCES,WALSALL CRISIS SUPPORT SCHEME,140.00,CRISIS SUPPORT PAYMENTS,ELECTRONIC SALES
16 Jan 2015,TESCO STORES 6161,RESOURCES,WALSALL CRISIS SUPPORT SCHEME,3.00,CRISIS SUPPORT PAYMENTS,GROCERY STORES AND SUPERMARKETS
16 Jan 2015,CRAZY HOUSE (BROWNHILL,RESOURCES,WALSALL CRISIS SUPPORT SCHEME,335.00,CRISIS SUPPORT PAYMENTS,"EQUIPMENT, FURNITURE, AND HOME FURNISHINGS STORES "
16 Jan 2015,CRAZY HOUSE (BROWNHILL,RESOURCES,WALSALL CRISIS SUPPORT SCHEME,130.00,CRISIS SUPPORT PAYMENTS,"EQUIPMENT, FURNITURE, AND HOME FURNISHINGS STORES "
16 Jan 2015,BORSHCH LIMITED,RESOURCES,WALSALL CRISIS SUPPORT SCHEME,400.00,CRISIS SUPPORT PAYMENTS,ELECTRONIC SALES
16 Jan 2015,BORSHCH LIMITED,RESOURCES,WALSALL CRISIS SUPPORT SCHEME,595.00,CRISIS SUPPORT PAYMENTS,ELECTRONIC SALES
16 Jan 2015,WWW.GIROFOOD.COM,NEIGHBOURHOOD SERVICES,CA MOORCROFT WOOD,37.75,DISPOSABLES-PROVISIONS,WHOLESALE CLUBS
16 Jan 2015,WWW.GIROFOOD.COM,NEIGHBOURHOOD SERVICES,CA COOPER JORDAN CE PRIMARY SCHOOL,71.09,DISPOSABLES-PROVISIONS,WHOLESALE CLUBS
16 Jan 2015,ARTHUR BRETT CATER,NEIGHBOURHOOD SERVICES,CA COOPER JORDAN CE PRIMARY SCHOOL,113.10,FRUIT & VEGETABLES OTHER-PROVISIONS,MISCELLANEOUS FOOD STORES & CONVENIENCE STORES
16 Jan 2015,WELSH BROS FOODS LTD,NEIGHBOURHOOD SERVICES,CA JANE LANE SPECIAL SCHOOL,42.06,MEAT-PROVISIONS,FREEZER AND LOCKER MEAT PROVISIONERS
16 Jan 2015,ARTHUR BRETT CATER,NEIGHBOURHOOD SERVICES,CA BARCROFT D/C,36.04,FRUIT & VEGETABLES OTHER-PROVISIONS,MISCELLANEOUS FOOD STORES & CONVENIENCE STORES
16 Jan 2015,THE TRAINLINE.COM,RESOURCES,INVESTIGATIONS,154.33,OFFICER/STAFF-PUBLIC TRANSPORT,PASSENGER RAILWAYS
16 Jan 2015,ARTHUR BRETT CATER,NEIGHBOURHOOD SERVICES,CA CALDMORE COMMUNITY PRIMARY SCHOOL,52.81,FRUIT & VEGETABLES OTHER-PROVISIONS,MISCELLANEOUS FOOD STORES & CONVENIENCE STORES
16 Jan 2015,ARTHUR BRETT CATER,NEIGHBOURHOOD SERVICES,CA LEIGHSWOOD PRIMARY SCHOOL,119.34,FRUIT & VEGETABLES OTHER-PROVISIONS,MISCELLANEOUS FOOD STORES & CONVENIENCE STORES
16 Jan 2015,OFFICE DEPOT,NEIGHBOURHOOD SERVICES,LIBRARY OPERATIONS CENTRAL,16.79,STATIONERY & GENERAL SUPPLIES-OFFICE EXP,"STATIONERY, OFFICE SUPPLIES AND WRITING PAPER"
16 Jan 2015,OFFICE DEPOT,NEIGHBOURHOOD SERVICES,LIBRARY OPERATIONS CENTRAL,296.80,STATIONERY & GENERAL SUPPLIES-OFFICE EXP,"STATIONERY, OFFICE SUPPLIES AND WRITING PAPER"
16 Jan 2015,OFFICE DEPOT,REGENERATION,CENTRALISED STATIONERY,180.83,STATIONERY & GENERAL SUPPLIES-OFFICE EXP,"STATIONERY, OFFICE SUPPLIES AND WRITING PAPER"
16 Jan 2015,OFFICE DEPOT,RESOURCES,TENANCY SERVICE,30.14,STATIONERY & GENERAL SUPPLIES-OFFICE EXP,"STATIONERY, OFFICE SUPPLIES AND WRITING PAPER"
17 Jan 2015,WIX.COM,CHILDRENS SERVICES,EDUCATION BUSINESS PARTNERSHIP (EBP),111.75,SOFTWARE ACQ-COMPUTER,COMPUTER SOFTWARE STORES
17 Jan 2015,AMAZON EU,CHILDRENS SERVICES,COMMUNICATION & LANGUAGE LH,7.99,LIBRARY BOOKS,OTHER DIRECT MARKETING-OTHER DIRECT MARKETERS
17 Jan 2015,AMAZON EU,CHILDRENS SERVICES,COMMUNICATION & LANGUAGE LH,79.84,LIBRARY BOOKS,OTHER DIRECT MARKETING-OTHER DIRECT MARKETERS
17 Jan 2015,DUNELM (SOFT FURNISHIN,CHILDRENS SERVICES,"43A HILTON ROAD, WILLENHALL",4.99,RESIDENTS PERSONAL EXPENSES-ALLOWANCES TO S/S CLIENTS,"DRAPERY, UPHOLSTERY, AND WINDOW COVERINGS STORES"
17 Jan 2015,SNOWDOME LTD,CHILDRENS SERVICES,57 LICHFIELD ROAD,17.50,RESIDENTS PERSONAL EXPENSES-ALLOWANCES TO S/S CLIENTS,"CLUBS COUNTRY CLUBS, MEMBERSHIP"
17 Jan 2015,WM MORRISONS,CHILDRENS SERVICES,57 LICHFIELD ROAD,6.26,GENERAL PROVISIONS-PROVISIONS,GROCERY STORES AND SUPERMARKETS
17 Jan 2015,TRAVEL WEST MIDLAN,CHILDRENS SERVICES,57 LICHFIELD ROAD,29.25,RESIDENTS PERSONAL EXPENSES-ALLOWANCES TO S/S CLIENTS,BUS LINES
17 Jan 2015,AMAZON *MKTPLCE EU-UK,CHILDRENS SERVICES,GENERAL SUPPLIES RD,139.48,GENERAL MATERIALS,BOOK STORES
17 Jan 2015,JOHAL DAIRIES LTD,NEIGHBOURHOOD SERVICES,CA TOWN HALL RESTAURANT - CATERING,37.91,MISC DAIRY PRODUCTS-PROVISIONS,OTHER NONDURABLE GOODS
17 Jan 2015,JOHAL DAIRIES LTD,NEIGHBOURHOOD SERVICES,TOWN HALL RESTAURANT BISTRO,45.02,MISC DAIRY PRODUCTS-PROVISIONS,OTHER NONDURABLE GOODS
17 Jan 2015,JOHAL DAIRIES LTD,NEIGHBOURHOOD SERVICES,CA BUSILL JONES PRIMARY SCHOOL,46.51,MISC DAIRY PRODUCTS-PROVISIONS,OTHER NONDURABLE GOODS
17 Jan 2015,JOHAL DAIRIES LTD,NEIGHBOURHOOD SERVICES,CA JOSEPH LECKIE COMMUNITY TECHNOLOGY COLLEGE,34.73,MISC DAIRY PRODUCTS-PROVISIONS,OTHER NONDURABLE GOODS
17 Jan 2015,JOHAL DAIRIES LTD,CHILDRENS SERVICES,57 LICHFIELD ROAD,13.34,GENERAL PROVISIONS-PROVISIONS,OTHER NONDURABLE GOODS
17 Jan 2015,JOHAL DAIRIES LTD,NEIGHBOURHOOD SERVICES,CA MOORCROFT WOOD,16.01,MISC DAIRY PRODUCTS-PROVISIONS,OTHER NONDURABLE GOODS
17 Jan 2015,JOHAL DAIRIES LTD,NEIGHBOURHOOD SERVICES,CA GREEN ROCK PRIMARY,19.68,MISC DAIRY PRODUCTS-PROVISIONS,OTHER NONDURABLE GOODS
17 Jan 2015,JOHAL DAIRIES LTD,NEIGHBOURHOOD SERVICES,CA ELMORE GREEN PRIMARY SCHOOL,14.42,MISC DAIRY PRODUCTS-PROVISIONS,OTHER NONDURABLE GOODS
17 Jan 2015,JOHAL DAIRIES LTD,NEIGHBOURHOOD SERVICES,CA ST MICHAELS C.E. PRIMARY SCHOOL,40.61,MISC DAIRY PRODUCTS-PROVISIONS,OTHER NONDURABLE GOODS
17 Jan 2015,JOHAL DAIRIES LTD,NEIGHBOURHOOD SERVICES,CA BEACON PRIMARY SCHOOL,86.00,MISC DAIRY PRODUCTS-PROVISIONS,OTHER NONDURABLE GOODS
17 Jan 2015,JOHAL DAIRIES LTD,NEIGHBOURHOOD SERVICES,CA RADLEYS PRIMARY SCHOOL,42.00,MISC DAIRY PRODUCTS-PROVISIONS,OTHER NONDURABLE GOODS
17 Jan 2015,JOHAL DAIRIES LTD,NEIGHBOURHOOD SERVICES,CA LINDENS PRIMARY SCHOOL,22.64,MISC DAIRY PRODUCTS-PROVISIONS,OTHER NONDURABLE GOODS
17 Jan 2015,JOHAL DAIRIES LTD,NEIGHBOURHOOD SERVICES,CA CASTLEFORT JMI SCHOOL,33.42,MISC DAIRY PRODUCTS-PROVISIONS,OTHER NONDURABLE GOODS
17 Jan 2015,JOHAL DAIRIES LTD,NEIGHBOURHOOD SERVICES,CA LITTLE BLOXWICH CE PRIMARY SCHOOL,26.10,MISC DAIRY PRODUCTS-PROVISIONS,OTHER NONDURABLE GOODS
17 Jan 2015,JOHAL DAIRIES LTD,NEIGHBOURHOOD SERVICES,CA ST ANNES CATHOLIC PRIMARY SCHOOL,16.83,MISC DAIRY PRODUCTS-PROVISIONS,OTHER NONDURABLE GOODS
17 Jan 2015,JOHAL DAIRIES LTD,NEIGHBOURHOOD SERVICES,CA ST FRANCIS CATHOLIC PRIMARY SCHOOL,5.04,MISC DAIRY PRODUCTS-PROVISIONS,OTHER NONDURABLE GOODS
17 Jan 2015,JOHAL DAIRIES LTD,NEIGHBOURHOOD SERVICES,CA COOPER JORDAN CE PRIMARY SCHOOL,16.80,MISC DAIRY PRODUCTS-PROVISIONS,OTHER NONDURABLE GOODS
17 Jan 2015,JOHAL DAIRIES LTD,NEIGHBOURHOOD SERVICES,CA ST JOHNS C.E. PRIMARY SCHOOL,4.25,MISC DAIRY PRODUCTS-PROVISIONS,OTHER NONDURABLE GOODS
17 Jan 2015,JOHAL DAIRIES LTD,SOCIAL CARE & INCLUSION,FALLINGS HEATH,26.79,MISC DAIRY PRODUCTS-PROVISIONS,OTHER NONDURABLE GOODS
17 Jan 2015,JOHAL DAIRIES LTD,NEIGHBOURHOOD SERVICES,CA LEIGHSWOOD PRIMARY SCHOOL,31.92,MISC DAIRY PRODUCTS-PROVISIONS,OTHER NONDURABLE GOODS
17 Jan 2015,JOHAL DAIRIES LTD,NEIGHBOURHOOD SERVICES,CA WALSALL WOOD PRIMARY SCHOOL,1.68,MISC DAIRY PRODUCTS-PROVISIONS,OTHER NONDURABLE GOODS
17 Jan 2015,OFFICE DEPOT,NEIGHBOURHOOD SERVICES,GROUNDS SOUTH,49.73,NEW-FURNITURE & EQUIPMENT,"STATIONERY, OFFICE SUPPLIES AND WRITING PAPER"
17 Jan 2015,OFFICE DEPOT,NEIGHBOURHOOD SERVICES,GROUNDS,59.88,GENERAL MATERIALS,"STATIONERY, OFFICE SUPPLIES AND WRITING PAPER"
17 Jan 2015,JOHAL DAIRIES LTD,NEIGHBOURHOOD SERVICES,CA OLD HALL SPECIAL SCHOOL,7.08,MISC DAIRY PRODUCTS-PROVISIONS,OTHER NONDURABLE GOODS
17 Jan 2015,JOHAL DAIRIES LTD,NEIGHBOURHOOD SERVICES,CA ST BERNADETTES CATHOLIC PRIMARY SCHOOL,22.80,MISC DAIRY PRODUCTS-PROVISIONS,OTHER NONDURABLE GOODS
17 Jan 2015,JOHAL DAIRIES LTD,NEIGHBOURHOOD SERVICES,CA POOL HAYES PRIMARY SCHOOL,8.98,MISC DAIRY PRODUCTS-PROVISIONS,OTHER NONDURABLE GOODS
17 Jan 2015,JOHAL DAIRIES LTD,NEIGHBOURHOOD SERVICES,CA CROFT COMMUNITY PRIMARY SCHOOL,2.73,MISC DAIRY PRODUCTS-PROVISIONS,OTHER NONDURABLE GOODS
17 Jan 2015,JOHAL DAIRIES LTD,NEIGHBOURHOOD SERVICES,CA CALDMORE COMMUNITY PRIMARY SCHOOL,31.50,MISC DAIRY PRODUCTS-PROVISIONS,OTHER NONDURABLE GOODS
17 Jan 2015,OFFICE DEPOT,CHILDRENS SERVICES,FAMILY PLACEMENTS,183.89,STATIONERY & GENERAL SUPPLIES-OFFICE EXP,"STATIONERY, OFFICE SUPPLIES AND WRITING PAPER"
17 Jan 2015,JOHAL DAIRIES LTD,NEIGHBOURHOOD SERVICES,CA ABBEY PRIMARY SCHOOL,33.85,MISC DAIRY PRODUCTS-PROVISIONS,OTHER NONDURABLE GOODS
17 Jan 2015,JOHAL DAIRIES LTD,NEIGHBOURHOOD SERVICES,CA BLAKENALL HEATH JUNIOR SCHOOL,13.95,MISC DAIRY PRODUCTS-PROVISIONS,OTHER NONDURABLE GOODS
17 Jan 2015,JOHAL DAIRIES LTD,NEIGHBOURHOOD SERVICES,CA BROWNHILLS WEST PRIMARY SCHOOL,16.80,MISC DAIRY PRODUCTS-PROVISIONS,OTHER NONDURABLE GOODS
17 Jan 2015,JOHAL DAIRIES LTD,NEIGHBOURHOOD SERVICES,CA ST GILES C.E. PRIMARY SCHOOL,35.04,MISC DAIRY PRODUCTS-PROVISIONS,OTHER NONDURABLE GOODS
17 Jan 2015,JOHAL DAIRIES LTD,NEIGHBOURHOOD SERVICES,CA BIRCHILLS CE PRIMARY COMMUNITY SCHOOL,44.02,MISC DAIRY PRODUCTS-PROVISIONS,OTHER NONDURABLE GOODS
17 Jan 2015,JOHAL DAIRIES LTD,NEIGHBOURHOOD SERVICES,CA FIBBERSLEY PARK PRIMARY SCHOOL,77.08,MISC DAIRY PRODUCTS-PROVISIONS,OTHER NONDURABLE GOODS
17 Jan 2015,JOHAL DAIRIES LTD,NEIGHBOURHOOD SERVICES,CA BARCROFT D/C,13.14,MISC DAIRY PRODUCTS-PROVISIONS,OTHER NONDURABLE GOODS
17 Jan 2015,JOHAL DAIRIES LTD,NEIGHBOURHOOD SERVICES,CA ELMWOOD SPECIAL SCHOOL,4.20,MISC DAIRY PRODUCTS-PROVISIONS,OTHER NONDURABLE GOODS
17 Jan 2015,JOHAL DAIRIES LTD,NEIGHBOURHOOD SERVICES,CA MEADOW VIEW JMI PRIMARY SCHOOL,6.31,MISC DAIRY PRODUCTS-PROVISIONS,OTHER NONDURABLE GOODS
17 Jan 2015,JOHAL DAIRIES LTD,NEIGHBOURHOOD SERVICES,CA RUSHALL JMI SCHOOL,37.05,MISC DAIRY PRODUCTS-PROVISIONS,OTHER NONDURABLE GOODS
17 Jan 2015,JOHAL DAIRIES LTD,NEIGHBOURHOOD SERVICES,CA WATLING STREET PRIMARY SCHOOL,17.71,MISC DAIRY PRODUCTS-PROVISIONS,OTHER NONDURABLE GOODS
17 Jan 2015,JOHAL DAIRIES LTD,NEIGHBOURHOOD SERVICES,CA LEAMORE PRIMARY SCHOOL,2.59,MISC DAIRY PRODUCTS-PROVISIONS,OTHER NONDURABLE GOODS
17 Jan 2015,JOHAL DAIRIES LTD,NEIGHBOURHOOD SERVICES,CA BLUE COAT C OF E PERFORMING ARTS COLLEGE,18.50,MISC DAIRY PRODUCTS-PROVISIONS,OTHER NONDURABLE GOODS
17 Jan 2015,JOHAL DAIRIES LTD,SOCIAL CARE & INCLUSION,REABLEMENT TEAM - HOLLY BANK,102.61,MISC DAIRY PRODUCTS-PROVISIONS,OTHER NONDURABLE GOODS
17 Jan 2015,OFFICE DEPOT,CHILDRENS SERVICES,"CLUSTER 3 BLOXWICH,BLAKENALL,HATHERTON,E STAMMERS",237.53,STATIONERY & GENERAL SUPPLIES-OFFICE EXP,"STATIONERY, OFFICE SUPPLIES AND WRITING PAPER"
17 Jan 2015,OFFICE DEPOT,CHILDRENS SERVICES,INTENSIVE FAMILY SUPPORT TEAM,70.16,STATIONERY & GENERAL SUPPLIES-OFFICE EXP,"STATIONERY, OFFICE SUPPLIES AND WRITING PAPER"
17 Jan 2015,JOHAL DAIRIES LTD,NEIGHBOURHOOD SERVICES,CA JANE LANE SPECIAL SCHOOL,13.44,MISC DAIRY PRODUCTS-PROVISIONS,OTHER NONDURABLE GOODS
17 Jan 2015,JOHAL DAIRIES LTD,CHILDRENS SERVICES,STROUD FAMILY CENTRE,5.97,GENERAL PROVISIONS-PROVISIONS,OTHER NONDURABLE GOODS
18 Jan 2015,TRAINLINE.COM,NEIGHBOURHOOD SERVICES,NEW ART GALLERY - ADMIN,70.58,OFFICER/STAFF-PUBLIC TRANSPORT,PASSENGER RAILWAYS
18 Jan 2015,AMAZON EU,CHILDRENS SERVICES,ADMINISTRATIVE SUPPLIES,13.99,STATIONERY & GENERAL SUPPLIES-OFFICE EXP,OTHER DIRECT MARKETING-OTHER DIRECT MARKETERS
18 Jan 2015,AMAZON *MKTPLCE EU-UK,CHILDRENS SERVICES,OUTDOOR EDUCATION,18.55,GENERAL MATERIALS,BOOK STORES
18 Jan 2015,GOOGLE *EARTH PRO,RESOURCES,RECHARGEABLE EQUIPMENT,324.00,RECHARGE FOR MAINTENANCE/APPLICATION COSTS-COMPUTER,OTHER BUSINESS SERVICES
18 Jan 2015,GOOGLE *EARTH PRO,RESOURCES,RECHARGEABLE EQUIPMENT,324.00,RECHARGE FOR MAINTENANCE/APPLICATION COSTS-COMPUTER,OTHER BUSINESS SERVICES
18 Jan 2015,GOOGLE *EARTH PRO,RESOURCES,RECHARGEABLE EQUIPMENT,324.00,RECHARGE FOR MAINTENANCE/APPLICATION COSTS-COMPUTER,OTHER BUSINESS SERVICES
18 Jan 2015,GOOGLE *EARTH PRO,RESOURCES,RECHARGEABLE EQUIPMENT,324.00,RECHARGE FOR MAINTENANCE/APPLICATION COSTS-COMPUTER,OTHER BUSINESS SERVICES
18 Jan 2015,GOOGLE *EARTH PRO,RESOURCES,RECHARGEABLE EQUIPMENT,324.00,RECHARGE FOR MAINTENANCE/APPLICATION COSTS-COMPUTER,OTHER BUSINESS SERVICES
18 Jan 2015,GOOGLE *EARTH PRO,RESOURCES,RECHARGEABLE EQUIPMENT,324.00,RECHARGE FOR MAINTENANCE/APPLICATION COSTS-COMPUTER,OTHER BUSINESS SERVICES
18 Jan 2015,GOOGLE *EARTH PRO,RESOURCES,RECHARGEABLE EQUIPMENT,324.00,RECHARGE FOR MAINTENANCE/APPLICATION COSTS-COMPUTER,OTHER BUSINESS SERVICES
18 Jan 2015,GOOGLE *EARTH PRO,RESOURCES,RECHARGEABLE EQUIPMENT,324.00,RECHARGE FOR MAINTENANCE/APPLICATION COSTS-COMPUTER,OTHER BUSINESS SERVICES
18 Jan 2015,GOOGLE *EARTH PRO,RESOURCES,RECHARGEABLE EQUIPMENT,324.00,RECHARGE FOR MAINTENANCE/APPLICATION COSTS-COMPUTER,OTHER BUSINESS SERVICES
18 Jan 2015,GOOGLE *EARTH PRO,RESOURCES,RECHARGEABLE EQUIPMENT,324.00,RECHARGE FOR MAINTENANCE/APPLICATION COSTS-COMPUTER,OTHER BUSINESS SERVICES
18 Jan 2015,GOOGLE *EARTH PRO,RESOURCES,RECHARGEABLE EQUIPMENT,324.00,RECHARGE FOR MAINTENANCE/APPLICATION COSTS-COMPUTER,OTHER BUSINESS SERVICES
18 Jan 2015,GOOGLE *EARTH PRO,RESOURCES,RECHARGEABLE EQUIPMENT,324.00,RECHARGE FOR MAINTENANCE/APPLICATION COSTS-COMPUTER,OTHER BUSINESS SERVICES
18 Jan 2015,GOOGLE *EARTH PRO,RESOURCES,RECHARGEABLE EQUIPMENT,324.00,RECHARGE FOR MAINTENANCE/APPLICATION COSTS-COMPUTER,OTHER BUSINESS SERVICES
18 Jan 2015,GOOGLE *EARTH PRO,RESOURCES,RECHARGEABLE EQUIPMENT,324.00,RECHARGE FOR MAINTENANCE/APPLICATION COSTS-COMPUTER,OTHER BUSINESS SERVICES
18 Jan 2015,GOOGLE *EARTH PRO,RESOURCES,RECHARGEABLE EQUIPMENT,324.00,RECHARGE FOR MAINTENANCE/APPLICATION COSTS-COMPUTER,OTHER BUSINESS SERVICES
18 Jan 2015,SAINSBURYS SMKTS,CHILDRENS SERVICES,"43A HILTON ROAD, WILLENHALL",12.50,RESIDENTS PERSONAL EXPENSES-ALLOWANCES TO S/S CLIENTS,GROCERY STORES AND SUPERMARKETS
18 Jan 2015,PRIMARK,CHILDRENS SERVICES,"43A HILTON ROAD, WILLENHALL",20.50,RESIDENTS PERSONAL EXPENSES-ALLOWANCES TO S/S CLIENTS,CLOTHING STORES
18 Jan 2015,WILKO RETAIL LIMIT,CHILDRENS SERVICES,"43A HILTON ROAD, WILLENHALL",6.50,RESIDENTS PERSONAL EXPENSES-ALLOWANCES TO S/S CLIENTS,HOUSEHOLD APPLIANCE STORES
18 Jan 2015,BRANTANO FOOTWEAR,CHILDRENS SERVICES,57 LICHFIELD ROAD,54.00,RESIDENTS PERSONAL EXPENSES-ALLOWANCES TO S/S CLIENTS,SHOE STORES
19 Jan 2015,W M MORRISONS.COM,CHILDRENS SERVICES,"CLUSTER 6 BENTLEY,LIGHTHOUSE,FIBBERSLEY",10.02,FOOD AND BEVERAGES-PROVISIONS,GROCERY STORES AND SUPERMARKETS
19 Jan 2015,W M MORRISONS.COM,CHILDRENS SERVICES,"CLUSTER 6 BENTLEY,LIGHTHOUSE,FIBBERSLEY",76.84,FOOD AND BEVERAGES-PROVISIONS,GROCERY STORES AND SUPERMARKETS
19 Jan 2015,ASDA SUPERSTORE,RESOURCES,ACCOMMODATION SERVICES MANAGEMENT,13.96,FOOD AND BEVERAGES-PROVISIONS,GROCERY STORES AND SUPERMARKETS
19 Jan 2015,ASDA SUPERSTORE,RESOURCES,ACCOMMODATION SERVICES MANAGEMENT,29.07,FOOD AND BEVERAGES-PROVISIONS,GROCERY STORES AND SUPERMARKETS
19 Jan 2015,AKAL NEWS,RESOURCES,ACCOMMODATION SERVICES MANAGEMENT,20.50,FOOD AND BEVERAGES-PROVISIONS,GROCERY STORES AND SUPERMARKETS
19 Jan 2015,W M MORRISON PLC,RESOURCES,ACCOMMODATION SERVICES MANAGEMENT,35.00,FOOD AND BEVERAGES-PROVISIONS,GROCERY STORES AND SUPERMARKETS
19 Jan 2015,SCREWFIX,NEIGHBOURHOOD SERVICES,ARBORETUM,129.99,GENERAL MATERIALS,LUMBER & BUILDING MATERIALS STORES
19 Jan 2015,TESCO STORES 6161,CHILDRENS SERVICES,57 LICHFIELD ROAD,6.36,PROFESSIONAL FEES AND SERVICES,GROCERY STORES AND SUPERMARKETS
19 Jan 2015,TESCO STORES 6161,CHILDRENS SERVICES,57 LICHFIELD ROAD,8.00,RESIDENTS PERSONAL EXPENSES-ALLOWANCES TO S/S CLIENTS,GROCERY STORES AND SUPERMARKETS
19 Jan 2015,ASDA HOME SHOPPING,CHILDRENS SERVICES,"CLUSTER 1 BROWNHILLS,GREENFIELDS,PELSALL",2.28,FOOD AND BEVERAGES-PROVISIONS,GROCERY STORES AND SUPERMARKETS
19 Jan 2015,ASDA HOME SHOPPING,CHILDRENS SERVICES,"CLUSTER 1 BROWNHILLS,GREENFIELDS,PELSALL",45.92,FOOD AND BEVERAGES-PROVISIONS,GROCERY STORES AND SUPERMARKETS
19 Jan 2015,ASDA HOME SHOPPING,CHILDRENS SERVICES,"CLUSTER 3 BLOXWICH,BLAKENALL,HATHERTON,E STAMMERS",38.81,FOOD AND BEVERAGES-PROVISIONS,GROCERY STORES AND SUPERMARKETS
19 Jan 2015,ASDA HOME SHOPPING,CHILDRENS SERVICES,"CLUSTER 3 BLOXWICH,BLAKENALL,HATHERTON,E STAMMERS",5.04,FOOD AND BEVERAGES-PROVISIONS,GROCERY STORES AND SUPERMARKETS
19 Jan 2015,WEST COAST TRAINS,CHILDRENS SERVICES,ADOPTION TEAM,7.50,OFFICER/STAFF-PUBLIC TRANSPORT,PASSENGER RAILWAYS
19 Jan 2015,WEST COAST TRAINS,CHILDRENS SERVICES,ADOPTION TEAM,8.00,OTHER-TRAVEL ALLOWANCES,AUTOMOBILE PARKING LOTS AND GARAGES
19 Jan 2015,W M MORRISONS,CHILDRENS SERVICES,PARENTING TEAM,11.70,FOOD AND BEVERAGES-PROVISIONS,GROCERY STORES AND SUPERMARKETS
19 Jan 2015,TESCO STORES 6161,CHILDRENS SERVICES,HOSPITALITY & CATERING,36.28,GENERAL MATERIALS,GROCERY STORES AND SUPERMARKETS
19 Jan 2015,TESCO STORES 6161,CHILDRENS SERVICES,ELMWOOD SECONDARY SPECIAL SCHOOL,9.50,BREAD-GENERAL-PROVISIONS,GROCERY STORES AND SUPERMARKETS
19 Jan 2015,ASDA HOME SHOPPING,CHILDRENS SERVICES,"CLUSTER 1 BROWNHILLS,GREENFIELDS,PELSALL",10.60,FOOD AND BEVERAGES-PROVISIONS,GROCERY STORES AND SUPERMARKETS
19 Jan 2015,ASDA HOME SHOPPING,CHILDRENS SERVICES,"CLUSTER 1 BROWNHILLS,GREENFIELDS,PELSALL",69.22,FOOD AND BEVERAGES-PROVISIONS,GROCERY STORES AND SUPERMARKETS
19 Jan 2015,ASDA HOME SHOPPING,CHILDRENS SERVICES,CLUSTER 4 ALUMWELL & BIRCHILLS,9.52,FOOD AND BEVERAGES-PROVISIONS,GROCERY STORES AND SUPERMARKETS
19 Jan 2015,ASDA HOME SHOPPING,CHILDRENS SERVICES,ALUMWELL NURSERY,39.55,FOOD AND BEVERAGES-PROVISIONS,GROCERY STORES AND SUPERMARKETS
19 Jan 2015,ASDA HOME SHOPPING,CHILDRENS SERVICES,ALUMWELL NURSERY,4.37,CLEANING MATERIALS,GROCERY STORES AND SUPERMARKETS
19 Jan 2015,ASDA HOME SHOPPING,CHILDRENS SERVICES,CLUSTER 4 ALUMWELL & BIRCHILLS,2.00,FOOD AND BEVERAGES-PROVISIONS,GROCERY STORES AND SUPERMARKETS
19 Jan 2015,ASDA HOME SHOPPING,CHILDRENS SERVICES,CLUSTER 4 ALUMWELL & BIRCHILLS,2.00,CLEANING MATERIALS,GROCERY STORES AND SUPERMARKETS
19 Jan 2015,ASDA HOME SHOPPING,CHILDRENS SERVICES,ALUMWELL NURSERY,2.00,FOOD AND BEVERAGES-PROVISIONS,GROCERY STORES AND SUPERMARKETS
19 Jan 2015,ASDA HOME SHOPPING,CHILDRENS SERVICES,ALUMWELL NURSERY,3.12,CLEANING MATERIALS,GROCERY STORES AND SUPERMARKETS
19 Jan 2015,ASDA HOME SHOPPING,CHILDRENS SERVICES,CLUSTER 4 ALUMWELL & BIRCHILLS,16.13,FOOD AND BEVERAGES-PROVISIONS,GROCERY STORES AND SUPERMARKETS
19 Jan 2015,ASDA HOME SHOPPING,CHILDRENS SERVICES,STANLEYS NURSERY,53.95,FOOD AND BEVERAGES-PROVISIONS,GROCERY STORES AND SUPERMARKETS
19 Jan 2015,ASDA HOME SHOPPING,CHILDRENS SERVICES,STANLEYS NURSERY,4.92,FOOD AND BEVERAGES-PROVISIONS,GROCERY STORES AND SUPERMARKETS
19 Jan 2015,ASDA HOME SHOPPING,CHILDRENS SERVICES,STANLEYS NURSERY,4.14,CLEANING MATERIALS,GROCERY STORES AND SUPERMARKETS
19 Jan 2015,ASDA HOME SHOPPING,CHILDRENS SERVICES,CLUSTER 4 ALUMWELL & BIRCHILLS,2.25,FOOD AND BEVERAGES-PROVISIONS,GROCERY STORES AND SUPERMARKETS
19 Jan 2015,LEGO SYSTEM A/S,CHILDRENS SERVICES,INFORMATION SERVICES,117.42,TOYS & GAMES-MATERIALS,"GAME, TOY, AND HOBBY SHOPS"
19 Jan 2015,ARGOS B2B ONLINE,CHILDRENS SERVICES,SAFEGUARDING & FAMILY SUPPORT,-133.76,BEDDING & LINEN-MATERIALS,DISCOUNT STORES
19 Jan 2015,ASDA SUPERSTORE,RESOURCES,ACCOMMODATION SERVICES MANAGEMENT,33.50,FOOD AND BEVERAGES-PROVISIONS,GROCERY STORES AND SUPERMARKETS
19 Jan 2015,CARPHONE WAREHOUSE,CHILDRENS SERVICES,ADMINISTRATIVE SUPPLIES,20.00,COST OF CALLS-TELEPHONES,TELECOMMUNICATION EQUIPMENT & SALES
19 Jan 2015,LONDON MIDLAND TIC,NEIGHBOURHOOD SERVICES,NEW ART GALLERY - ADMIN,51.70,OFFICER/STAFF-PUBLIC TRANSPORT,PASSENGER RAILWAYS
19 Jan 2015,ASDA SUPERSTORE,RESOURCES,ACCOMMODATION SERVICES MANAGEMENT,-18.00,FOOD AND BEVERAGES-PROVISIONS,GROCERY STORES AND SUPERMARKETS
19 Jan 2015,TRAINLINE.COM,NEIGHBOURHOOD SERVICES,LEISURE - MANAGEMENT AND ADMIN,53.24,OFFICER/STAFF-PUBLIC TRANSPORT,PASSENGER RAILWAYS
19 Jan 2015,MNA LTD CARDCHARGE,REGENERATION,DEVELOPMENT MANAGEMENT,60.00,PERIODICALS/MAGAZINES/NEWSPAPERS-SUBSCRIPTIONS,NEWS DEALERS AND NEWSSTANDS
19 Jan 2015,PARENTPAY.COM,CHILDRENS SERVICES,57 LICHFIELD ROAD,14.78,GENERAL PROVISIONS-PROVISIONS,"COLLEGES, UNIVERSITIES, PROFESSIONAL SCHOOLS"
19 Jan 2015,ASDA HOME SHOPPING,NEIGHBOURHOOD SERVICES,VP SCL VOCATIONAL & SUPPORTED LEARNING,26.91,CATERING,GROCERY STORES AND SUPERMARKETS
19 Jan 2015,ASDA HOME SHOPPING,NEIGHBOURHOOD SERVICES,VP SCL VOCATIONAL & SUPPORTED LEARNING,356.62,CATERING,GROCERY STORES AND SUPERMARKETS
19 Jan 2015,ASDA HOME SHOPPING,NEIGHBOURHOOD SERVICES,VP SCL VOCATIONAL & SUPPORTED LEARNING,4.00,CATERING,GROCERY STORES AND SUPERMARKETS
19 Jan 2015,GOOGLE *EARTH PRO,RESOURCES,RECHARGEABLE EQUIPMENT,-54.00,RECHARGE FOR MAINTENANCE/APPLICATION COSTS-COMPUTER,OTHER BUSINESS SERVICES
19 Jan 2015,GOOGLE *EARTH PRO,RESOURCES,RECHARGEABLE EQUIPMENT,-54.00,RECHARGE FOR MAINTENANCE/APPLICATION COSTS-COMPUTER,OTHER BUSINESS SERVICES
19 Jan 2015,GOOGLE *EARTH PRO,RESOURCES,RECHARGEABLE EQUIPMENT,-54.00,RECHARGE FOR MAINTENANCE/APPLICATION COSTS-COMPUTER,OTHER BUSINESS SERVICES
19 Jan 2015,GOOGLE *EARTH PRO,RESOURCES,RECHARGEABLE EQUIPMENT,-54.00,RECHARGE FOR MAINTENANCE/APPLICATION COSTS-COMPUTER,OTHER BUSINESS SERVICES
19 Jan 2015,GOOGLE *EARTH PRO,RESOURCES,RECHARGEABLE EQUIPMENT,-54.00,RECHARGE FOR MAINTENANCE/APPLICATION COSTS-COMPUTER,OTHER BUSINESS SERVICES
19 Jan 2015,GOOGLE *EARTH PRO,RESOURCES,RECHARGEABLE EQUIPMENT,-54.00,RECHARGE FOR MAINTENANCE/APPLICATION COSTS-COMPUTER,OTHER BUSINESS SERVICES
19 Jan 2015,GOOGLE *EARTH PRO,RESOURCES,RECHARGEABLE EQUIPMENT,-54.00,RECHARGE FOR MAINTENANCE/APPLICATION COSTS-COMPUTER,OTHER BUSINESS SERVICES
19 Jan 2015,GOOGLE *EARTH PRO,RESOURCES,RECHARGEABLE EQUIPMENT,-54.00,RECHARGE FOR MAINTENANCE/APPLICATION COSTS-COMPUTER,OTHER BUSINESS SERVICES
19 Jan 2015,GOOGLE *EARTH PRO,RESOURCES,RECHARGEABLE EQUIPMENT,-54.00,RECHARGE FOR MAINTENANCE/APPLICATION COSTS-COMPUTER,OTHER BUSINESS SERVICES
19 Jan 2015,GOOGLE *EARTH PRO,RESOURCES,RECHARGEABLE EQUIPMENT,-54.00,RECHARGE FOR MAINTENANCE/APPLICATION COSTS-COMPUTER,OTHER BUSINESS SERVICES
19 Jan 2015,GOOGLE *EARTH PRO,RESOURCES,RECHARGEABLE EQUIPMENT,-54.00,RECHARGE FOR MAINTENANCE/APPLICATION COSTS-COMPUTER,OTHER BUSINESS SERVICES
19 Jan 2015,GOOGLE *EARTH PRO,RESOURCES,RECHARGEABLE EQUIPMENT,-54.00,RECHARGE FOR MAINTENANCE/APPLICATION COSTS-COMPUTER,OTHER BUSINESS SERVICES
19 Jan 2015,GOOGLE *EARTH PRO,RESOURCES,RECHARGEABLE EQUIPMENT,-54.00,RECHARGE FOR MAINTENANCE/APPLICATION COSTS-COMPUTER,OTHER BUSINESS SERVICES
19 Jan 2015,GOOGLE *EARTH PRO,RESOURCES,RECHARGEABLE EQUIPMENT,-54.00,RECHARGE FOR MAINTENANCE/APPLICATION COSTS-COMPUTER,OTHER BUSINESS SERVICES
19 Jan 2015,GOOGLE *EARTH PRO,RESOURCES,RECHARGEABLE EQUIPMENT,-54.00,RECHARGE FOR MAINTENANCE/APPLICATION COSTS-COMPUTER,OTHER BUSINESS SERVICES
19 Jan 2015,WM MORRISON 063,CHILDRENS SERVICES,REDRUTH ROAD,0.85,CLEANING-MATERIALS (INC LIGHT BULBS),GROCERY STORES AND SUPERMARKETS
19 Jan 2015,WM MORRISON 063,CHILDRENS SERVICES,REDRUTH ROAD,3.39,GENERAL PROVISIONS-PROVISIONS,GROCERY STORES AND SUPERMARKETS
19 Jan 2015,WM MORRISON 063,CHILDRENS SERVICES,REDRUTH ROAD,60.87,GENERAL PROVISIONS-PROVISIONS,GROCERY STORES AND SUPERMARKETS
19 Jan 2015,PAYPAL,SOCIAL CARE & INCLUSION,EMPLOYMENT LINKS TO WORK,21.95,GENERAL MATERIALS,ELECTRONIC SALES
19 Jan 2015,123-REG.CO.UK,RESOURCES,COMMUNICATIONS,8.38,COMPUTER EQUIPMENT AND SUPPLIES,COMPUTER NETWORK/INFORMATION SERVICES
19 Jan 2015,ASDA,RESOURCES,LINK SERVICE,13.97,FOOD AND BEVERAGES-PROVISIONS,GROCERY STORES AND SUPERMARKETS
19 Jan 2015,WWW.CONDELL-LTD.COM,CHILDRENS SERVICES,ELMWOOD SECONDARY SPECIAL SCHOOL,244.03,"REPAIRS,ALTERATIONS & MAINTENANCE-PREM",LUMBER & BUILDING MATERIALS STORES
19 Jan 2015,TRAINLINE.COM,REGENERATION,REGENERATION MANAGEMENT,99.86,OFFICER/STAFF-PUBLIC TRANSPORT,PASSENGER RAILWAYS
19 Jan 2015,POST OFFICE COUNTER,NEIGHBOURHOOD SERVICES,BLOXWICH LEISURE CENTRE,13.64,NEW-FURNITURE & EQUIPMENT,POSTAL SERVICES - GOVERNMENT ONLY
19 Jan 2015,ARGOS LTD,NEIGHBOURHOOD SERVICES,ARBORETUM,28.49,FURNITURE & EQUIPMENT,DISCOUNT STORES
19 Jan 2015,WWW.CARTRIDGESAVE.CO.U,NEIGHBOURHOOD SERVICES,FOREST ARTS CENTRE,44.28,GENERAL MATERIALS,"OFFICE, SCHOOL SUPPLY, AND STATIONERY STORES"
19 Jan 2015,UKOFFICEDIRECT.CO.,CHILDRENS SERVICES,NEW LEAF PUPIL REFERRAL UNIT,236.43,PERSONAL REQUISITES-MATERIALS,"OFFICE, SCHOOL SUPPLY, AND STATIONERY STORES"
19 Jan 2015,WM MORRISON FOOD.COM,CHILDRENS SERVICES,CLUSTER 5 DARLASTON,11.34,FOOD AND BEVERAGES-PROVISIONS,GROCERY STORES AND SUPERMARKETS
19 Jan 2015,WM MORRISON FOOD.COM,CHILDRENS SERVICES,CLUSTER 5 DARLASTON,49.77,GENERAL PROVISIONS-PROVISIONS,GROCERY STORES AND SUPERMARKETS
19 Jan 2015,ASDA SUPERSTORE,CHILDRENS SERVICES,"CLUSTER 3 BLOXWICH,BLAKENALL,HATHERTON,E STAMMERS",2.10,CLEANING MATERIALS,GROCERY STORES AND SUPERMARKETS
19 Jan 2015,ASDA SUPERSTORE,CHILDRENS SERVICES,"CLUSTER 3 BLOXWICH,BLAKENALL,HATHERTON,E STAMMERS",24.50,FOOD AND BEVERAGES-PROVISIONS,GROCERY STORES AND SUPERMARKETS
19 Jan 2015,BORSHCH LIMITED,RESOURCES,WALSALL CRISIS SUPPORT SCHEME,195.00,CRISIS SUPPORT PAYMENTS,ELECTRONIC SALES
19 Jan 2015,ASDA,RESOURCES,WALSALL CRISIS SUPPORT SCHEME,119.00,CRISIS SUPPORT PAYMENTS,GROCERY STORES AND SUPERMARKETS
19 Jan 2015,ASDA,RESOURCES,WALSALL CRISIS SUPPORT SCHEME,85.00,CRISIS SUPPORT PAYMENTS,GROCERY STORES AND SUPERMARKETS
19 Jan 2015,ARTHUR BRETT CATER,NEIGHBOURHOOD SERVICES,CA MEADOW VIEW JMI PRIMARY SCHOOL,-8.47,FRUIT & VEGETABLES OTHER-PROVISIONS,MISCELLANEOUS FOOD STORES & CONVENIENCE STORES
19 Jan 2015,WWW.GIROFOOD.COM,NEIGHBOURHOOD SERVICES,CA RADLEYS PRIMARY SCHOOL,290.40,DISPOSABLES-PROVISIONS,WHOLESALE CLUBS
19 Jan 2015,WWW.GIROFOOD.COM,NEIGHBOURHOOD SERVICES,CA BEACON PRIMARY SCHOOL,43.30,DISPOSABLES-PROVISIONS,WHOLESALE CLUBS
19 Jan 2015,WWW.GIROFOOD.COM,NEIGHBOURHOOD SERVICES,CA BEACON PRIMARY SCHOOL,-13.06,DISPOSABLES-PROVISIONS,WHOLESALE CLUBS
19 Jan 2015,ARTHUR BRETT CATER,NEIGHBOURHOOD SERVICES,CA WATLING STREET PRIMARY SCHOOL,-12.60,FRUIT & VEGETABLES OTHER-PROVISIONS,MISCELLANEOUS FOOD STORES & CONVENIENCE STORES
19 Jan 2015,BLAKEMORE FOODSERVICE,NEIGHBOURHOOD SERVICES,CA OLD HALL SPECIAL SCHOOL,54.61,FROZEN FOODS-PROVISIONS,CATERERS
19 Jan 2015,ARTHUR BRETT CATER,NEIGHBOURHOOD SERVICES,CA OAKWOOD SPECIAL SCHOOL,36.54,FRUIT & VEGETABLES OTHER-PROVISIONS,MISCELLANEOUS FOOD STORES & CONVENIENCE STORES
19 Jan 2015,WELSH BROS FOODS LTD,NEIGHBOURHOOD SERVICES,CA OAKWOOD SPECIAL SCHOOL,50.06,MEAT-PROVISIONS,FREEZER AND LOCKER MEAT PROVISIONERS
19 Jan 2015,WELSH BROS FOODS LTD,NEIGHBOURHOOD SERVICES,CA BARCROFT D/C,145.25,MEAT-PROVISIONS,FREEZER AND LOCKER MEAT PROVISIONERS
19 Jan 2015,BLAKEMORE FOODSERVICE,NEIGHBOURHOOD SERVICES,CA BARCROFT D/C,209.59,FROZEN FOODS-PROVISIONS,CATERERS
19 Jan 2015,WELSH BROS FOODS LTD,NEIGHBOURHOOD SERVICES,CA ELMWOOD SPECIAL SCHOOL,79.29,MEAT-PROVISIONS,FREEZER AND LOCKER MEAT PROVISIONERS
19 Jan 2015,WELSH BROS FOODS LTD,NEIGHBOURHOOD SERVICES,CA CASTLEFORT JMI SCHOOL,55.20,MEAT-PROVISIONS,FREEZER AND LOCKER MEAT PROVISIONERS
19 Jan 2015,ARTHUR BRETT CATER,NEIGHBOURHOOD SERVICES,CA CASTLEFORT JMI SCHOOL,62.12,FRUIT & VEGETABLES OTHER-PROVISIONS,MISCELLANEOUS FOOD STORES & CONVENIENCE STORES
19 Jan 2015,BLAKEMORE FOODSERVICE,NEIGHBOURHOOD SERVICES,CA CASTLEFORT JMI SCHOOL,-5.15,DRY FOODS-PROVISIONS,CATERERS
19 Jan 2015,WELSH BROS FOODS LTD,NEIGHBOURHOOD SERVICES,CA WATLING STREET PRIMARY SCHOOL,115.07,MEAT-PROVISIONS,FREEZER AND LOCKER MEAT PROVISIONERS
19 Jan 2015,ARTHUR BRETT CATER,NEIGHBOURHOOD SERVICES,CA WATLING STREET PRIMARY SCHOOL,95.65,FRUIT & VEGETABLES OTHER-PROVISIONS,MISCELLANEOUS FOOD STORES & CONVENIENCE STORES
19 Jan 2015,ARTHUR BRETT CATER,NEIGHBOURHOOD SERVICES,CA WATLING STREET PRIMARY SCHOOL,36.04,FRUIT & VEGETABLES OTHER-PROVISIONS,MISCELLANEOUS FOOD STORES & CONVENIENCE STORES
19 Jan 2015,ARTHUR BRETT CATER,NEIGHBOURHOOD SERVICES,CA ST JOHNS C.E. PRIMARY SCHOOL,182.18,FRUIT & VEGETABLES OTHER-PROVISIONS,MISCELLANEOUS FOOD STORES & CONVENIENCE STORES
19 Jan 2015,WELSH BROS FOODS LTD,NEIGHBOURHOOD SERVICES,CA ST JOHNS C.E. PRIMARY SCHOOL,169.85,MEAT-PROVISIONS,FREEZER AND LOCKER MEAT PROVISIONERS
19 Jan 2015,ARTHUR BRETT CATER,NEIGHBOURHOOD SERVICES,CA WALSALL WOOD PRIMARY SCHOOL,35.07,FRUIT & VEGETABLES OTHER-PROVISIONS,MISCELLANEOUS FOOD STORES & CONVENIENCE STORES
19 Jan 2015,BLAKEMORE FOODSERVICE,NEIGHBOURHOOD SERVICES,CA CROFT COMMUNITY PRIMARY SCHOOL,128.25,FROZEN FOODS-PROVISIONS,CATERERS
19 Jan 2015,BLAKEMORE FOODSERVICE,NEIGHBOURHOOD SERVICES,CA LEIGHSWOOD PRIMARY SCHOOL,105.52,FROZEN FOODS-PROVISIONS,CATERERS
19 Jan 2015,WELSH BROS FOODS LTD,NEIGHBOURHOOD SERVICES,CA LEIGHSWOOD PRIMARY SCHOOL,132.34,MEAT-PROVISIONS,FREEZER AND LOCKER MEAT PROVISIONERS
19 Jan 2015,ARTHUR BRETT CATER,NEIGHBOURHOOD SERVICES,CA ST BERNADETTES CATHOLIC PRIMARY SCHOOL,34.87,FRUIT & VEGETABLES OTHER-PROVISIONS,MISCELLANEOUS FOOD STORES & CONVENIENCE STORES
19 Jan 2015,BLAKEMORE FOODSERVICE,NEIGHBOURHOOD SERVICES,CA CALDMORE COMMUNITY PRIMARY SCHOOL,81.62,FROZEN FOODS-PROVISIONS,CATERERS
19 Jan 2015,OFFICE DEPOT,NEIGHBOURHOOD SERVICES,LOCAL HISTORY CENTRE,6.56,STATIONERY & GENERAL SUPPLIES-OFFICE EXP,"STATIONERY, OFFICE SUPPLIES AND WRITING PAPER"
19 Jan 2015,WELSH BROS FOODS LTD,NEIGHBOURHOOD SERVICES,CA FIBBERSLEY PARK PRIMARY SCHOOL,42.07,MEAT-PROVISIONS,FREEZER AND LOCKER MEAT PROVISIONERS
19 Jan 2015,BLAKEMORE FOODSERVICE,NEIGHBOURHOOD SERVICES,CA BIRCHILLS CE PRIMARY COMMUNITY SCHOOL,192.50,FROZEN FOODS-PROVISIONS,CATERERS
19 Jan 2015,WELSH BROS FOODS LTD,NEIGHBOURHOOD SERVICES,CA COOPER JORDAN CE PRIMARY SCHOOL,74.35,MEAT-PROVISIONS,FREEZER AND LOCKER MEAT PROVISIONERS
19 Jan 2015,OFFICE DEPOT,RESOURCES,PRINT STORES,420.00,STATIONERY & GENERAL SUPPLIES-OFFICE EXP,"STATIONERY, OFFICE SUPPLIES AND WRITING PAPER"
19 Jan 2015,OFFICE DEPOT,REGENERATION,CENTRALISED STATIONERY,242.87,STATIONERY & GENERAL SUPPLIES-OFFICE EXP,"STATIONERY, OFFICE SUPPLIES AND WRITING PAPER"
19 Jan 2015,WELSH BROS FOODS LTD,NEIGHBOURHOOD SERVICES,CA MEADOW VIEW JMI PRIMARY SCHOOL,155.07,MEAT-PROVISIONS,FREEZER AND LOCKER MEAT PROVISIONERS
19 Jan 2015,ARTHUR BRETT CATER,NEIGHBOURHOOD SERVICES,CA MEADOW VIEW JMI PRIMARY SCHOOL,54.19,FRUIT & VEGETABLES OTHER-PROVISIONS,MISCELLANEOUS FOOD STORES & CONVENIENCE STORES
19 Jan 2015,WELSH BROS FOODS LTD,NEIGHBOURHOOD SERVICES,CA ELMORE GREEN PRIMARY SCHOOL,140.55,MEAT-PROVISIONS,FREEZER AND LOCKER MEAT PROVISIONERS
19 Jan 2015,WELSH BROS FOODS LTD,NEIGHBOURHOOD SERVICES,CA ST MICHAELS C.E. PRIMARY SCHOOL,114.49,MEAT-PROVISIONS,FREEZER AND LOCKER MEAT PROVISIONERS
19 Jan 2015,BLAKEMORE FOODSERVICE,NEIGHBOURHOOD SERVICES,CA BEACON PRIMARY SCHOOL,261.06,FROZEN FOODS-PROVISIONS,CATERERS
19 Jan 2015,WELSH BROS FOODS LTD,NEIGHBOURHOOD SERVICES,CA BEACON PRIMARY SCHOOL,259.37,MEAT-PROVISIONS,FREEZER AND LOCKER MEAT PROVISIONERS
19 Jan 2015,ARTHUR BRETT CATER,NEIGHBOURHOOD SERVICES,CA LINDENS PRIMARY SCHOOL,91.44,FRUIT & VEGETABLES OTHER-PROVISIONS,MISCELLANEOUS FOOD STORES & CONVENIENCE STORES
19 Jan 2015,OFFICE DEPOT,NEIGHBOURHOOD SERVICES,CA CENTRAL SUPPORT SERVICES,141.17,STATIONERY & GENERAL SUPPLIES-OFFICE EXP,"STATIONERY, OFFICE SUPPLIES AND WRITING PAPER"
19 Jan 2015,ARTHUR BRETT CATER,NEIGHBOURHOOD SERVICES,CA ST ANNES CATHOLIC PRIMARY SCHOOL,62.03,FRUIT & VEGETABLES OTHER-PROVISIONS,MISCELLANEOUS FOOD STORES & CONVENIENCE STORES
19 Jan 2015,BLAKEMORE FOODSERVICE,NEIGHBOURHOOD SERVICES,CA JOSEPH LECKIE COMMUNITY TECHNOLOGY COLLEGE,330.73,FROZEN FOODS-PROVISIONS,CATERERS
19 Jan 2015,BLAKEMORE FOODSERVICE,NEIGHBOURHOOD SERVICES,CA JOSEPH LECKIE COMMUNITY TECHNOLOGY COLLEGE,20.91,FROZEN FOODS-PROVISIONS,CATERERS
19 Jan 2015,WELSH BROS FOODS LTD,NEIGHBOURHOOD SERVICES,CA JOSEPH LECKIE COMMUNITY TECHNOLOGY COLLEGE,138.50,MEAT-PROVISIONS,FREEZER AND LOCKER MEAT PROVISIONERS
19 Jan 2015,WELSH BROS FOODS LTD,NEIGHBOURHOOD SERVICES,CA RADLEYS PRIMARY SCHOOL,96.10,MEAT-PROVISIONS,FREEZER AND LOCKER MEAT PROVISIONERS
19 Jan 2015,BLAKEMORE FOODSERVICE,NEIGHBOURHOOD SERVICES,CA RADLEYS PRIMARY SCHOOL,138.52,FROZEN FOODS-PROVISIONS,CATERERS
19 Jan 2015,ARTHUR BRETT CATER,NEIGHBOURHOOD SERVICES,CA BLUE COAT C OF E PERFORMING ARTS COLLEGE,62.49,FRUIT & VEGETABLES OTHER-PROVISIONS,MISCELLANEOUS FOOD STORES & CONVENIENCE STORES
19 Jan 2015,BLAKEMORE FOODSERVICE,NEIGHBOURHOOD SERVICES,CA MOORCROFT WOOD,73.27,FROZEN FOODS-PROVISIONS,CATERERS
19 Jan 2015,WELSH BROS FOODS LTD,NEIGHBOURHOOD SERVICES,CA TOWN HALL RESTAURANT - CATERING,125.06,MEAT-PROVISIONS,FREEZER AND LOCKER MEAT PROVISIONERS
19 Jan 2015,ARTHUR BRETT CATER,NEIGHBOURHOOD SERVICES,CA BROWNHILLS WEST PRIMARY SCHOOL,96.59,FRUIT & VEGETABLES OTHER-PROVISIONS,MISCELLANEOUS FOOD STORES & CONVENIENCE STORES
19 Jan 2015,WELSH BROS FOODS LTD,NEIGHBOURHOOD SERVICES,CA BUSILL JONES PRIMARY SCHOOL,418.85,MEAT-PROVISIONS,FREEZER AND LOCKER MEAT PROVISIONERS
19 Jan 2015,BLAKEMORE FOODSERVICE,NEIGHBOURHOOD SERVICES,CA BUSILL JONES PRIMARY SCHOOL,187.66,FROZEN FOODS-PROVISIONS,CATERERS
19 Jan 2015,BLAKEMORE FOODSERVICE,NEIGHBOURHOOD SERVICES,CA BUSILL JONES PRIMARY SCHOOL,16.15,FROZEN FOODS-PROVISIONS,CATERERS
20 Jan 2015,ASDA 4387,CHILDRENS SERVICES,SAFEGUARDING & FAMILY SUPPORT,37.95,BEDDING & LINEN-MATERIALS,GROCERY STORES AND SUPERMARKETS
20 Jan 2015,PREMIER INN44533745,NEIGHBOURHOOD SERVICES,NAG - TEMPORARY EXHIBITIONS,55.75,OTHER EXPENSES-EXPENSES,PREMIER INN
20 Jan 2015,PREMIER INN44533745,NEIGHBOURHOOD SERVICES,NAG - TEMPORARY EXHIBITIONS,106.50,OTHER EXPENSES-EXPENSES,PREMIER INN
20 Jan 2015,WM MORRISON FOOD.COM,CHILDRENS SERVICES,CLUSTER 5 DARLASTON,43.62,FOOD AND BEVERAGES-PROVISIONS,GROCERY STORES AND SUPERMARKETS
20 Jan 2015,WM MORRISON FOOD.COM,CHILDRENS SERVICES,CLUSTER 5 DARLASTON,206.54,NEW-FURNITURE & EQUIPMENT,GROCERY STORES AND SUPERMARKETS
20 Jan 2015,TESCO STORES 6161,CHILDRENS SERVICES,FOOD TECHNOLOGY,48.68,GENERAL MATERIALS,GROCERY STORES AND SUPERMARKETS
20 Jan 2015,AMAZON *MKTPLCE EU-UK,CHILDRENS SERVICES,ADMINISTRATIVE SUPPLIES,24.18,STATIONERY & GENERAL SUPPLIES-OFFICE EXP,BOOK STORES
20 Jan 2015,AMAZON *MKTPLCE EU-UK,CHILDRENS SERVICES,ADMINISTRATIVE SUPPLIES,11.60,STATIONERY & GENERAL SUPPLIES-OFFICE EXP,MISCELLANEOUS AND SPECIALTY RETAIL STORES
20 Jan 2015,WIX.COM,CHILDRENS SERVICES,EDUCATION BUSINESS PARTNERSHIP (EBP),3.00,SOFTWARE ACQ-COMPUTER,COMPUTER SOFTWARE STORES
20 Jan 2015,THE NESTBOX COMPANY LTD,CHILDRENS SERVICES,OUTDOOR EDUCATION,213.00,GENERAL MATERIALS,PET SHOPS-PET FOOD AND SUPPLIES
20 Jan 2015,FALSTAFF HOTEL,RESOURCES,CORPORATE MANAGEMENT TEAM,50.00,HOTEL ACCOMMODATION-EMPLOYEES,"HOTELS, MOTELS, RESORTS"
20 Jan 2015,WWW.KEMPNER.CO.UK,SOCIAL CARE & INCLUSION,EMPLOYMENT LINKS TO WORK,454.73,GENERAL MATERIALS,OTHER BUSINESS SERVICES
20 Jan 2015,AMAZON *MKTPLCE EU-UK,CHILDRENS SERVICES,ICT LEARNING RESOURCES,56.80,NEW-FURNITURE & EQUIPMENT,BOOK STORES
20 Jan 2015,AMAZON EU,CHILDRENS SERVICES,COMMUNICATION & LANGUAGE LH,4.99,LIBRARY BOOKS,OTHER DIRECT MARKETING-OTHER DIRECT MARKETERS
20 Jan 2015,AMAZON EU,CHILDRENS SERVICES,COMMUNICATION & LANGUAGE LH,4.99,LIBRARY BOOKS,OTHER DIRECT MARKETING-OTHER DIRECT MARKETERS
20 Jan 2015,AMAZON EU,NEIGHBOURHOOD SERVICES,LIBRARY OPERATIONS - WALSALL NORTH,73.20,GENERAL MATERIALS,OTHER DIRECT MARKETING-OTHER DIRECT MARKETERS
20 Jan 2015,PAYPAL,RESOURCES,NETWORKS,130.98,RECHARGE FOR MAINTENANCE/APPLICATION COSTS-COMPUTER,COMPUTER NETWORK/INFORMATION SERVICES
20 Jan 2015,WWW.CMSPLC.COM,RESOURCES,RECHARGEABLE EQUIPMENT,87.30,COMPUTER EQUIPMENT AND SUPPLIES,LUMBER & BUILDING MATERIALS STORES
20 Jan 2015,ARRIVA PASSENGER S,NEIGHBOURHOOD SERVICES,AP QUALITY & PERFORMANCE DISCRETIONARY LEARNER SUP,-175.50,HIRE OF VEHICLES,AUTOMOTIVE SERVICE SHOPS
20 Jan 2015,ARRIVA PASSENGER S,NEIGHBOURHOOD SERVICES,AP QUALITY & PERFORMANCE DISCRETIONARY LEARNER SUP,-175.50,HIRE OF VEHICLES,AUTOMOTIVE SERVICE SHOPS
20 Jan 2015,LONDON MIDLAND TIC,CHILDRENS SERVICES,TRANSITION AND LEAVING CARE,169.60,OFFICER/STAFF-PUBLIC TRANSPORT,PASSENGER RAILWAYS
20 Jan 2015,ASDA HOME SHOPPING,CHILDRENS SERVICES,57 LICHFIELD ROAD,34.62,GENERAL PROVISIONS-PROVISIONS,GROCERY STORES AND SUPERMARKETS
20 Jan 2015,ASDA HOME SHOPPING,CHILDRENS SERVICES,57 LICHFIELD ROAD,104.51,GENERAL PROVISIONS-PROVISIONS,GROCERY STORES AND SUPERMARKETS
20 Jan 2015,ASDA HOME SHOPPING,CHILDRENS SERVICES,57 LICHFIELD ROAD,-1.39,GENERAL PROVISIONS-PROVISIONS,GROCERY STORES AND SUPERMARKETS
20 Jan 2015,WM MORRISON 063,CHILDRENS SERVICES,LOOKED AFTER CHILDRENS SOCIAL WORK TEAM,4.21,FOOD AND BEVERAGES-PROVISIONS,GROCERY STORES AND SUPERMARKETS
20 Jan 2015,WM MORRISON 063,CHILDRENS SERVICES,LOOKED AFTER CHILDRENS SOCIAL WORK TEAM,6.73,FOOD AND BEVERAGES-PROVISIONS,GROCERY STORES AND SUPERMARKETS
20 Jan 2015,LUL TICKET OFFICE.,NEIGHBOURHOOD SERVICES,NEW ART GALLERY - ADMIN,30.00,OFFICER/STAFF-PUBLIC TRANSPORT,PASSENGER RAILWAYS
20 Jan 2015,GRO HM PASSPORT OFFICE,CHILDRENS SERVICES,SAFEGUARDING & FAMILY SUPPORT,46.25,REGISTRAR OF BIRTHS/DEATHS/MARRIAGES/CIVIL PARTNERSHIPS-SERV-FEES/CHARGES,GOVERNMENT SERVICES
20 Jan 2015,WWW.OFFICESTATIONERY.CO.,CHILDRENS SERVICES,SAFEGUARDING & FAMILY SUPPORT,34.79,STATIONERY & GENERAL SUPPLIES-OFFICE EXP,"STATIONERY, OFFICE SUPPLIES AND WRITING PAPER"
20 Jan 2015,T R MUSIC,NEIGHBOURHOOD SERVICES,WALSALL GALA CENTRE,36.00,MISC FEES AND EXPENSES,MUSIC STORES & MUSICAL INSTRUMENTS
20 Jan 2015,TRAINLINE.COM,NEIGHBOURHOOD SERVICES,NAG - TEMPORARY EXHIBITIONS,107.00,OTHER/VOLUNTEERS-PUBLIC TRANSPORT,PASSENGER RAILWAYS
20 Jan 2015,ART MOVE LTD,NEIGHBOURHOOD SERVICES,NAG - TEMPORARY EXHIBITIONS,18.00,TRANSPORTATION-PRIV CONTRACTOR FEES,OTHER SERVICES
20 Jan 2015,AMAZON *MKTPLCE EU-UK,CHILDRENS SERVICES,FOUNDATION PHASE RESOURCES,71.98,GENERAL MATERIALS,BOOK STORES
20 Jan 2015,LONDON MIDLAND TIC,NEIGHBOURHOOD SERVICES,EMERGENCY PLANNING 2012/2013,4.10,OFFICER/STAFF-PUBLIC TRANSPORT,PASSENGER RAILWAYS
20 Jan 2015,PARCELFORCE WORLDWIDE,CHILDRENS SERVICES,ASSESSMENT,72.28,GENERAL MATERIALS,MOTOR FREIGHT CARRIERS
20 Jan 2015,ASDA SUPERSTORE,CHILDRENS SERVICES,HOSPITALITY & CATERING,2.00,GENERAL MATERIALS,GROCERY STORES AND SUPERMARKETS
20 Jan 2015,ASDA SUPERSTORE,CHILDRENS SERVICES,HOSPITALITY & CATERING,11.76,GENERAL MATERIALS,GROCERY STORES AND SUPERMARKETS
20 Jan 2015,DECATHLON,NEIGHBOURHOOD SERVICES,ACTIVE ENGLAND,24.99,FURNITURE & EQUIPMENT,SPORTING GOODS STORES
20 Jan 2015,W M MORRISON PLC,CHILDRENS SERVICES,"43A HILTON ROAD, WILLENHALL",12.00,EQUIP NEW-CLEANING,GROCERY STORES AND SUPERMARKETS
20 Jan 2015,W M MORRISON PLC,CHILDRENS SERVICES,"43A HILTON ROAD, WILLENHALL",18.09,GENERAL PROVISIONS-PROVISIONS,GROCERY STORES AND SUPERMARKETS
20 Jan 2015,ASDA SUPERSTORE,CHILDRENS SERVICES,MARY ELLIOTT SPECIAL SCHOOL,4.62,BREAD-GENERAL-PROVISIONS,GROCERY STORES AND SUPERMARKETS
20 Jan 2015,WILKO RETAIL LIMIT,RESOURCES,ADVICE & GUIDANCE SERVICE,58.74,FURNITURE & EQUIPMENT,HOUSEHOLD APPLIANCE STORES
20 Jan 2015,CRAZY HOUSE (BROWNHILL,RESOURCES,WALSALL CRISIS SUPPORT SCHEME,105.00,CRISIS SUPPORT PAYMENTS,"EQUIPMENT, FURNITURE, AND HOME FURNISHINGS STORES "
20 Jan 2015,CRAZY HOUSE (BROWNHILL,RESOURCES,WALSALL CRISIS SUPPORT SCHEME,45.00,CRISIS SUPPORT PAYMENTS,"EQUIPMENT, FURNITURE, AND HOME FURNISHINGS STORES "
20 Jan 2015,CRAZY HOUSE (BROWNHILL,RESOURCES,WALSALL CRISIS SUPPORT SCHEME,85.00,CRISIS SUPPORT PAYMENTS,"EQUIPMENT, FURNITURE, AND HOME FURNISHINGS STORES "
20 Jan 2015,CRAZY HOUSE (BROWNHILL,RESOURCES,WALSALL CRISIS SUPPORT SCHEME,80.00,CRISIS SUPPORT PAYMENTS,"EQUIPMENT, FURNITURE, AND HOME FURNISHINGS STORES "
20 Jan 2015,WILKO RETAIL LIMIT,RESOURCES,WALSALL CRISIS SUPPORT SCHEME,-1.40,CRISIS SUPPORT PAYMENTS,HOUSEHOLD APPLIANCE STORES
20 Jan 2015,TESCO STORES 6161,RESOURCES,WALSALL CRISIS SUPPORT SCHEME,9.50,CRISIS SUPPORT PAYMENTS,GROCERY STORES AND SUPERMARKETS
20 Jan 2015,WILKO RETAIL LIMIT,RESOURCES,WALSALL CRISIS SUPPORT SCHEME,43.82,CRISIS SUPPORT PAYMENTS,HOUSEHOLD APPLIANCE STORES
20 Jan 2015,ARTHUR BRETT CATER,NEIGHBOURHOOD SERVICES,CA GREEN ROCK PRIMARY,-12.60,FRUIT & VEGETABLES OTHER-PROVISIONS,MISCELLANEOUS FOOD STORES & CONVENIENCE STORES
20 Jan 2015,ARTHUR BRETT CATER,NEIGHBOURHOOD SERVICES,CA RADLEYS PRIMARY SCHOOL,-12.60,FRUIT & VEGETABLES OTHER-PROVISIONS,MISCELLANEOUS FOOD STORES & CONVENIENCE STORES
20 Jan 2015,ARTHUR BRETT CATER,NEIGHBOURHOOD SERVICES,CA BUSILL JONES PRIMARY SCHOOL,-37.79,FRUIT & VEGETABLES OTHER-PROVISIONS,MISCELLANEOUS FOOD STORES & CONVENIENCE STORES
20 Jan 2015,ARTHUR BRETT CATER,NEIGHBOURHOOD SERVICES,CA BLAKENALL HEATH JUNIOR SCHOOL,57.70,FRUIT & VEGETABLES OTHER-PROVISIONS,MISCELLANEOUS FOOD STORES & CONVENIENCE STORES
20 Jan 2015,ARTHUR BRETT CATER,NEIGHBOURHOOD SERVICES,CA ABBEY PRIMARY SCHOOL,56.96,FRUIT & VEGETABLES OTHER-PROVISIONS,MISCELLANEOUS FOOD STORES & CONVENIENCE STORES
20 Jan 2015,ARTHUR BRETT CATER,NEIGHBOURHOOD SERVICES,CA BUSILL JONES PRIMARY SCHOOL,136.54,FRUIT & VEGETABLES OTHER-PROVISIONS,MISCELLANEOUS FOOD STORES & CONVENIENCE STORES
20 Jan 2015,ARTHUR BRETT CATER,NEIGHBOURHOOD SERVICES,CA MOORCROFT WOOD,68.38,FRUIT & VEGETABLES OTHER-PROVISIONS,MISCELLANEOUS FOOD STORES & CONVENIENCE STORES
20 Jan 2015,ARTHUR BRETT CATER,NEIGHBOURHOOD SERVICES,CA LEAMORE PRIMARY SCHOOL,49.70,FRUIT & VEGETABLES OTHER-PROVISIONS,MISCELLANEOUS FOOD STORES & CONVENIENCE STORES
20 Jan 2015,ARTHUR BRETT CATER,NEIGHBOURHOOD SERVICES,CA JANE LANE SPECIAL SCHOOL,38.11,FRUIT & VEGETABLES OTHER-PROVISIONS,MISCELLANEOUS FOOD STORES & CONVENIENCE STORES
20 Jan 2015,ARTHUR BRETT CATER,NEIGHBOURHOOD SERVICES,CA RADLEYS PRIMARY SCHOOL,130.35,FRUIT & VEGETABLES OTHER-PROVISIONS,MISCELLANEOUS FOOD STORES & CONVENIENCE STORES
20 Jan 2015,ARTHUR BRETT CATER,NEIGHBOURHOOD SERVICES,CA JOSEPH LECKIE COMMUNITY TECHNOLOGY COLLEGE,160.07,FRUIT & VEGETABLES OTHER-PROVISIONS,MISCELLANEOUS FOOD STORES & CONVENIENCE STORES
20 Jan 2015,ARTHUR BRETT CATER,NEIGHBOURHOOD SERVICES,CA ELMORE GREEN PRIMARY SCHOOL,102.96,FRUIT & VEGETABLES OTHER-PROVISIONS,MISCELLANEOUS FOOD STORES & CONVENIENCE STORES
20 Jan 2015,ARTHUR BRETT CATER,NEIGHBOURHOOD SERVICES,CA GREEN ROCK PRIMARY,40.36,FRUIT & VEGETABLES OTHER-PROVISIONS,MISCELLANEOUS FOOD STORES & CONVENIENCE STORES
20 Jan 2015,ARTHUR BRETT CATER,NEIGHBOURHOOD SERVICES,CA LITTLE BLOXWICH CE PRIMARY SCHOOL,41.19,FRUIT & VEGETABLES OTHER-PROVISIONS,MISCELLANEOUS FOOD STORES & CONVENIENCE STORES
20 Jan 2015,ARTHUR BRETT CATER,NEIGHBOURHOOD SERVICES,CA POOL HAYES PRIMARY SCHOOL,48.20,FRUIT & VEGETABLES OTHER-PROVISIONS,MISCELLANEOUS FOOD STORES & CONVENIENCE STORES
20 Jan 2015,ARTHUR BRETT CATER,NEIGHBOURHOOD SERVICES,CA BEACON PRIMARY SCHOOL,118.36,FRUIT & VEGETABLES OTHER-PROVISIONS,MISCELLANEOUS FOOD STORES & CONVENIENCE STORES
20 Jan 2015,ARTHUR BRETT CATER,NEIGHBOURHOOD SERVICES,CA BARCROFT D/C,90.84,FRUIT & VEGETABLES OTHER-PROVISIONS,MISCELLANEOUS FOOD STORES & CONVENIENCE STORES
20 Jan 2015,ARTHUR BRETT CATER,NEIGHBOURHOOD SERVICES,CA ST GILES C.E. PRIMARY SCHOOL,22.88,FRUIT & VEGETABLES OTHER-PROVISIONS,MISCELLANEOUS FOOD STORES & CONVENIENCE STORES
20 Jan 2015,ARTHUR BRETT CATER,NEIGHBOURHOOD SERVICES,CA ST MICHAELS C.E. PRIMARY SCHOOL,71.32,FRUIT & VEGETABLES OTHER-PROVISIONS,MISCELLANEOUS FOOD STORES & CONVENIENCE STORES
20 Jan 2015,OFFICE DEPOT,RESOURCES,ELECTORAL SERVICES,11.98,STATIONERY & GENERAL SUPPLIES-OFFICE EXP,"STATIONERY, OFFICE SUPPLIES AND WRITING PAPER"
20 Jan 2015,OFFICE DEPOT,RESOURCES,ELECTORAL SERVICES,1.91,STATIONERY & GENERAL SUPPLIES-OFFICE EXP,"STATIONERY, OFFICE SUPPLIES AND WRITING PAPER"
20 Jan 2015,OFFICE DEPOT,RESOURCES,ELECTORAL SERVICES,33.70,STATIONERY & GENERAL SUPPLIES-OFFICE EXP,"STATIONERY, OFFICE SUPPLIES AND WRITING PAPER"
20 Jan 2015,ARTHUR BRETT CATER,NEIGHBOURHOOD SERVICES,CA OLD HALL SPECIAL SCHOOL,30.46,FRUIT & VEGETABLES OTHER-PROVISIONS,MISCELLANEOUS FOOD STORES & CONVENIENCE STORES
20 Jan 2015,ARTHUR BRETT CATER,NEIGHBOURHOOD SERVICES,TOWN HALL RESTAURANT BISTRO,46.65,FRUIT & VEGETABLES OTHER-PROVISIONS,MISCELLANEOUS FOOD STORES & CONVENIENCE STORES
20 Jan 2015,ARTHUR BRETT CATER,NEIGHBOURHOOD SERVICES,CA TOWN HALL RESTAURANT - CATERING,45.26,FRUIT & VEGETABLES OTHER-PROVISIONS,MISCELLANEOUS FOOD STORES & CONVENIENCE STORES
20 Jan 2015,ARTHUR BRETT CATER,NEIGHBOURHOOD SERVICES,CA BIRCHILLS CE PRIMARY COMMUNITY SCHOOL,11.72,FRUIT & VEGETABLES OTHER-PROVISIONS,MISCELLANEOUS FOOD STORES & CONVENIENCE STORES
20 Jan 2015,ARTHUR BRETT CATER,NEIGHBOURHOOD SERVICES,CA BIRCHILLS CE PRIMARY COMMUNITY SCHOOL,74.75,FRUIT & VEGETABLES OTHER-PROVISIONS,MISCELLANEOUS FOOD STORES & CONVENIENCE STORES
20 Jan 2015,ARTHUR BRETT CATER,NEIGHBOURHOOD SERVICES,CA FIBBERSLEY PARK PRIMARY SCHOOL,91.42,FRUIT & VEGETABLES OTHER-PROVISIONS,MISCELLANEOUS FOOD STORES & CONVENIENCE STORES
20 Jan 2015,OFFICE DEPOT,CHILDRENS SERVICES,CHILDRENS RESIDENTIAL SVCS,88.21,STATIONERY & GENERAL SUPPLIES-OFFICE EXP,"STATIONERY, OFFICE SUPPLIES AND WRITING PAPER"
20 Jan 2015,ARTHUR BRETT CATER,NEIGHBOURHOOD SERVICES,CA CALDMORE COMMUNITY PRIMARY SCHOOL,125.15,FRUIT & VEGETABLES OTHER-PROVISIONS,MISCELLANEOUS FOOD STORES & CONVENIENCE STORES
20 Jan 2015,OFFICE DEPOT,SOCIAL CARE & INCLUSION,INTEGRATED BUSINESS PROCESSES & SERVICES,44.30,STATIONERY & GENERAL SUPPLIES-OFFICE EXP,"STATIONERY, OFFICE SUPPLIES AND WRITING PAPER"
20 Jan 2015,ARTHUR BRETT CATER,NEIGHBOURHOOD SERVICES,CA BLOXWICH C.E. JMI PRIMARY SCHOOL,72.47,FRUIT & VEGETABLES OTHER-PROVISIONS,MISCELLANEOUS FOOD STORES & CONVENIENCE STORES
20 Jan 2015,ARTHUR BRETT CATER,NEIGHBOURHOOD SERVICES,CA CROFT COMMUNITY PRIMARY SCHOOL,107.45,FRUIT & VEGETABLES OTHER-PROVISIONS,MISCELLANEOUS FOOD STORES & CONVENIENCE STORES
20 Jan 2015,ARTHUR BRETT CATER,NEIGHBOURHOOD SERVICES,CA ST FRANCIS CATHOLIC PRIMARY SCHOOL,55.24,FRUIT & VEGETABLES OTHER-PROVISIONS,MISCELLANEOUS FOOD STORES & CONVENIENCE STORES
20 Jan 2015,ARTHUR BRETT CATER,NEIGHBOURHOOD SERVICES,CA WATLING STREET PRIMARY SCHOOL,12.60,FRUIT & VEGETABLES OTHER-PROVISIONS,MISCELLANEOUS FOOD STORES & CONVENIENCE STORES
20 Jan 2015,ARTHUR BRETT CATER,NEIGHBOURHOOD SERVICES,CA ELMWOOD SPECIAL SCHOOL,40.96,FRUIT & VEGETABLES OTHER-PROVISIONS,MISCELLANEOUS FOOD STORES & CONVENIENCE STORES
20 Jan 2015,ARTHUR BRETT CATER,NEIGHBOURHOOD SERVICES,CA RUSHALL JMI SCHOOL,54.73,FRUIT & VEGETABLES OTHER-PROVISIONS,MISCELLANEOUS FOOD STORES & CONVENIENCE STORES
20 Jan 2015,OFFICE DEPOT,CHILDRENS SERVICES,LIBRARY,154.63,STATIONERY & GENERAL SUPPLIES-OFFICE EXP,"STATIONERY, OFFICE SUPPLIES AND WRITING PAPER"
20 Jan 2015,OFFICE DEPOT,CHILDRENS SERVICES,EARLY YEARS SERVICE,16.90,STATIONERY & GENERAL SUPPLIES-OFFICE EXP,"STATIONERY, OFFICE SUPPLIES AND WRITING PAPER"
20 Jan 2015,OFFICE DEPOT,CHILDRENS SERVICES,ADMINISTRATIVE SUPPLIES,3.88,STATIONERY & GENERAL SUPPLIES-OFFICE EXP,"STATIONERY, OFFICE SUPPLIES AND WRITING PAPER"
20 Jan 2015,OFFICE DEPOT,CHILDRENS SERVICES,CENTRAL SUPPORT,46.19,STATIONERY & GENERAL SUPPLIES-OFFICE EXP,"STATIONERY, OFFICE SUPPLIES AND WRITING PAPER"
20 Jan 2015,OFFICE DEPOT,CHILDRENS SERVICES,CENTRAL SUPPORT,296.47,STATIONERY & GENERAL SUPPLIES-OFFICE EXP,"STATIONERY, OFFICE SUPPLIES AND WRITING PAPER"
20 Jan 2015,OFFICE DEPOT,CHILDRENS SERVICES,CENTRAL SUPPORT,81.48,STATIONERY & GENERAL SUPPLIES-OFFICE EXP,"STATIONERY, OFFICE SUPPLIES AND WRITING PAPER"
20 Jan 2015,OFFICE DEPOT,CHILDRENS SERVICES,"CLUSTER 3 BLOXWICH,BLAKENALL,HATHERTON,E STAMMERS",0.49,STATIONERY & GENERAL SUPPLIES-OFFICE EXP,"STATIONERY, OFFICE SUPPLIES AND WRITING PAPER"
20 Jan 2015,OFFICE DEPOT,CHILDRENS SERVICES,"CLUSTER 3 BLOXWICH,BLAKENALL,HATHERTON,E STAMMERS",0.49,STATIONERY & GENERAL SUPPLIES-OFFICE EXP,"STATIONERY, OFFICE SUPPLIES AND WRITING PAPER"
21 Jan 2015,ARCO LTD,NEIGHBOURHOOD SERVICES,ARBORETUM,110.95,PROTECTIVE CLOTHING & UNIFORM,"MEN'S, WOMEN'S, AND CHILDREN'S UNIFORMS"
21 Jan 2015,ARCO LTD,NEIGHBOURHOOD SERVICES,ARBORETUM,86.11,PROTECTIVE CLOTHING & UNIFORM,"MEN'S, WOMEN'S, AND CHILDREN'S UNIFORMS"
21 Jan 2015,LOCKS & FITTINGS,NEIGHBOURHOOD SERVICES,WALSALL GALA CENTRE,133.00,GENERAL MATERIALS,HARDWARE EQUIPMENT AND SUPPLIES
21 Jan 2015,TESCO STORES 6161,CHILDRENS SERVICES,LOOKED AFTER CHILDRENS SOCIAL WORK TEAM,0.17,TRANSFER PAYMENTS - SOCIAL SERVICES CLIENTS,GROCERY STORES AND SUPERMARKETS
21 Jan 2015,TESCO STORES 6161,CHILDRENS SERVICES,LOOKED AFTER CHILDRENS SOCIAL WORK TEAM,9.16,TRANSFER PAYMENTS - SOCIAL SERVICES CLIENTS,GROCERY STORES AND SUPERMARKETS
21 Jan 2015,AKAL NEWS,RESOURCES,ACCOMMODATION SERVICES MANAGEMENT,10.50,FOOD AND BEVERAGES-PROVISIONS,GROCERY STORES AND SUPERMARKETS
21 Jan 2015,ASDA,RESOURCES,TENANCY SERVICE,181.59,FOOD AND BEVERAGES-PROVISIONS,GROCERY STORES AND SUPERMARKETS
21 Jan 2015,WILKO RETAIL LIMIT,RESOURCES,TENANCY SERVICE,208.10,FURNITURE & EQUIPMENT,HOUSEHOLD APPLIANCE STORES
21 Jan 2015,WM MORRISON FOOD.COM,CHILDRENS SERVICES,BLUEBELLS,25.02,GENERAL PROVISIONS-PROVISIONS,GROCERY STORES AND SUPERMARKETS
21 Jan 2015,WM MORRISON FOOD.COM,CHILDRENS SERVICES,BLUEBELLS,116.54,GENERAL PROVISIONS-PROVISIONS,GROCERY STORES AND SUPERMARKETS
21 Jan 2015,WWW.YOUTHSPORTDIRECT.O,NEIGHBOURHOOD SERVICES,ACTIVE ENGLAND,48.60,MISCELLANEOUS SUPPLIES,MISCELLANEOUS AND SPECIALTY RETAIL STORES
21 Jan 2015,LIDL UK,CHILDRENS SERVICES,ADOPTION TEAM,15.08,FOOD AND BEVERAGES-PROVISIONS,GROCERY STORES AND SUPERMARKETS
21 Jan 2015,TRAINLINE.COM,CHILDRENS SERVICES,CHILD PROTECTION & REVIEW SERVICES,25.04,OFFICER/STAFF-PUBLIC TRANSPORT,PASSENGER RAILWAYS
21 Jan 2015,TESCO STORES 5503,CHILDRENS SERVICES,CLUSTER 4 ALUMWELL & BIRCHILLS,31.06,FOOD AND BEVERAGES-PROVISIONS,GROCERY STORES AND SUPERMARKETS
21 Jan 2015,TESCO STORE 3351,CHILDRENS SERVICES,"CLUSTER 1 BROWNHILLS,GREENFIELDS,PELSALL",16.00,FOOD AND BEVERAGES-PROVISIONS,GROCERY STORES AND SUPERMARKETS
21 Jan 2015,AMAZON *MKTPLCE EU-UK,CHILDRENS SERVICES,GENERAL RESOURCES & MISC,17.45,GENERAL MATERIALS,BOOK STORES
21 Jan 2015,AMAZON EU,CHILDRENS SERVICES,AFTER SCHOOL CLUB GOODS,24.60,GENERAL MATERIALS,OTHER DIRECT MARKETING-OTHER DIRECT MARKETERS
21 Jan 2015,CO-OPERATIVE FOOD,CHILDRENS SERVICES,INTERNAL FOSTER CARE PROVISION,2.00,FOOD AND BEVERAGES-PROVISIONS,GROCERY STORES AND SUPERMARKETS
21 Jan 2015,CO-OPERATIVE FOOD,CHILDRENS SERVICES,INTERNAL FOSTER CARE PROVISION,1.00,FOOD AND BEVERAGES-PROVISIONS,GROCERY STORES AND SUPERMARKETS
21 Jan 2015,J9 ACCOMODATION,RESOURCES,ACCOMMODATION SERVICES MANAGEMENT,290.41,RENTS,REAL ESTATE MANAGERS - RENTALS
21 Jan 2015,TRAVEL WEST MIDLAN,CHILDRENS SERVICES,LOOKED AFTER CHILDRENS SOCIAL WORK TEAM,9.20,OTHER-TRAVEL ALLOWANCES,BUS LINES
21 Jan 2015,TESCO STORE 3351,CHILDRENS SERVICES,PARENTING TEAM,6.17,FOOD AND BEVERAGES-PROVISIONS,GROCERY STORES AND SUPERMARKETS
21 Jan 2015,TESCO STORE 3351,CHILDRENS SERVICES,PARENTING TEAM,13.72,FOOD AND BEVERAGES-PROVISIONS,GROCERY STORES AND SUPERMARKETS
21 Jan 2015,OCTOBER GALLERY,NEIGHBOURHOOD SERVICES,NEW ART GALLERY - ADMIN,80.00,HOTEL ACCOMMODATION-EMPLOYEES,"ORGANIZATIONS, CHARITABLE AND SOCIAL SERVICE"
21 Jan 2015,THE GOOD EATING CO LT,NEIGHBOURHOOD SERVICES,NEW ART GALLERY - ADMIN,13.10,MISC DAIRY PRODUCTS-PROVISIONS,CATERERS
21 Jan 2015,MNA LTD CARDCHARGE,REGENERATION,DEVELOPMENT MANAGEMENT,273.84,PERIODICALS/MAGAZINES/NEWSPAPERS-SUBSCRIPTIONS,NEWS DEALERS AND NEWSSTANDS
21 Jan 2015,WM MORRISONS,CHILDRENS SERVICES,57 LICHFIELD ROAD,8.00,GENERAL PROVISIONS-PROVISIONS,GROCERY STORES AND SUPERMARKETS
21 Jan 2015,ASDA HOME SHOPPING,NEIGHBOURHOOD SERVICES,VP SCL VOCATIONAL & SUPPORTED LEARNING,37.05,CATERING,GROCERY STORES AND SUPERMARKETS
21 Jan 2015,ASDA HOME SHOPPING,NEIGHBOURHOOD SERVICES,VP SCL VOCATIONAL & SUPPORTED LEARNING,2.00,CATERING,GROCERY STORES AND SUPERMARKETS
21 Jan 2015,ASDA HOME SHOPPING,NEIGHBOURHOOD SERVICES,VP SCL VOCATIONAL & SUPPORTED LEARNING,1.00,CATERING,GROCERY STORES AND SUPERMARKETS
21 Jan 2015,SAINSBURYS S/MKT,NEIGHBOURHOOD SERVICES,WALSALL CANAL BOATS,10.00,FOOD AND BEVERAGES-PROVISIONS,GROCERY STORES AND SUPERMARKETS
21 Jan 2015,PAYPAL,NEIGHBOURHOOD SERVICES,POLLUTION DIVISION,25.00,PUBLICATIONS/ORGANISATIONS-SUBSCRIPTIONS,PROFESSIONAL SERVICES
21 Jan 2015,FAST KEY SERVICES,REGENERATION,PELSALL EDUCATION DEVELOPMENT CENTRE,15.00,"REPAIRS,ALTERATIONS & MAINTENANCE-PREM",OTHER BUSINESS SERVICES
21 Jan 2015,OYSTER COMMUNICATIONS,REGENERATION,PELSALL EDUCATION DEVELOPMENT CENTRE,38.40,STATIONERY & GENERAL SUPPLIES-OFFICE EXP,PROFESSIONAL SERVICES
21 Jan 2015,AMAZON *MKTPLCE EU-UK,CHILDRENS SERVICES,ADMINISTRATIVE SUPPLIES,45.35,STATIONERY & GENERAL SUPPLIES-OFFICE EXP,MISCELLANEOUS AND SPECIALTY RETAIL STORES
21 Jan 2015,AMAZON EU,CHILDRENS SERVICES,LIBRARY,13.34,LIBRARY BOOKS,OTHER DIRECT MARKETING-OTHER DIRECT MARKETERS
21 Jan 2015,THE CARPET MAN,RESOURCES,WALSALL CRISIS SUPPORT SCHEME,438.00,CRISIS SUPPORT PAYMENTS,FLOOR COVERING STORES
21 Jan 2015,BORSHCH LIMITED,RESOURCES,WALSALL CRISIS SUPPORT SCHEME,600.00,CRISIS SUPPORT PAYMENTS,ELECTRONIC SALES
21 Jan 2015,BORSHCH LIMITED,RESOURCES,WALSALL CRISIS SUPPORT SCHEME,325.00,CRISIS SUPPORT PAYMENTS,ELECTRONIC SALES
21 Jan 2015,BORSHCH LIMITED,RESOURCES,WALSALL CRISIS SUPPORT SCHEME,595.00,CRISIS SUPPORT PAYMENTS,ELECTRONIC SALES
21 Jan 2015,BORSHCH LIMITED,RESOURCES,WALSALL CRISIS SUPPORT SCHEME,385.00,CRISIS SUPPORT PAYMENTS,ELECTRONIC SALES
21 Jan 2015,BORSHCH LIMITED,RESOURCES,WALSALL CRISIS SUPPORT SCHEME,325.00,CRISIS SUPPORT PAYMENTS,ELECTRONIC SALES
21 Jan 2015,BORSHCH LIMITED,RESOURCES,WALSALL CRISIS SUPPORT SCHEME,410.00,CRISIS SUPPORT PAYMENTS,ELECTRONIC SALES
21 Jan 2015,BORSHCH LIMITED,RESOURCES,WALSALL CRISIS SUPPORT SCHEME,390.00,CRISIS SUPPORT PAYMENTS,ELECTRONIC SALES
21 Jan 2015,TESCO STORES 6161,RESOURCES,WALSALL CRISIS SUPPORT SCHEME,9.92,CRISIS SUPPORT PAYMENTS,GROCERY STORES AND SUPERMARKETS
21 Jan 2015,THE CARPET MAN,RESOURCES,WALSALL CRISIS SUPPORT SCHEME,120.00,CRISIS SUPPORT PAYMENTS,FLOOR COVERING STORES
21 Jan 2015,WILKO.COM,RESOURCES,WALSALL CRISIS SUPPORT SCHEME,104.64,CRISIS SUPPORT PAYMENTS,HOUSEHOLD APPLIANCE STORES
21 Jan 2015,THE CARPET MAN,RESOURCES,WALSALL CRISIS SUPPORT SCHEME,384.00,CRISIS SUPPORT PAYMENTS,FLOOR COVERING STORES
21 Jan 2015,THE CARPET MAN,RESOURCES,WALSALL CRISIS SUPPORT SCHEME,594.00,CRISIS SUPPORT PAYMENTS,FLOOR COVERING STORES
21 Jan 2015,CRAZY HOUSE (BROWNHILL,RESOURCES,WALSALL CRISIS SUPPORT SCHEME,55.00,CRISIS SUPPORT PAYMENTS,"EQUIPMENT, FURNITURE, AND HOME FURNISHINGS STORES "
21 Jan 2015,WWW.GIROFOOD.COM,NEIGHBOURHOOD SERVICES,CA ELMORE GREEN PRIMARY SCHOOL,73.83,DISPOSABLES-PROVISIONS,WHOLESALE CLUBS
21 Jan 2015,OFFICE DEPOT,NEIGHBOURHOOD SERVICES,RESOURCE MANAGEMENT,14.99,STATIONERY & GENERAL SUPPLIES-OFFICE EXP,"STATIONERY, OFFICE SUPPLIES AND WRITING PAPER"
21 Jan 2015,OFFICE DEPOT,NEIGHBOURHOOD SERVICES,RESOURCE MANAGEMENT,84.94,STATIONERY & GENERAL SUPPLIES-OFFICE EXP,"STATIONERY, OFFICE SUPPLIES AND WRITING PAPER"
21 Jan 2015,OFFICE DEPOT,CHILDRENS SERVICES,CLUSTER 5 DARLASTON,149.59,STATIONERY & GENERAL SUPPLIES-OFFICE EXP,"STATIONERY, OFFICE SUPPLIES AND WRITING PAPER"
21 Jan 2015,NOBISCO LTD,NEIGHBOURHOOD SERVICES,CA OLD HALL SPECIAL SCHOOL,35.12,DISPOSABLES-PROVISIONS,"CLEANING AND MAINTENANCE, JANITORIAL SERVICES"
21 Jan 2015,OFFICE DEPOT,CHILDRENS SERVICES,LIBRARY,7.55,GENERAL MATERIALS,"STATIONERY, OFFICE SUPPLIES AND WRITING PAPER"
21 Jan 2015,OFFICE DEPOT,CHILDRENS SERVICES,"CLUSTER 1 BROWNHILLS,GREENFIELDS,PELSALL",87.58,STATIONERY & GENERAL SUPPLIES-OFFICE EXP,"STATIONERY, OFFICE SUPPLIES AND WRITING PAPER"
21 Jan 2015,BLAKEMORE FOODSERVICE,NEIGHBOURHOOD SERVICES,CA BLUE COAT C OF E PERFORMING ARTS COLLEGE,227.53,DRY FOODS-PROVISIONS,CATERERS
21 Jan 2015,BLAKEMORE FOODSERVICE,NEIGHBOURHOOD SERVICES,CA BLUE COAT C OF E PERFORMING ARTS COLLEGE,105.25,DRY FOODS-PROVISIONS,CATERERS
21 Jan 2015,BLAKEMORE FOODSERVICE,NEIGHBOURHOOD SERVICES,CA BLUE COAT C OF E PERFORMING ARTS COLLEGE,420.33,FROZEN FOODS-PROVISIONS,CATERERS
21 Jan 2015,OFFICE DEPOT,CHILDRENS SERVICES,"CLUSTER 6 BENTLEY,LIGHTHOUSE,FIBBERSLEY",23.38,STATIONERY & GENERAL SUPPLIES-OFFICE EXP,"STATIONERY, OFFICE SUPPLIES AND WRITING PAPER"
21 Jan 2015,OFFICE DEPOT,RESOURCES,TENANCY SERVICE,101.50,STATIONERY & GENERAL SUPPLIES-OFFICE EXP,"STATIONERY, OFFICE SUPPLIES AND WRITING PAPER"
21 Jan 2015,OFFICE DEPOT,REGENERATION,CENTRALISED STATIONERY,2.72,STATIONERY & GENERAL SUPPLIES-OFFICE EXP,"STATIONERY, OFFICE SUPPLIES AND WRITING PAPER"
21 Jan 2015,BLAKEMORE FOODSERVICE,NEIGHBOURHOOD SERVICES,CA OAKWOOD SPECIAL SCHOOL,69.89,FROZEN FOODS-PROVISIONS,CATERERS
21 Jan 2015,BLAKEMORE FOODSERVICE,NEIGHBOURHOOD SERVICES,CA RUSHALL JMI SCHOOL,109.21,FROZEN FOODS-PROVISIONS,CATERERS
21 Jan 2015,BLAKEMORE FOODSERVICE,NEIGHBOURHOOD SERVICES,CA BARCROFT D/C,313.06,DRY FOODS-PROVISIONS,CATERERS
21 Jan 2015,OFFICE DEPOT,NEIGHBOURHOOD SERVICES,LIBRARY OPERATIONS CENTRAL,50.03,STATIONERY & GENERAL SUPPLIES-OFFICE EXP,"STATIONERY, OFFICE SUPPLIES AND WRITING PAPER"
21 Jan 2015,BLAKEMORE FOODSERVICE,NEIGHBOURHOOD SERVICES,CA ELMWOOD SPECIAL SCHOOL,79.34,DRY FOODS-PROVISIONS,CATERERS
21 Jan 2015,BLAKEMORE FOODSERVICE,NEIGHBOURHOOD SERVICES,CA ELMWOOD SPECIAL SCHOOL,4.55,DRY FOODS-PROVISIONS,CATERERS
